Body name,Service Area,Capital/Revenue,Dept,Expenses Type,Detailed Expenses Type,Transaction number,Expense Code,Date,Amount,Supplier Name,Supplier ID
WANDSWORTH COUNCIL,CS,Revenue,FINANCE,"REPAIRS, ALTERATIONS & MTCE","REPS, ALTS & MTCE-BUILDINGS",470715,100410000,21-Aug-14,532.09,DH CROFTS LTD,SP0000076
WANDSWORTH COUNCIL,CS,Revenue,ADMINISTRATION,"REPAIRS, ALTERATIONS & MTCE","REPS, ALTS & MTCE-BUILDINGS",20289773,100410000,11-Aug-14,531.99,RENTOKIL INITIAL PEST CONTROL,2003381
WANDSWORTH COUNCIL,CS,Revenue,FINANCE,"REPAIRS, ALTERATIONS & MTCE","REPS, ALTS & MTCE-BUILDINGS",472668,100410000,26-Aug-14,951.90,T BROWN GROUP LTD,SP0001050
WANDSWORTH COUNCIL,CS,Revenue,ADMINISTRATION,"REPAIRS, ALTERATIONS & MTCE","REPS, ALTS & MTCE-BUILDINGS",20290995,10051000K0002V,28-Aug-14,"2,750.00",Studio S Architect Ltd,2991000
WANDSWORTH COUNCIL,CS,Revenue,ADMINISTRATION,"REPAIRS, ALTERATIONS & MTCE","REPS, ALTS & MTCE-BUILDINGS",20289774,10051000K00111,11-Aug-14,590.00,GORDON BROWN,2001802
WANDSWORTH COUNCIL,CS,Revenue,ADMINISTRATION,SERVICES,CONSULTANTS FEES,20289775,100534200,11-Aug-14,"3,010.00",Phlorum Limited,2991000
WANDSWORTH COUNCIL,CS,Revenue,ADMINISTRATION,SERVICES,CONSULTANTS FEES,20289776,100534200,11-Aug-14,"2,200.00",RWDI Anemos Limited,2991000
WANDSWORTH COUNCIL,CS,Revenue,ADMINISTRATION,SERVICES,CONSULTANTS FEES,20289211,100534200,01-Aug-14,"2,976.04",Transport & Travel Planning Consultants Ltd,2991000
WANDSWORTH COUNCIL,CS,Revenue,ADMINISTRATION,INDIRECT,TRAINING - EXTERNAL COURSES,20290009,103000770,13-Aug-14,650.00,THE ASSOCIATION OF ELECTORAL ADMINISTRATORS,2005404
WANDSWORTH COUNCIL,CS,Revenue,ADMINISTRATION,INDIRECT,TRAINING - EXTERNAL COURSES,20290010,103000770,13-Aug-14,472.00,THE ASSOCIATION OF ELECTORAL ADMINISTRATORS,2005404
WANDSWORTH COUNCIL,CS,Revenue,ADMINISTRATION,PRINTING STAT & GEN OFFICE EXP,ADVERTISING - GENERAL,20290177,103033000,15-Aug-14,700.00,CITY PAGES LTD,2017243
WANDSWORTH COUNCIL,CS,Revenue,ENVIRONMENT & COMMUNITY,COMMUNICATIONS & COMP,COMMUNICATIONS - POSTAGE,462105,103036000,12-Aug-14,421.74,ROYAL MAIL,SP0001067
WANDSWORTH COUNCIL,CS,Revenue,ENVIRONMENT & COMMUNITY,COMMUNICATIONS & COMP,COMMUNICATIONS - POSTAGE,471551,103036000,26-Aug-14,559.27,ROYAL MAIL,SP0001067
WANDSWORTH COUNCIL,CS,Revenue,ENVIRONMENT & COMMUNITY,COMMUNICATIONS & COMP,COMMUNICATIONS - POSTAGE,458108,103036000,07-Aug-14,"12,598.79",TNT POST LONDON LTD,SP0003602
WANDSWORTH COUNCIL,CS,Revenue,ENVIRONMENT & COMMUNITY,COMMUNICATIONS & COMP,COMMUNICATIONS - POSTAGE,458109,103036000,07-Aug-14,"3,956.11",TNT POST LONDON LTD,SP0003602
WANDSWORTH COUNCIL,CS,Revenue,ENVIRONMENT & COMMUNITY,COMMUNICATIONS & COMP,COMMUNICATIONS - POSTAGE,458110,103036000,07-Aug-14,"51,184.89",TNT POST LONDON LTD,SP0003602
WANDSWORTH COUNCIL,CS,Revenue,ADMINISTRATION,INDIRECT,IN-SERVICE TRAINING-SLA,20289847,103100740,13-Aug-14,620.00,Mrs Rosemarie Lanes,2991000
WANDSWORTH COUNCIL,CS,Revenue,ENVIRONMENT & COMMUNITY,"EQUIPMENT, FURNITURE & MATS",FLOWERS,466242,103130170,18-Aug-14,640.00,PATRICIA WONG,SP0002085
WANDSWORTH COUNCIL,CS,Revenue,ENVIRONMENT & COMMUNITY,"EQUIPMENT, FURNITURE & MATS",FLOWERS,466243,103130170,18-Aug-14,640.00,PATRICIA WONG,SP0002085
WANDSWORTH COUNCIL,PH,Revenue,ENVIRONMENT & COMMUNITY,HEALTH,HIV RAPID TESTING PILOT,463007,105141710,12-Aug-14,610.00,PASSANTE HEALTHCARE LTD,SP0006465
WANDSWORTH COUNCIL,PH,Revenue,ENVIRONMENT & COMMUNITY,HEALTH,HIV RAPID TESTING PILOT,463008,105141710,13-Aug-14,"1,220.00",PASSANTE HEALTHCARE LTD,SP0006465
WANDSWORTH COUNCIL,PH,Revenue,ENVIRONMENT & COMMUNITY,HEALTH,HIV RAPID TESTING PILOT,463009,105141710,12-Aug-14,610.00,PASSANTE HEALTHCARE LTD,SP0006465
WANDSWORTH COUNCIL,PH,Revenue,ENVIRONMENT & COMMUNITY,HEALTH,HIV RAPID TESTING PILOT,463010,105141710,12-Aug-14,610.00,PASSANTE HEALTHCARE LTD,SP0006465
WANDSWORTH COUNCIL,PH,Revenue,ENVIRONMENT & COMMUNITY,HEALTH,HIV RAPID TESTING PILOT,463011,105141710,12-Aug-14,610.00,PASSANTE HEALTHCARE LTD,SP0006465
WANDSWORTH COUNCIL,PH,Revenue,ENVIRONMENT & COMMUNITY,HEALTH,HIV RAPID TESTING PILOT,463012,105141710,12-Aug-14,610.00,PASSANTE HEALTHCARE LTD,SP0006465
WANDSWORTH COUNCIL,PH,Revenue,ENVIRONMENT & COMMUNITY,HEALTH,HIV RAPID TESTING PILOT,463013,105141710,12-Aug-14,610.00,PASSANTE HEALTHCARE LTD,SP0006465
WANDSWORTH COUNCIL,PH,Revenue,ENVIRONMENT & COMMUNITY,HEALTH,HIV RAPID TESTING PILOT,463016,105141710,12-Aug-14,488.00,PASSANTE HEALTHCARE LTD,SP0006465
WANDSWORTH COUNCIL,PH,Revenue,ENVIRONMENT & COMMUNITY,HEALTH,HIV RAPID TESTING PILOT,463020,105141710,12-Aug-14,427.00,PASSANTE HEALTHCARE LTD,SP0006465
WANDSWORTH COUNCIL,PH,Revenue,ENVIRONMENT & COMMUNITY,HEALTH,HIV RAPID TESTING PILOT,463021,105141710,12-Aug-14,610.00,PASSANTE HEALTHCARE LTD,SP0006465
WANDSWORTH COUNCIL,PH,Revenue,ENVIRONMENT & COMMUNITY,HEALTH,HIV RAPID TESTING PILOT,463022,105141710,12-Aug-14,610.00,PASSANTE HEALTHCARE LTD,SP0006465
WANDSWORTH COUNCIL,PH,Revenue,ENVIRONMENT & COMMUNITY,HEALTH,MONITORING/VERIFY/EVALUATION,462960,105241850,13-Aug-14,"4,227.50",WEBSTAR HEALTH LTD,SP0006752
WANDSWORTH COUNCIL,PH,Revenue,ADMINISTRATION,MISC,MISCELLANEOUS EXPENSES,20290239,105538500,15-Aug-14,"2,271.88",LONDON BOROUGH OF HARINGEY,2018143
WANDSWORTH COUNCIL,PH,Revenue,ADMINISTRATION,HEALTH,PRESCRIBING SERVICES,20290405,106340550,19-Aug-14,559.64,PEARL CHEMIST LTD  FDC47,2015428
WANDSWORTH COUNCIL,PH,Revenue,ADMINISTRATION,HEALTH,PRESCRIBING SERVICES,20290405,106340550,19-Aug-14,44.00,PEARL CHEMIST LTD  FDC47,2015428
WANDSWORTH COUNCIL,PH,Revenue,FINANCE,"EQUIPMENT, FURNITURE & MATS","EQUIPMENT, FURNITURE & MATS",472762,107830000,26-Aug-14,"1,010.24",DH CROFTS LTD,SP0000076
WANDSWORTH COUNCIL,PH,Revenue,ADMINISTRATION,GRANTS & SUBSCRIPTIONS,SUBSCRIPTIONS,20289238,107837640,04-Aug-14,"2,200.00",ADPH C/O HEALTH FORUM,2017778
WANDSWORTH COUNCIL,PH,Revenue,ENVIRONMENT & COMMUNITY,SERVICES,PROJECT WORK,469734,108034800,27-Aug-14,"3,160.14",PLACES FOR PEOPLE - ROEHAMPTON SPORTS CT,SP0006314
WANDSWORTH COUNCIL,PH,Revenue,ADMINISTRATION,SERVICES,PROJECT WORK,20290894,108034800,27-Aug-14,"21,158.00",ROEHAMPTON UNIVERSITY,2005981
WANDSWORTH COUNCIL,NGF HS,Revenue,ENVIRONMENT & COMMUNITY,PRIVATE,GENERAL CONTRACT WORK,466858,110045370,19-Aug-14,420.00,GORDON BROWN,SP0002176
WANDSWORTH COUNCIL,NGF HS,Revenue,ENVIRONMENT & COMMUNITY,PRIVATE,GENERAL CONTRACT WORK,466859,110045370,19-Aug-14,480.00,GORDON BROWN,SP0002176
WANDSWORTH COUNCIL,NGF CS,Revenue,ADMINISTRATION,PRIVATE,REFUSE COLLECTN & PEST CONTROL,20290212,111045500,21-Aug-14,"1,202.69",SITA UK LTD,2003271
WANDSWORTH COUNCIL,NGF CS,Revenue,ADMINISTRATION,PRIVATE,REFUSE COLLECTN & PEST CONTROL,20290214,111045500,21-Aug-14,497.21,SITA UK LTD,2003271
WANDSWORTH COUNCIL,NGF CS,Revenue,ADMINISTRATION,PRIVATE,REFUSE COLLECTN & PEST CONTROL,20290211,111545500,21-Aug-14,670.91,SITA UK LTD,2003271
WANDSWORTH COUNCIL,NGF CS,Revenue,FINANCE,"REPAIRS, ALTERATIONS & MTCE","REPS, ALTS & MTCE-BUILDINGS",468259,11181000L08301,19-Aug-14,560.10,DH CROFTS LTD,SP0000076
WANDSWORTH COUNCIL,NGF CS,Revenue,FINANCE,"REPAIRS, ALTERATIONS & MTCE","REPS, ALTS & MTCE-BUILDINGS",468260,11181000L08301,19-Aug-14,529.43,DH CROFTS LTD,SP0000076
WANDSWORTH COUNCIL,NGF CS,Revenue,FINANCE,"REPAIRS, ALTERATIONS & MTCE","REPS, ALTS & MTCE-BUILDINGS",470741,11181000L08301,21-Aug-14,"2,246.24",DH CROFTS LTD,SP0000076
WANDSWORTH COUNCIL,NGF CS,Revenue,FINANCE,"REPAIRS, ALTERATIONS & MTCE","REPS, ALTS & MTCE-BUILDINGS",472749,11181000L08301,26-Aug-14,652.19,DH CROFTS LTD,SP0000076
WANDSWORTH COUNCIL,NGF CS,Revenue,FINANCE,"REPAIRS, ALTERATIONS & MTCE","REPS, ALTS & MTCE-BUILDINGS",472760,11181000L08301,26-Aug-14,"1,382.65",DH CROFTS LTD,SP0000076
WANDSWORTH COUNCIL,NGF CS,Revenue,FINANCE,"REPAIRS, ALTERATIONS & MTCE","REPS, ALTS & MTCE-BUILDINGS",468261,11181000L08301,19-Aug-14,315.00,DOWNS FLOORING LTD,SP0000833
WANDSWORTH COUNCIL,NGF CS,Revenue,FINANCE,"REPAIRS, ALTERATIONS & MTCE","REPS, ALTS & MTCE-BUILDINGS",468261,11181000L08301,19-Aug-14,270.00,DOWNS FLOORING LTD,SP0000833
WANDSWORTH COUNCIL,NGF CS,Revenue,FINANCE,"REPAIRS, ALTERATIONS & MTCE","REPS, ALTS & MTCE-BUILDINGS",472692,11181000L08301,26-Aug-14,443.16,PHOENIX ECS LTD,SP0001284
WANDSWORTH COUNCIL,NGF CS,Revenue,FINANCE,"REPAIRS, ALTERATIONS & MTCE","REPS, ALTS & MTCE-BUILDINGS",472783,11181000L08305,26-Aug-14,605.00,T BROWN GROUP LTD,SP0001050
WANDSWORTH COUNCIL,NGF CS,Revenue,FINANCE,"REPAIRS, ALTERATIONS & MTCE","REPS, ALTS & MTCE-BUILDINGS",472732,11181000L0830A,26-Aug-14,"1,906.66",DH CROFTS LTD,SP0000076
WANDSWORTH COUNCIL,NGF CS,Revenue,FINANCE,"REPAIRS, ALTERATIONS & MTCE","REPS, ALTS & MTCE-BUILDINGS",472757,11181000L0830A,26-Aug-14,912.34,DH CROFTS LTD,SP0000076
WANDSWORTH COUNCIL,NGF CS,Revenue,FINANCE,"REPAIRS, ALTERATIONS & MTCE","REPS, ALTS & MTCE-BUILDINGS",470665,11181000L0830A,21-Aug-14,460.52,ELECTROLOK COMPANY (SECURITY) LTD,SP0000966
WANDSWORTH COUNCIL,NGF CS,Revenue,FINANCE,"REPAIRS, ALTERATIONS & MTCE","REPS, ALTS & MTCE-BUILDINGS",472693,11181000L0830A,26-Aug-14,"1,370.92",PHOENIX ECS LTD,SP0001284
WANDSWORTH COUNCIL,NGF CS,Revenue,FINANCE,"REPAIRS, ALTERATIONS & MTCE","REPS, ALTS & MTCE-BUILDINGS",472696,11181000L0830A,26-Aug-14,"1,450.09",PHOENIX ECS LTD,SP0001284
WANDSWORTH COUNCIL,NGF CS,Revenue,FINANCE,"REPAIRS, ALTERATIONS & MTCE","REPS, ALTS & MTCE-BUILDINGS",470732,11181000L0830D,21-Aug-14,874.30,DH CROFTS LTD,SP0000076
WANDSWORTH COUNCIL,NGF CS,Revenue,FINANCE,"REPAIRS, ALTERATIONS & MTCE","REPS, ALTS & MTCE-BUILDINGS",472815,11181000L0830K,26-Aug-14,585.00,J CARROLL & SONS,SP0001648
WANDSWORTH COUNCIL,NGF CS,Revenue,FINANCE,"REPAIRS, ALTERATIONS & MTCE","REPS, ALTS & MTCE-BUILDINGS",472706,11181000L0830V,26-Aug-14,"1,504.54",ACR LONDON LTD,SP0000193
WANDSWORTH COUNCIL,NGF CS,Revenue,FINANCE,"REPAIRS, ALTERATIONS & MTCE","REPS, ALTS & MTCE-BUILDINGS",468152,11181000L08331,19-Aug-14,514.00,DEBA UK LTD,SP0005811
WANDSWORTH COUNCIL,NGF CS,Revenue,FINANCE,"REPAIRS, ALTERATIONS & MTCE","REPS, ALTS & MTCE-BUILDINGS",468154,11181000L0833A,19-Aug-14,514.00,DEBA UK LTD,SP0005811
WANDSWORTH COUNCIL,NGF CS,Revenue,FINANCE,"REPAIRS, ALTERATIONS & MTCE","REPS, ALTS & MTCE-BUILDINGS",468108,11181000L0833V,19-Aug-14,550.00,P J P SERVICES LTD,SP0000140
WANDSWORTH COUNCIL,NGF CS,Revenue,ADMINISTRATION,PRIVATE,REFUSE COLLECTN & PEST CONTROL,20290674,112045500,22-Aug-14,50.27,SITA UK LTD,2003271
WANDSWORTH COUNCIL,NGF CS,Revenue,ADMINISTRATION,PRIVATE,REFUSE COLLECTN & PEST CONTROL,20290674,112145500,22-Aug-14,146.66,SITA UK LTD,2003271
WANDSWORTH COUNCIL,NGF CS,Revenue,ADMINISTRATION,PRIVATE,REFUSE COLLECTN & PEST CONTROL,20290674,112245500,22-Aug-14,122.87,SITA UK LTD,2003271
WANDSWORTH COUNCIL,NGF CS,Revenue,ADMINISTRATION,PRIVATE,REFUSE COLLECTN & PEST CONTROL,20290674,112345500,22-Aug-14,358.51,SITA UK LTD,2003271
WANDSWORTH COUNCIL,NGF CS,Revenue,ADMINISTRATION,PRIVATE,REFUSE COLLECTN & PEST CONTROL,20290213,112945500,21-Aug-14,678.31,SITA UK LTD,2003271
WANDSWORTH COUNCIL,NGF CS,Revenue,ADMINISTRATION,CLEANING & DOMESTIC SUPPLIES,CLEANING CONTRACT,20289419,113813020,06-Aug-14,"43,935.12",OCEAN INTEGRATED SERVICES LTD,2009026
WANDSWORTH COUNCIL,NGF CS,Revenue,ADMINISTRATION,CLEANING & DOMESTIC SUPPLIES,WINDOW CLEANING,20289072,113813060,05-Aug-14,"5,510.00",PARKERS CLEANING CONTRACTORS LTD,2004677
WANDSWORTH COUNCIL,NGF CS,Revenue,ENVIRONMENT & COMMUNITY,COMMUNICATIONS & COMP,I.T. EQUIPMENT & MAINTENANCE,457662,114136210,05-Aug-14,619.00,DELL CORPORATION LTD,SP0003352
WANDSWORTH COUNCIL,NGF CDC,Revenue,ADMINISTRATION,"REPAIRS, ALTERATIONS & MTCE",REMOVALS & REORGANISATIONS,20289066,11421014K07117,05-Aug-14,102.00,JT & SONS RELOCATIONS,2018113
WANDSWORTH COUNCIL,NGF CDC,Revenue,ADMINISTRATION,"REPAIRS, ALTERATIONS & MTCE",REMOVALS & REORGANISATIONS,20289066,11421014K07117,05-Aug-14,"1,020.00",JT & SONS RELOCATIONS,2018113
WANDSWORTH COUNCIL,NGF CDC,Revenue,ADMINISTRATION,"REPAIRS, ALTERATIONS & MTCE",REMOVALS & REORGANISATIONS,20289067,11421014K07117,05-Aug-14,720.00,JT & SONS RELOCATIONS,2018113
WANDSWORTH COUNCIL,NGF CDC,Revenue,ADMINISTRATION,"REPAIRS, ALTERATIONS & MTCE",REMOVALS & REORGANISATIONS,20289067,11421014K07117,05-Aug-14,72.00,JT & SONS RELOCATIONS,2018113
WANDSWORTH COUNCIL,NGF CDC,Revenue,ADMINISTRATION,"REPAIRS, ALTERATIONS & MTCE",REMOVALS & REORGANISATIONS,20289070,11421014K07197,05-Aug-14,540.00,JT & SONS RELOCATIONS,2018113
WANDSWORTH COUNCIL,NGF CDC,Revenue,ADMINISTRATION,"REPAIRS, ALTERATIONS & MTCE",REMOVALS & REORGANISATIONS,20290468,11421014K07197,20-Aug-14,"3,021.60",WAGSTAFF INTERIORS GROUP,2004128
WANDSWORTH COUNCIL,NGF CDC,Revenue,ADMINISTRATION,"REPAIRS, ALTERATIONS & MTCE",REMOVALS & REORGANISATIONS,20289063,11421014K07287,05-Aug-14,136.50,JT & SONS RELOCATIONS,2018113
WANDSWORTH COUNCIL,NGF CDC,Revenue,ADMINISTRATION,"REPAIRS, ALTERATIONS & MTCE",REMOVALS & REORGANISATIONS,20289063,11421014K07287,05-Aug-14,"1,365.00",JT & SONS RELOCATIONS,2018113
WANDSWORTH COUNCIL,NGF CDC,Revenue,ADMINISTRATION,"REPAIRS, ALTERATIONS & MTCE",REMOVALS & REORGANISATIONS,20289068,11421014K07287,05-Aug-14,645.00,JT & SONS RELOCATIONS,2018113
WANDSWORTH COUNCIL,NGF CDC,Revenue,ADMINISTRATION,"REPAIRS, ALTERATIONS & MTCE",REMOVALS & REORGANISATIONS,20289069,11421014K07287,05-Aug-14,546.22,JT & SONS RELOCATIONS,2018113
WANDSWORTH COUNCIL,NGF CDC,Revenue,ADMINISTRATION,"REPAIRS, ALTERATIONS & MTCE",REMOVALS & REORGANISATIONS,20290190,11421014K07287,20-Aug-14,"3,851.53",JT & SONS RELOCATIONS,2018113
WANDSWORTH COUNCIL,NGF CDC,Revenue,ADMINISTRATION,"REPAIRS, ALTERATIONS & MTCE",REMOVALS & REORGANISATIONS,20290470,11421014K07287,20-Aug-14,"6,299.81",WAGSTAFF INTERIORS GROUP,2004128
WANDSWORTH COUNCIL,NGF CDC,Revenue,FINANCE,PRIVATE,GENERAL CONTRACT WORK,472733,11424537K07171,26-Aug-14,454.00,DH CROFTS LTD,SP0000076
WANDSWORTH COUNCIL,NGF CDC,Revenue,FINANCE,PRIVATE,GENERAL CONTRACT WORK,472687,11424537K07171,26-Aug-14,430.41,PHOENIX ECS LTD,SP0001284
WANDSWORTH COUNCIL,NGF CDC,Revenue,FINANCE,PRIVATE,GENERAL CONTRACT WORK,472734,11424537K07231,26-Aug-14,"4,726.76",DH CROFTS LTD,SP0000076
WANDSWORTH COUNCIL,NGF CDC,Revenue,FINANCE,PRIVATE,GENERAL CONTRACT WORK,472724,11424537K07241,26-Aug-14,"8,231.86",DH CROFTS LTD,SP0000076
WANDSWORTH COUNCIL,NGF CDC,Revenue,FINANCE,PRIVATE,GENERAL CONTRACT WORK,472731,11424537K07241,26-Aug-14,"6,672.55",DH CROFTS LTD,SP0000076
WANDSWORTH COUNCIL,NGF CDC,Revenue,FINANCE,PRIVATE,GENERAL CONTRACT WORK,472738,11424537K07291,26-Aug-14,"6,702.17",DH CROFTS LTD,SP0000076
WANDSWORTH COUNCIL,NGF CDC,Revenue,FINANCE,PRIVATE,GENERAL CONTRACT WORK,472725,11424537K07301,26-Aug-14,"8,717.74",DH CROFTS LTD,SP0000076
WANDSWORTH COUNCIL,NGF CS,Revenue,ADMINISTRATION,MISC,MISCELLANEOUS EXPENSES,20290884,120138500,27-Aug-14,"1,920.00",CENTRE FOR ASSESSMENT,2017246
WANDSWORTH COUNCIL,NGF CS,Revenue,ENVIRONMENT & COMMUNITY,DIRECT2,AGENCY STAFF,455793,120500510,04-Aug-14,"1,486.80",COBALT CONSULTING (UK) LTD,SP0008002
WANDSWORTH COUNCIL,NGF CS,Revenue,ENVIRONMENT & COMMUNITY,DIRECT2,AGENCY STAFF,455794,120500510,04-Aug-14,"1,486.80",COBALT CONSULTING (UK) LTD,SP0008002
WANDSWORTH COUNCIL,NGF CS,Revenue,ADMINISTRATION,PRINTING STAT & GEN OFFICE EXP,PHOTOCOPYING,20289236,120533380,04-Aug-14,579.80,RICOH UK LTD,2002588
WANDSWORTH COUNCIL,NGF CS,Revenue,ADMINISTRATION,PRIVATE,"CONTRACT 6- HWYS, PLAN ETC",20290089,120646170,15-Aug-14,"2,415.00",A S B LAW,2008363
WANDSWORTH COUNCIL,NGF CS,Revenue,ENVIRONMENT & COMMUNITY,COMMUNICATIONS & COMP,I.T. SOFTWARE,466923,121136240,19-Aug-14,"11,041.87",VIEWDATA COMPUTING LTD,SP0002721
WANDSWORTH COUNCIL,NGF CS,Revenue,ADMINISTRATION,PRINTING STAT & GEN OFFICE EXP,OUTWORK - LITHO,20289457,121333590,06-Aug-14,674.42,FINANCIAL DATA MANAGEMENT LTD,2003241
WANDSWORTH COUNCIL,NGF CS,Revenue,ADMINISTRATION,PRINTING STAT & GEN OFFICE EXP,OUTWORK - LITHO,20289462,121333590,06-Aug-14,"1,065.00",IMPRESS PRINT SERVICES LTD,2008443
WANDSWORTH COUNCIL,NGF CS,Revenue,ADMINISTRATION,PRINTING STAT & GEN OFFICE EXP,OUTWORK - LITHO,20289468,121333590,06-Aug-14,459.00,IMPRESS PRINT SERVICES LTD,2008443
WANDSWORTH COUNCIL,NGF CS,Revenue,ADMINISTRATION,PRINTING STAT & GEN OFFICE EXP,OUTWORK - LITHO,20290759,121333590,22-Aug-14,458.33,IMPRESS PRINT SERVICES LTD,2008443
WANDSWORTH COUNCIL,NGF CS,Revenue,ADMINISTRATION,PRINTING STAT & GEN OFFICE EXP,OUTWORK - LITHO,20290760,121333590,22-Aug-14,451.00,IMPRESS PRINT SERVICES LTD,2008443
WANDSWORTH COUNCIL,NGF CS,Revenue,ADMINISTRATION,PRINTING STAT & GEN OFFICE EXP,OUTWORK - LITHO,20290757,121333590,22-Aug-14,447.93,PURBROOKS LTD,2000088
WANDSWORTH COUNCIL,NGF CS,Revenue,ADMINISTRATION,"EQUIPMENT, FURNITURE & MATS","EQUIPMENT, FURNITURE & MATS",20289822,121430000,13-Aug-14,"1,539.18",CANON,2002540
WANDSWORTH COUNCIL,NGF CS,Revenue,ENVIRONMENT & COMMUNITY,"EQUIPMENT, FURNITURE & MATS",OP COSTS -COLOUR COPIER RENTAL,461332,121430240,11-Aug-14,732.28,CANON,SP0002304
WANDSWORTH COUNCIL,NGF CDC,Revenue,ENVIRONMENT & COMMUNITY,PRINTING STAT & GEN OFFICE EXP,PUBLIC RELATIONS,473671,122033460,29-Aug-14,550.00,ROEHAMPTON TRUST LTD,SP0007371
WANDSWORTH COUNCIL,NGF CS,Revenue,ADMINISTRATION,"EQUIPMENT, FURNITURE & MATS",EQUIP.FURN & MATS-REPS & MTCE,20290559,122130010,21-Aug-14,"3,002.68",NEOPOST LTD,2007384
WANDSWORTH COUNCIL,NGF CS,Revenue,ADMINISTRATION,COMMUNICATIONS & COMP,COMMUNICATIONS - POSTAGE,20289617,122136000,12-Aug-14,"1,079.91",ROYAL MAIL,2009044
WANDSWORTH COUNCIL,NGF CS,Revenue,ADMINISTRATION,COMMUNICATIONS & COMP,COMMUNICATIONS - POSTAGE,20290194,122136000,21-Aug-14,"2,097.34",ROYAL MAIL,2009044
WANDSWORTH COUNCIL,NGF CS,Revenue,ADMINISTRATION,COMMUNICATIONS & COMP,COMMUNICATIONS - POSTAGE,20290195,122136000,21-Aug-14,997.91,ROYAL MAIL,2009044
WANDSWORTH COUNCIL,NGF CS,Revenue,ADMINISTRATION,COMMUNICATIONS & COMP,COMMUNICATIONS - POSTAGE,20289074,122136000,05-Aug-14,894.24,TNT POST LONDON LTD,2011033
WANDSWORTH COUNCIL,NGF CS,Revenue,ADMINISTRATION,COMMUNICATIONS & COMP,COMMUNICATIONS - POSTAGE,20289616,122136000,12-Aug-14,"2,248.43",TNT POST LONDON LTD,2011033
WANDSWORTH COUNCIL,NGF CS,Revenue,ADMINISTRATION,COMMUNICATIONS & COMP,COMMUNICATIONS - POSTAGE,20290206,122136000,21-Aug-14,"1,945.59",TNT POST LONDON LTD,2011033
WANDSWORTH COUNCIL,NGF CS,Revenue,ADMINISTRATION,COMMUNICATIONS & COMP,COMMUNICATIONS - POSTAGE,20290796,122136000,22-Aug-14,"5,922.72",TNT POST LONDON LTD,2011033
WANDSWORTH COUNCIL,NGF CS,Revenue,ADMINISTRATION,MISC,MISCELLANEOUS EXPENSES,20290561,122138500,21-Aug-14,734.50,MAIL SOLUTIONS UK LTD,2005796
WANDSWORTH COUNCIL,NGF CS,Revenue,ADMINISTRATION,INDIRECT,IN-SERVICE TRAINING-SLA,20290083,123000740,15-Aug-14,550.00,Astun Technology Ltd,2991000
WANDSWORTH COUNCIL,NGF CS,Revenue,ADMINISTRATION,INDIRECT,IN-SERVICE TRAINING-SLA,20290879,123000740,27-Aug-14,575.00,PLANET TRAINGING LTD,2019354
WANDSWORTH COUNCIL,NGF CS,Revenue,ENVIRONMENT & COMMUNITY,INDIRECT,IN-SERVICE TRAINING-SLA,464433,123000740,13-Aug-14,798.00,SKILLS TEAM LTD,SP0007105
WANDSWORTH COUNCIL,NGF CS,Revenue,ENVIRONMENT & COMMUNITY,INDIRECT,IN-SERVICE TRAINING-SLA,455990,123000740,06-Aug-14,590.00,TRAINING SYNERGY LTD,SP0000312
WANDSWORTH COUNCIL,NGF CS,Revenue,ENVIRONMENT & COMMUNITY,INDIRECT,TRAINING - EXTERNAL COURSES,466863,123000770,19-Aug-14,"9,320.00",PERIDOT PARTNERS,SP0008300
WANDSWORTH COUNCIL,NGF CS,Revenue,FINANCE,"EQUIPMENT, FURNITURE & MATS","EQUIPMENT, FURNITURE & MATS",472726,123030000,26-Aug-14,"5,094.63",DH CROFTS LTD,SP0000076
WANDSWORTH COUNCIL,NGF CS,Revenue,FINANCE,"EQUIPMENT, FURNITURE & MATS","EQUIPMENT, FURNITURE & MATS",468264,123030000,19-Aug-14,300.00,DOWNS FLOORING LTD,SP0000833
WANDSWORTH COUNCIL,NGF CS,Revenue,FINANCE,"EQUIPMENT, FURNITURE & MATS","EQUIPMENT, FURNITURE & MATS",468264,123030000,19-Aug-14,660.00,DOWNS FLOORING LTD,SP0000833
WANDSWORTH COUNCIL,NGF CS,Revenue,ADMINISTRATION,GRANTS & SUBSCRIPTIONS,SUBSCRIPTIONS,20289341,123037640,04-Aug-14,"2,100.00",LONDON BOROUGH OF HARINGEY,2018143
WANDSWORTH COUNCIL,NGF CS,Revenue,ADMINISTRATION,INDIRECT,CHILDCARE VOUCHERS,20289642,123200650,08-Aug-14,105.66,COMPUTERSHARE VOUCHER SERVICES,2007281
WANDSWORTH COUNCIL,NGF CS,Revenue,ADMINISTRATION,INDIRECT,CHILDCARE VOUCHERS,20290546,123200650,20-Aug-14,590.39,COMPUTERSHARE VOUCHER SERVICES,2007281
WANDSWORTH COUNCIL,NGF CS,Revenue,ADMINISTRATION,INDIRECT,CHILDCARE VOUCHERS,20290678,123200650,22-Aug-14,21.87,COMPUTERSHARE VOUCHER SERVICES,2007281
WANDSWORTH COUNCIL,NGF CS,Revenue,ADMINISTRATION,INDIRECT,CHILDCARE VOUCHERS,20290679,123200650,22-Aug-14,121.41,COMPUTERSHARE VOUCHER SERVICES,2007281
WANDSWORTH COUNCIL,NGF CS,Revenue,ADMINISTRATION,INDIRECT,CHILDCARE VOUCHERS,20290680,123200650,22-Aug-14,"1,109.60",COMPUTERSHARE VOUCHER SERVICES,2007281
WANDSWORTH COUNCIL,NGF CS,Revenue,ENVIRONMENT & COMMUNITY,INDIRECT,TRAINING - APPROVED QUALS,464434,123200760,13-Aug-14,499.00,SKILLS TEAM LTD,SP0007105
WANDSWORTH COUNCIL,NGF CS,Revenue,ADMINISTRATION,SERVICES,OHS SESSIONAL DOCTOR,20289562,123234690,08-Aug-14,"7,545.12",HJM ASSOCIATES,2011293
WANDSWORTH COUNCIL,NGF CS,Revenue,ENVIRONMENT & COMMUNITY,MISC,MISCELLANEOUS EXPENSES,462128,123238500,12-Aug-14,"2,377.25",EDENRED UK GROUP LTD,SP0000238
WANDSWORTH COUNCIL,NGF CDC,Revenue,ENVIRONMENT & COMMUNITY,PRINTING STAT & GEN OFFICE EXP,PRINTING AND STATIONERY,474323,124033420,29-Aug-14,139.14,OFFICE DEPOT UK LTD,SP0000092
WANDSWORTH COUNCIL,NGF CDC,Revenue,ENVIRONMENT & COMMUNITY,PRINTING STAT & GEN OFFICE EXP,PRINTING AND STATIONERY,474323,124033420,29-Aug-14,139.14,OFFICE DEPOT UK LTD,SP0000092
WANDSWORTH COUNCIL,NGF CDC,Revenue,ENVIRONMENT & COMMUNITY,PRINTING STAT & GEN OFFICE EXP,PRINTING AND STATIONERY,474323,124033420,29-Aug-14,133.44,OFFICE DEPOT UK LTD,SP0000092
WANDSWORTH COUNCIL,NGF CDC,Revenue,ENVIRONMENT & COMMUNITY,PRINTING STAT & GEN OFFICE EXP,PRINTING AND STATIONERY,474323,124033420,29-Aug-14,277.48,OFFICE DEPOT UK LTD,SP0000092
WANDSWORTH COUNCIL,NGF CDC,Revenue,ENVIRONMENT & COMMUNITY,PRINTING STAT & GEN OFFICE EXP,PRINTING AND STATIONERY,474323,124033420,29-Aug-14,2.12,OFFICE DEPOT UK LTD,SP0000092
WANDSWORTH COUNCIL,NGF CDC,Revenue,ADMINISTRATION,PRINTING STAT & GEN OFFICE EXP,PRINTING AND STATIONERY,20290011,12413342K01841,13-Aug-14,800.00,FINANCIAL DATA MANAGEMENT LTD,2003241
WANDSWORTH COUNCIL,NGF CDC,Revenue,ADMINISTRATION,PRINTING STAT & GEN OFFICE EXP,PRINTING AND STATIONERY,20290012,12413342K01841,13-Aug-14,"16,200.32",FINANCIAL DATA MANAGEMENT LTD,2003241
WANDSWORTH COUNCIL,NGF CDC,Revenue,ADMINISTRATION,PRINTING STAT & GEN OFFICE EXP,PRINTING AND STATIONERY,20290012,12413342K01842,13-Aug-14,"5,085.80",FINANCIAL DATA MANAGEMENT LTD,2003241
WANDSWORTH COUNCIL,NGF CDC,Revenue,ADMINISTRATION,COMMUNICATIONS & COMP,COMMUNICATIONS - POSTAGE,20290006,12413600K0184N,13-Aug-14,306.50,ROYAL MAIL,2009044
WANDSWORTH COUNCIL,NGF CDC,Revenue,ADMINISTRATION,COMMUNICATIONS & COMP,COMMUNICATIONS - POSTAGE,20290006,12413600K0184P,13-Aug-14,12.18,ROYAL MAIL,2009044
WANDSWORTH COUNCIL,NGF CDC,Revenue,ADMINISTRATION,COMMUNICATIONS & COMP,COMMUNICATIONS - POSTAGE,20290006,12413600K0184Q,13-Aug-14,272.00,ROYAL MAIL,2009044
WANDSWORTH COUNCIL,NGF CDC,Revenue,ADMINISTRATION,COMMUNICATIONS & COMP,MOBILE PHONES,20290655,12413638K01845,21-Aug-14,"12,804.09",FINANCIAL DATA MANAGEMENT LTD,2003241
WANDSWORTH COUNCIL,NGF CS,Revenue,ADMINISTRATION,PRINTING STAT & GEN OFFICE EXP,PHOTOCOPYING,20289236,124733380,04-Aug-14,95.20,RICOH UK LTD,2002588
WANDSWORTH COUNCIL,NGF CS,Revenue,FINANCE,COMMUNICATIONS & COMP,I.T. EQUIPMENT & MAINTENANCE,472759,124736210,26-Aug-14,"2,267.59",DH CROFTS LTD,SP0000076
WANDSWORTH COUNCIL,NGF CS,Revenue,ADMINISTRATION,MISC,MISCELLANEOUS EXPENSES,20290006,124738500,13-Aug-14,104.00,ROYAL MAIL,2009044
WANDSWORTH COUNCIL,PH,Revenue,CHILDREN'S,DIRECT2,AGENCY STAFF,20289347,125000510,04-Aug-14,543.12,MATRIX SCM LIMITED,2014926
WANDSWORTH COUNCIL,PH,Revenue,CHILDREN'S,DIRECT2,AGENCY STAFF,20289394,125000510,05-Aug-14,543.12,MATRIX SCM LIMITED,2014926
WANDSWORTH COUNCIL,PH,Revenue,CHILDREN'S,DIRECT2,AGENCY STAFF,20289422,125000510,06-Aug-14,535.68,MATRIX SCM LIMITED,2014926
WANDSWORTH COUNCIL,PH,Revenue,ADMINISTRATION,SERVICES,PROJECT WORK,20289280,125134800,04-Aug-14,"2,344.62",PLACES FOR THE PEOPLE GROUP LTD,2000117
WANDSWORTH COUNCIL,PH,Revenue,ADMINISTRATION,SERVICES,PROJECT WORK,20289327,125134800,04-Aug-14,"2,089.78",PLACES FOR THE PEOPLE GROUP LTD,2000117
WANDSWORTH COUNCIL,PH,Revenue,ADMINISTRATION,SERVICES,PROJECT WORK,20289328,125134800,04-Aug-14,500.00,PLACES FOR THE PEOPLE GROUP LTD,2000117
WANDSWORTH COUNCIL,PH,Revenue,ADMINISTRATION,SERVICES,PROJECT WORK,20289329,125134800,04-Aug-14,571.20,PLACES FOR THE PEOPLE GROUP LTD,2000117
WANDSWORTH COUNCIL,PH,Revenue,ADMINISTRATION,SERVICES,PROJECT WORK,20289330,125134800,04-Aug-14,"3,160.14",PLACES FOR THE PEOPLE GROUP LTD,2000117
WANDSWORTH COUNCIL,PH,Revenue,ADMINISTRATION,SERVICES,PROJECT WORK,20289338,125134800,04-Aug-14,968.43,PLACES FOR THE PEOPLE GROUP LTD,2000117
WANDSWORTH COUNCIL,NGF CS,Revenue,FINANCE,DIRECT2,AGENCY STAFF,20289127,126000510,04-Aug-14,"1,179.84",MATRIX SCM LIMITED,2014926
WANDSWORTH COUNCIL,NGF CS,Revenue,FINANCE,DIRECT2,AGENCY STAFF,20289127,126000510,04-Aug-14,"1,095.93",MATRIX SCM LIMITED,2014926
WANDSWORTH COUNCIL,NGF CS,Revenue,FINANCE,DIRECT2,AGENCY STAFF,20289127,126000510,04-Aug-14,"2,041.01",MATRIX SCM LIMITED,2014926
WANDSWORTH COUNCIL,NGF CS,Revenue,FINANCE,DIRECT2,AGENCY STAFF,20289127,126000510,04-Aug-14,414.32,MATRIX SCM LIMITED,2014926
WANDSWORTH COUNCIL,NGF CS,Revenue,FINANCE,DIRECT2,AGENCY STAFF,20289127,126000510,04-Aug-14,"1,978.49",MATRIX SCM LIMITED,2014926
WANDSWORTH COUNCIL,NGF CS,Revenue,FINANCE,DIRECT2,AGENCY STAFF,20289127,126000510,04-Aug-14,"1,969.82",MATRIX SCM LIMITED,2014926
WANDSWORTH COUNCIL,NGF CS,Revenue,FINANCE,DIRECT2,AGENCY STAFF,20289621,126000510,07-Aug-14,"2,011.60",MATRIX SCM LIMITED,2014926
WANDSWORTH COUNCIL,NGF CS,Revenue,FINANCE,DIRECT2,AGENCY STAFF,20289621,126000510,07-Aug-14,"1,474.80",MATRIX SCM LIMITED,2014926
WANDSWORTH COUNCIL,NGF CS,Revenue,FINANCE,DIRECT2,AGENCY STAFF,20289621,126000510,07-Aug-14,"2,753.19",MATRIX SCM LIMITED,2014926
WANDSWORTH COUNCIL,NGF CS,Revenue,FINANCE,DIRECT2,AGENCY STAFF,20290096,126000510,14-Aug-14,"1,963.79",MATRIX SCM LIMITED,2014926
WANDSWORTH COUNCIL,NGF CS,Revenue,FINANCE,DIRECT2,AGENCY STAFF,20290096,126000510,14-Aug-14,"1,958.10",MATRIX SCM LIMITED,2014926
WANDSWORTH COUNCIL,NGF CS,Revenue,FINANCE,DIRECT2,AGENCY STAFF,20290096,126000510,14-Aug-14,"2,673.00",MATRIX SCM LIMITED,2014926
WANDSWORTH COUNCIL,NGF CS,Revenue,FINANCE,DIRECT2,AGENCY STAFF,20290096,126000510,14-Aug-14,"1,474.80",MATRIX SCM LIMITED,2014926
WANDSWORTH COUNCIL,NGF CS,Revenue,FINANCE,DIRECT2,AGENCY STAFF,20290639,126000510,22-Aug-14,"1,946.37",MATRIX SCM LIMITED,2014926
WANDSWORTH COUNCIL,NGF CS,Revenue,FINANCE,DIRECT2,AGENCY STAFF,20290639,126000510,22-Aug-14,"2,074.11",MATRIX SCM LIMITED,2014926
WANDSWORTH COUNCIL,NGF CS,Revenue,FINANCE,DIRECT2,AGENCY STAFF,20290639,126000510,22-Aug-14,"1,793.94",MATRIX SCM LIMITED,2014926
WANDSWORTH COUNCIL,NGF CS,Revenue,FINANCE,DIRECT2,AGENCY STAFF,20290639,126000510,22-Aug-14,"1,364.19",MATRIX SCM LIMITED,2014926
WANDSWORTH COUNCIL,NGF CS,Revenue,FINANCE,DIRECT2,AGENCY STAFF,20290639,126000510,22-Aug-14,"3,127.41",MATRIX SCM LIMITED,2014926
WANDSWORTH COUNCIL,NGF CS,Revenue,ENVIRONMENT & COMMUNITY,COMMUNICATIONS & COMP,I.T. EQUIPMENT & MAINTENANCE,455804,126036210,06-Aug-14,9.50,TOTAL SECURITY PROTECTION LTD,SP0008052
WANDSWORTH COUNCIL,NGF CS,Revenue,ENVIRONMENT & COMMUNITY,COMMUNICATIONS & COMP,I.T. EQUIPMENT & MAINTENANCE,455804,126036210,06-Aug-14,850.00,TOTAL SECURITY PROTECTION LTD,SP0008052
WANDSWORTH COUNCIL,NGF CS,Revenue,ADMINISTRATION,"EQUIPMENT, FURNITURE & MATS","EQUIPMENT, FURNITURE & MATS",20290509,126330000,21-Aug-14,"1,005.00",CABLE & WIRELESS COMMUNICATIONS,2009023
WANDSWORTH COUNCIL,NGF CS,Revenue,ADMINISTRATION,"EQUIPMENT, FURNITURE & MATS","EQUIPMENT, FURNITURE & MATS",20290641,126330000,21-Aug-14,"2,369.89",CABLE & WIRELESS COMMUNICATIONS,2009023
WANDSWORTH COUNCIL,NGF CS,Revenue,ADMINISTRATION,"EQUIPMENT, FURNITURE & MATS","EQUIPMENT, FURNITURE & MATS",20290507,126330000,21-Aug-14,556.00,INCOM TELECOMMUNICATIONS,2003864
WANDSWORTH COUNCIL,NGF CS,Revenue,ADMINISTRATION,"EQUIPMENT, FURNITURE & MATS","EQUIPMENT, FURNITURE & MATS",20290506,126330000,21-Aug-14,"1,067.08",RED BOX RECORDERS LTD,2010286
WANDSWORTH COUNCIL,NGF CS,Revenue,ADMINISTRATION,"EQUIPMENT, FURNITURE & MATS","EQUIPMENT, FURNITURE & MATS",20290512,126530000,21-Aug-14,950.00,MTI TECHNOLOGY LIMITED,2015773
WANDSWORTH COUNCIL,NGF CS,Revenue,ADMINISTRATION,"EQUIPMENT, FURNITURE & MATS","EQUIPMENT, FURNITURE & MATS",20289673,126530000,08-Aug-14,487.50,PHOENIX ECS LTD,2010624
WANDSWORTH COUNCIL,NGF CS,Revenue,ADMINISTRATION,"EQUIPMENT, FURNITURE & MATS","EQUIPMENT, FURNITURE & MATS",20289240,126530000,04-Aug-14,863.34,SOFTWARE BOX LTD,2016911
WANDSWORTH COUNCIL,NGF CS,Revenue,ADMINISTRATION,COMMUNICATIONS & COMP,I.T. SOFTWARE,20290981,126536240,28-Aug-14,785.00,COMPUTRAD (EUROPE) LTD,2017396
WANDSWORTH COUNCIL,NGF CS,Revenue,ENVIRONMENT & COMMUNITY,COMMUNICATIONS & COMP,I.T. SLA RECHARGE,462124,126836230,13-Aug-14,"15,252.00",DORSET SOFTWARE SERVICES LIMITED,SP0001072
WANDSWORTH COUNCIL,NGF CS,Revenue,ENVIRONMENT & COMMUNITY,COMMUNICATIONS & COMP,I.T. - SAFFRON,457175,126836260,07-Aug-14,312.14,BANNER MANAGED COMMUNICATION,SP0003555
WANDSWORTH COUNCIL,NGF CS,Revenue,ENVIRONMENT & COMMUNITY,COMMUNICATIONS & COMP,I.T. - SAFFRON,465403,126836260,18-Aug-14,"1,500.00",RANDOM STORM LTD,SP0003937
WANDSWORTH COUNCIL,NGF CS,Revenue,ENVIRONMENT & COMMUNITY,COMMUNICATIONS & COMP,I.T. - SYSTEMS DEVELOPMENT,471281,126836270,27-Aug-14,710.00,CIVICA UK LTD,SP0000394
WANDSWORTH COUNCIL,NGF CS,Revenue,ENVIRONMENT & COMMUNITY,COMMUNICATIONS & COMP,I.T. - SYSTEMS DEVELOPMENT,471283,126836270,27-Aug-14,"1,065.00",CIVICA UK LTD,SP0000394
WANDSWORTH COUNCIL,NGF CS,Revenue,ENVIRONMENT & COMMUNITY,COMMUNICATIONS & COMP,I.T. - SYSTEMS DEVELOPMENT,471286,126836270,27-Aug-14,"1,420.00",CIVICA UK LTD,SP0000394
WANDSWORTH COUNCIL,NGF CS,Revenue,ENVIRONMENT & COMMUNITY,SERVICES,PROJECT WORK,465411,127034800,18-Aug-14,"2,906.00",STORM FAMILY CENTRE LTD,SP0002613
WANDSWORTH COUNCIL,CS,Revenue,ENVIRONMENT & COMMUNITY,DIRECT2,AGENCY STAFF,471090,128000510,26-Aug-14,"17,981.36",MATRIX SCM LIMITED,SP0004572
WANDSWORTH COUNCIL,CS,Revenue,ENVIRONMENT & COMMUNITY,DIRECT2,AGENCY STAFF,471575,128000510,27-Aug-14,"20,266.42",MATRIX SCM LIMITED,SP0004572
WANDSWORTH COUNCIL,CS,Revenue,ENVIRONMENT & COMMUNITY,INDIRECT,STAFF ADVERTISING - VACANCIES,455998,128000960,07-Aug-14,"1,416.00",PENNA PLC,SP0006290
WANDSWORTH COUNCIL,CS,Revenue,ENVIRONMENT & COMMUNITY,INDIRECT,STAFF ADVERTISING - VACANCIES,457186,128000960,07-Aug-14,"1,258.00",PENNA PLC,SP0006290
WANDSWORTH COUNCIL,CS,Revenue,ENVIRONMENT & COMMUNITY,INDIRECT,STAFF ADVERTISING - VACANCIES,457187,128000960,19-Aug-14,"2,462.25",PENNA PLC,SP0006290
WANDSWORTH COUNCIL,CS,Revenue,ENVIRONMENT & COMMUNITY,INDIRECT,STAFF ADVERTISING - VACANCIES,457195,128000960,07-Aug-14,"2,918.20",PENNA PLC,SP0006290
WANDSWORTH COUNCIL,CS,Revenue,ENVIRONMENT & COMMUNITY,INDIRECT,STAFF ADVERTISING - VACANCIES,462966,128000960,12-Aug-14,"1,771.00",PENNA PLC,SP0006290
WANDSWORTH COUNCIL,CS,Revenue,ENVIRONMENT & COMMUNITY,INDIRECT,STAFF ADVERTISING - VACANCIES,465366,128000960,18-Aug-14,"2,514.12",PENNA PLC,SP0006290
WANDSWORTH COUNCIL,CS,Revenue,ENVIRONMENT & COMMUNITY,INDIRECT,STAFF ADVERTISING - VACANCIES,471535,128000960,26-Aug-14,540.00,PENNA PLC,SP0006290
WANDSWORTH COUNCIL,CS,Revenue,ENVIRONMENT & COMMUNITY,INDIRECT,STAFF ADVERTISING - VACANCIES,473648,128000960,29-Aug-14,"1,222.20",PENNA PLC,SP0006290
WANDSWORTH COUNCIL,CS,Revenue,ENVIRONMENT & COMMUNITY,PRINTING STAT & GEN OFFICE EXP,PUBLICITY,455802,12803347K01877,04-Aug-14,547.20,NEWSQUEST MEDIA GROUP,SP0002120
WANDSWORTH COUNCIL,CS,Revenue,ENVIRONMENT & COMMUNITY,PRINTING STAT & GEN OFFICE EXP,PUBLICITY,464095,12803347K01877,12-Aug-14,547.20,NEWSQUEST MEDIA GROUP,SP0002120
WANDSWORTH COUNCIL,ASC,Revenue,SOCIAL SERVICES,HIRE,HIRE - TRANSPORT,463630,130020410,12-Aug-14,"1,513.00",BECKETT CORPORATION LTD T/A TINAS CARS,SP0000729
WANDSWORTH COUNCIL,ASC,Revenue,SOCIAL SERVICES,PRIVATE,EXTERNAL HOMECARE,465780,130045300,14-Aug-14,"1,576.04",PAUL EYLES,SP0008168
WANDSWORTH COUNCIL,ASC,Revenue,SOCIAL SERVICES,HIRE,HIRE - TRANSPORT,457812,130220410,05-Aug-14,672.00,A STAR TRANSPORT LTD,SP0000866
WANDSWORTH COUNCIL,ASC,Revenue,SOCIAL SERVICES,HIRE,HIRE - TRANSPORT,457825,130220410,05-Aug-14,440.00,A STAR TRANSPORT LTD,SP0000866
WANDSWORTH COUNCIL,ASC,Revenue,SOCIAL SERVICES,HIRE,HIRE - TRANSPORT,457828,130220410,05-Aug-14,500.00,A STAR TRANSPORT LTD,SP0000866
WANDSWORTH COUNCIL,ASC,Revenue,SOCIAL SERVICES,HIRE,HIRE - TRANSPORT,457831,130220410,05-Aug-14,456.00,A STAR TRANSPORT LTD,SP0000866
WANDSWORTH COUNCIL,ASC,Revenue,SOCIAL SERVICES,HIRE,HIRE - TRANSPORT,457832,130220410,05-Aug-14,720.00,A STAR TRANSPORT LTD,SP0000866
WANDSWORTH COUNCIL,ASC,Revenue,SOCIAL SERVICES,HIRE,HIRE - TRANSPORT,457837,130220410,05-Aug-14,800.00,A STAR TRANSPORT LTD,SP0000866
WANDSWORTH COUNCIL,ASC,Revenue,SOCIAL SERVICES,HIRE,HIRE - TRANSPORT,457838,130220410,05-Aug-14,500.00,A STAR TRANSPORT LTD,SP0000866
WANDSWORTH COUNCIL,ASC,Revenue,SOCIAL SERVICES,HIRE,HIRE - TRANSPORT,457841,130220410,05-Aug-14,900.00,A STAR TRANSPORT LTD,SP0000866
WANDSWORTH COUNCIL,ASC,Revenue,SOCIAL SERVICES,HIRE,HIRE - TRANSPORT,457865,130220410,05-Aug-14,564.00,A STAR TRANSPORT LTD,SP0000866
WANDSWORTH COUNCIL,ASC,Revenue,SOCIAL SERVICES,HIRE,HIRE - TRANSPORT,457871,130220410,05-Aug-14,506.00,A STAR TRANSPORT LTD,SP0000866
WANDSWORTH COUNCIL,ASC,Revenue,SOCIAL SERVICES,HIRE,HIRE - TRANSPORT,457876,130220410,05-Aug-14,433.30,A STAR TRANSPORT LTD,SP0000866
WANDSWORTH COUNCIL,ASC,Revenue,SOCIAL SERVICES,HIRE,HIRE - TRANSPORT,457877,130220410,05-Aug-14,433.30,A STAR TRANSPORT LTD,SP0000866
WANDSWORTH COUNCIL,ASC,Revenue,SOCIAL SERVICES,HIRE,HIRE - TRANSPORT,457881,130220410,05-Aug-14,"1,160.00",A STAR TRANSPORT LTD,SP0000866
WANDSWORTH COUNCIL,ASC,Revenue,SOCIAL SERVICES,HIRE,HIRE - TRANSPORT,457889,130220410,05-Aug-14,960.00,A STAR TRANSPORT LTD,SP0000866
WANDSWORTH COUNCIL,ASC,Revenue,SOCIAL SERVICES,HIRE,HIRE - TRANSPORT,457890,130220410,05-Aug-14,500.00,A STAR TRANSPORT LTD,SP0000866
WANDSWORTH COUNCIL,ASC,Revenue,SOCIAL SERVICES,HIRE,HIRE - TRANSPORT,457891,130220410,05-Aug-14,704.00,A STAR TRANSPORT LTD,SP0000866
WANDSWORTH COUNCIL,ASC,Revenue,SOCIAL SERVICES,HIRE,HIRE - TRANSPORT,457897,130220410,05-Aug-14,444.00,A STAR TRANSPORT LTD,SP0000866
WANDSWORTH COUNCIL,ASC,Revenue,SOCIAL SERVICES,HIRE,HIRE - TRANSPORT,457900,130220410,05-Aug-14,900.00,A STAR TRANSPORT LTD,SP0000866
WANDSWORTH COUNCIL,ASC,Revenue,SOCIAL SERVICES,HIRE,HIRE - TRANSPORT,463619,130220410,12-Aug-14,808.00,A STAR TRANSPORT LTD,SP0000866
WANDSWORTH COUNCIL,ASC,Revenue,SOCIAL SERVICES,HIRE,HIRE - TRANSPORT,469977,130220410,20-Aug-14,440.00,A STAR TRANSPORT LTD,SP0000866
WANDSWORTH COUNCIL,ASC,Revenue,SOCIAL SERVICES,HIRE,HIRE - TRANSPORT,469979,130220410,20-Aug-14,475.00,A STAR TRANSPORT LTD,SP0000866
WANDSWORTH COUNCIL,ASC,Revenue,SOCIAL SERVICES,HIRE,HIRE - TRANSPORT,469981,130220410,20-Aug-14,540.00,A STAR TRANSPORT LTD,SP0000866
WANDSWORTH COUNCIL,ASC,Revenue,SOCIAL SERVICES,HIRE,HIRE - TRANSPORT,469983,130220410,20-Aug-14,560.00,A STAR TRANSPORT LTD,SP0000866
WANDSWORTH COUNCIL,ASC,Revenue,SOCIAL SERVICES,HIRE,HIRE - TRANSPORT,469984,130220410,20-Aug-14,500.00,A STAR TRANSPORT LTD,SP0000866
WANDSWORTH COUNCIL,ASC,Revenue,SOCIAL SERVICES,HIRE,HIRE - TRANSPORT,469985,130220410,20-Aug-14,500.00,A STAR TRANSPORT LTD,SP0000866
WANDSWORTH COUNCIL,ASC,Revenue,SOCIAL SERVICES,HIRE,HIRE - TRANSPORT,469988,130220410,20-Aug-14,630.00,A STAR TRANSPORT LTD,SP0000866
WANDSWORTH COUNCIL,ASC,Revenue,SOCIAL SERVICES,HIRE,HIRE - TRANSPORT,470013,130220410,20-Aug-14,"1,160.00",A STAR TRANSPORT LTD,SP0000866
WANDSWORTH COUNCIL,ASC,Revenue,SOCIAL SERVICES,HIRE,HIRE - TRANSPORT,470018,130220410,20-Aug-14,960.00,A STAR TRANSPORT LTD,SP0000866
WANDSWORTH COUNCIL,ASC,Revenue,SOCIAL SERVICES,HIRE,HIRE - TRANSPORT,470019,130220410,20-Aug-14,500.00,A STAR TRANSPORT LTD,SP0000866
WANDSWORTH COUNCIL,ASC,Revenue,SOCIAL SERVICES,HIRE,HIRE - TRANSPORT,470020,130220410,20-Aug-14,572.00,A STAR TRANSPORT LTD,SP0000866
WANDSWORTH COUNCIL,ASC,Revenue,SOCIAL SERVICES,HIRE,HIRE - TRANSPORT,470022,130220410,20-Aug-14,444.00,A STAR TRANSPORT LTD,SP0000866
WANDSWORTH COUNCIL,ASC,Revenue,SOCIAL SERVICES,HIRE,HIRE - TRANSPORT,470025,130220410,20-Aug-14,630.00,A STAR TRANSPORT LTD,SP0000866
WANDSWORTH COUNCIL,ASC,Revenue,SOCIAL SERVICES,HIRE,HIRE - TRANSPORT,470027,130220410,20-Aug-14,454.00,A STAR TRANSPORT LTD,SP0000866
WANDSWORTH COUNCIL,ASC,Revenue,SOCIAL SERVICES,HIRE,HIRE - TRANSPORT,472287,130220410,22-Aug-14,520.00,A STAR TRANSPORT LTD,SP0000866
WANDSWORTH COUNCIL,ASC,Revenue,SOCIAL SERVICES,HIRE,HIRE - TRANSPORT,472291,130220410,22-Aug-14,682.00,A STAR TRANSPORT LTD,SP0000866
WANDSWORTH COUNCIL,ASC,Revenue,SOCIAL SERVICES,HIRE,HIRE - TRANSPORT,472296,130220410,22-Aug-14,960.00,A STAR TRANSPORT LTD,SP0000866
WANDSWORTH COUNCIL,ASC,Revenue,SOCIAL SERVICES,HIRE,HIRE - TRANSPORT,472320,130220410,22-Aug-14,440.00,A STAR TRANSPORT LTD,SP0000866
WANDSWORTH COUNCIL,ASC,Revenue,SOCIAL SERVICES,HIRE,HIRE - TRANSPORT,472322,130220410,22-Aug-14,500.00,A STAR TRANSPORT LTD,SP0000866
WANDSWORTH COUNCIL,ASC,Revenue,SOCIAL SERVICES,HIRE,HIRE - TRANSPORT,472324,130220410,22-Aug-14,500.00,A STAR TRANSPORT LTD,SP0000866
WANDSWORTH COUNCIL,ASC,Revenue,SOCIAL SERVICES,HIRE,HIRE - TRANSPORT,472325,130220410,22-Aug-14,500.00,A STAR TRANSPORT LTD,SP0000866
WANDSWORTH COUNCIL,ASC,Revenue,SOCIAL SERVICES,HIRE,HIRE - TRANSPORT,472328,130220410,22-Aug-14,420.00,A STAR TRANSPORT LTD,SP0000866
WANDSWORTH COUNCIL,ASC,Revenue,SOCIAL SERVICES,HIRE,HIRE - TRANSPORT,463625,130220410,12-Aug-14,502.92,BECKETT CORPORATION LTD T/A TINAS CARS,SP0000729
WANDSWORTH COUNCIL,ASC,Revenue,SOCIAL SERVICES,HIRE,HIRE - TRANSPORT,463628,130220410,12-Aug-14,594.36,BECKETT CORPORATION LTD T/A TINAS CARS,SP0000729
WANDSWORTH COUNCIL,ASC,Revenue,SOCIAL SERVICES,HIRE,HIRE - TRANSPORT,463633,130220410,12-Aug-14,429.44,BECKETT CORPORATION LTD T/A TINAS CARS,SP0000729
WANDSWORTH COUNCIL,ASC,Revenue,SOCIAL SERVICES,HIRE,HIRE - TRANSPORT,463636,130220410,12-Aug-14,"1,024.76",BECKETT CORPORATION LTD T/A TINAS CARS,SP0000729
WANDSWORTH COUNCIL,ASC,Revenue,SOCIAL SERVICES,HIRE,HIRE - TRANSPORT,463637,130220410,12-Aug-14,"1,639.20",BECKETT CORPORATION LTD T/A TINAS CARS,SP0000729
WANDSWORTH COUNCIL,ASC,Revenue,SOCIAL SERVICES,HIRE,HIRE - TRANSPORT,463639,130220410,12-Aug-14,524.22,BECKETT CORPORATION LTD T/A TINAS CARS,SP0000729
WANDSWORTH COUNCIL,ASC,Revenue,SOCIAL SERVICES,HIRE,HIRE - TRANSPORT,472285,130220410,22-Aug-14,"2,000.00",BECKETT CORPORATION LTD T/A TINAS CARS,SP0000729
WANDSWORTH COUNCIL,ASC,Revenue,SOCIAL SERVICES,HIRE,HIRE - TRANSPORT,463609,130220410,12-Aug-14,"1,168.00",GALPINS SERVICES LTD,SP0001368
WANDSWORTH COUNCIL,ASC,Revenue,SOCIAL SERVICES,HIRE,HIRE - TRANSPORT,463610,130220410,12-Aug-14,"1,264.00",GALPINS SERVICES LTD,SP0001368
WANDSWORTH COUNCIL,ASC,Revenue,SOCIAL SERVICES,HIRE,HIRE - TRANSPORT,469914,130220410,20-Aug-14,799.50,GROUP TAXIBUS LTD T/A CHELMSFORD TAXIBUS,SP0006150
WANDSWORTH COUNCIL,ASC,Revenue,SOCIAL SERVICES,HIRE,HIRE - TRANSPORT,457755,130220410,05-Aug-14,974.27,PARKER CARS LIMITED,SP0005826
WANDSWORTH COUNCIL,ASC,Revenue,SOCIAL SERVICES,HIRE,NEW TRANSPORT CONTRACT,463631,130220430,12-Aug-14,"1,513.00",BECKETT CORPORATION LTD T/A TINAS CARS,SP0000729
WANDSWORTH COUNCIL,ASC,Revenue,SOCIAL SERVICES,SERVICES,TRAVEL BUDDY SCHEME,465273,130234970,14-Aug-14,502.60,HARINGEY ASSOCIATION FOR INDEPENDENT LIV,SP0000222
WANDSWORTH COUNCIL,ASC,Revenue,SOCIAL SERVICES,SERVICES,TRAVEL BUDDY SCHEME,465276,130234970,14-Aug-14,985.42,HARINGEY ASSOCIATION FOR INDEPENDENT LIV,SP0000222
WANDSWORTH COUNCIL,ASC,Revenue,SOCIAL SERVICES,SERVICES,TRAVEL BUDDY SCHEME,465725,130234970,14-Aug-14,782.40,SOUTHSIDE PARTNERSHIP,SP0000692
WANDSWORTH COUNCIL,ASC,Revenue,SOCIAL SERVICES,SERVICES,TRAVEL BUDDY SCHEME,472223,130234970,22-Aug-14,527.03,SOUTHSIDE PARTNERSHIP,SP0000692
WANDSWORTH COUNCIL,ASC,Revenue,SOCIAL SERVICES,SERVICES,TRAVEL BUDDY SCHEME,472225,130234970,22-Aug-14,543.33,SOUTHSIDE PARTNERSHIP,SP0000692
WANDSWORTH COUNCIL,ASC,Revenue,SOCIAL SERVICES,HEALTH,EXT RES S28A 100% OLD LONGSTAY,467853,130241010,19-Aug-14,"3,037.02",PARKGATE MANOR,SP0000521
WANDSWORTH COUNCIL,ASC,Revenue,SOCIAL SERVICES,HEALTH,EXT RES S28A 100% OLD LONGSTAY,459166,130241010,07-Aug-14,"6,266.83",VOYAGE CARE LTD,SP0000366
WANDSWORTH COUNCIL,ASC,Revenue,SOCIAL SERVICES,HEALTH,EXT RES S28A 100% OLD LONGSTAY,459167,130241010,07-Aug-14,"6,266.83",VOYAGE CARE LTD,SP0000366
WANDSWORTH COUNCIL,ASC,Revenue,SOCIAL SERVICES,HEALTH,EXT RES S28A 100% OLD LONGSTAY,459202,130241010,07-Aug-14,"9,174.85",VOYAGE CARE LTD,SP0000366
WANDSWORTH COUNCIL,ASC,Revenue,SOCIAL SERVICES,HEALTH,EXT RES S28A 100% OLD LONGSTAY,474649,130241010,28-Aug-14,"6,266.83",VOYAGE CARE LTD,SP0000366
WANDSWORTH COUNCIL,ASC,Revenue,SOCIAL SERVICES,HEALTH,EXT RES S28A 100% OLD LONGSTAY,474650,130241010,28-Aug-14,"6,266.83",VOYAGE CARE LTD,SP0000366
WANDSWORTH COUNCIL,ASC,Revenue,SOCIAL SERVICES,HEALTH,EXT RES S28A 100% OLD LONGSTAY,474680,130241010,28-Aug-14,"9,174.85",VOYAGE CARE LTD,SP0000366
WANDSWORTH COUNCIL,ASC,Revenue,SOCIAL SERVICES,HEALTH,EXTERNAL RESIDENTIAL CARE S28A,461370,130241080,08-Aug-14,"4,909.16",MACINTYRE CARE,SP0000473
WANDSWORTH COUNCIL,ASC,Revenue,SOCIAL SERVICES,HEALTH,EXTERNAL RESIDENTIAL CARE S28A,467877,130241080,19-Aug-14,"7,215.87",PROGRESS HOUSING LULWORTH,SP0000921
WANDSWORTH COUNCIL,ASC,Revenue,SOCIAL SERVICES,HEALTH,EXT RES CARE S28A 100%,459168,130241090,07-Aug-14,"6,266.83",VOYAGE CARE LTD,SP0000366
WANDSWORTH COUNCIL,ASC,Revenue,SOCIAL SERVICES,HEALTH,EXT RES CARE S28A 100%,474651,130241090,28-Aug-14,"6,266.83",VOYAGE CARE LTD,SP0000366
WANDSWORTH COUNCIL,ASC,Revenue,SOCIAL SERVICES,HEALTH,EXT RES S28A OLD LONG STAY,461418,130241110,08-Aug-14,"2,690.16",ASHTON CARE,SP0000695
WANDSWORTH COUNCIL,ASC,Revenue,SOCIAL SERVICES,HEALTH,EXT RES S28A OLD LONG STAY,461423,130241110,08-Aug-14,"2,975.96",ELEANOR NURSING & SOCIAL CARE,SP0000110
WANDSWORTH COUNCIL,ASC,Revenue,SOCIAL SERVICES,HEALTH,EXT RES S28A OLD LONG STAY,463380,130241110,12-Aug-14,"2,975.96",ELEANOR NURSING & SOCIAL CARE,SP0000110
WANDSWORTH COUNCIL,ASC,Revenue,SOCIAL SERVICES,HEALTH,EXT RES S28A OLD LONG STAY,469815,130241110,20-Aug-14,"3,659.52",METROPOLITAN HOUSING TRUST,SP0000626
WANDSWORTH COUNCIL,ASC,Revenue,SOCIAL SERVICES,HEALTH,EXT RES S28A OLD LONG STAY,469831,130241110,20-Aug-14,"4,709.79",METROPOLITAN HOUSING TRUST,SP0000626
WANDSWORTH COUNCIL,ASC,Revenue,SOCIAL SERVICES,HEALTH,EXT RES S28A OLD LONG STAY,469835,130241110,20-Aug-14,"4,709.79",METROPOLITAN HOUSING TRUST,SP0000626
WANDSWORTH COUNCIL,ASC,Revenue,SOCIAL SERVICES,HEALTH,EXT RES S28A OLD LONG STAY,459209,130241110,07-Aug-14,"4,918.77",THE COMMUNITY CARE COMPANY UK LTD,SP0000576
WANDSWORTH COUNCIL,ASC,Revenue,SOCIAL SERVICES,HEALTH,EXT RES S28A OLD LONG STAY,473935,130241110,27-Aug-14,"4,918.77",THE COMMUNITY CARE COMPANY UK LTD,SP0000576
WANDSWORTH COUNCIL,ASC,Revenue,SOCIAL SERVICES,OTHER AGENCIES,ENABLERS/EDUCATION FEES,457763,130243280,05-Aug-14,"24,178.94",FAIRFIELD OPPORTUNITY FARM DILTON LTD CA,SP0001758
WANDSWORTH COUNCIL,ASC,Revenue,SOCIAL SERVICES,OTHER AGENCIES,EXTERNAL LODGINGS,461729,130243320,08-Aug-14,"1,050.00",M RAZA T/A CLOCK HOUSE HOTEL,SP0001280
WANDSWORTH COUNCIL,ASC,Revenue,SOCIAL SERVICES,OTHER AGENCIES,EXTERNAL LODGINGS,461730,130243320,08-Aug-14,"1,085.00",M RAZA T/A CLOCK HOUSE HOTEL,SP0001280
WANDSWORTH COUNCIL,ASC,Revenue,SOCIAL SERVICES,OTHER AGENCIES,EXTERNAL OUTREACH,465238,130243330,14-Aug-14,630.00,ACT TOO LTD,SP0000855
WANDSWORTH COUNCIL,ASC,Revenue,SOCIAL SERVICES,OTHER AGENCIES,EXTERNAL OUTREACH,465239,130243330,14-Aug-14,600.00,ACT TOO LTD,SP0000855
WANDSWORTH COUNCIL,ASC,Revenue,SOCIAL SERVICES,OTHER AGENCIES,EXTERNAL OUTREACH,469992,130243330,20-Aug-14,630.00,ACT TOO LTD,SP0000855
WANDSWORTH COUNCIL,ASC,Revenue,SOCIAL SERVICES,OTHER AGENCIES,EXTERNAL OUTREACH,469993,130243330,20-Aug-14,600.00,ACT TOO LTD,SP0000855
WANDSWORTH COUNCIL,ASC,Revenue,SOCIAL SERVICES,OTHER AGENCIES,EXTERNAL OUTREACH,461731,130243330,08-Aug-14,"2,185.32",C M CARE LTD,SP0000455
WANDSWORTH COUNCIL,ASC,Revenue,SOCIAL SERVICES,OTHER AGENCIES,EXTERNAL OUTREACH,461733,130243330,08-Aug-14,"1,287.20",C M CARE LTD,SP0000455
WANDSWORTH COUNCIL,ASC,Revenue,SOCIAL SERVICES,OTHER AGENCIES,EXTERNAL OUTREACH,461735,130243330,08-Aug-14,936.00,C M CARE LTD,SP0000455
WANDSWORTH COUNCIL,ASC,Revenue,SOCIAL SERVICES,OTHER AGENCIES,EXTERNAL OUTREACH,461736,130243330,08-Aug-14,576.00,C M CARE LTD,SP0000455
WANDSWORTH COUNCIL,ASC,Revenue,SOCIAL SERVICES,OTHER AGENCIES,EXTERNAL OUTREACH,461737,130243330,08-Aug-14,"1,540.00",C M CARE LTD,SP0000455
WANDSWORTH COUNCIL,ASC,Revenue,SOCIAL SERVICES,OTHER AGENCIES,EXTERNAL OUTREACH,463546,130243330,12-Aug-14,897.30,GENERATE OPPORTUNITIES LTD,SP0000503
WANDSWORTH COUNCIL,ASC,Revenue,SOCIAL SERVICES,OTHER AGENCIES,EXTERNAL OUTREACH,463549,130243330,12-Aug-14,299.10,GENERATE OPPORTUNITIES LTD,SP0000503
WANDSWORTH COUNCIL,ASC,Revenue,SOCIAL SERVICES,OTHER AGENCIES,EXTERNAL OUTREACH,463550,130243330,12-Aug-14,997.00,GENERATE OPPORTUNITIES LTD,SP0000503
WANDSWORTH COUNCIL,ASC,Revenue,SOCIAL SERVICES,OTHER AGENCIES,EXTERNAL OUTREACH,463553,130243330,12-Aug-14,797.60,GENERATE OPPORTUNITIES LTD,SP0000503
WANDSWORTH COUNCIL,ASC,Revenue,SOCIAL SERVICES,OTHER AGENCIES,EXTERNAL OUTREACH,463554,130243330,12-Aug-14,997.00,GENERATE OPPORTUNITIES LTD,SP0000503
WANDSWORTH COUNCIL,ASC,Revenue,SOCIAL SERVICES,OTHER AGENCIES,EXTERNAL OUTREACH,463558,130243330,12-Aug-14,498.50,GENERATE OPPORTUNITIES LTD,SP0000503
WANDSWORTH COUNCIL,ASC,Revenue,SOCIAL SERVICES,OTHER AGENCIES,EXTERNAL OUTREACH,463559,130243330,12-Aug-14,598.20,GENERATE OPPORTUNITIES LTD,SP0000503
WANDSWORTH COUNCIL,ASC,Revenue,SOCIAL SERVICES,OTHER AGENCIES,EXTERNAL OUTREACH,463563,130243330,12-Aug-14,598.20,GENERATE OPPORTUNITIES LTD,SP0000503
WANDSWORTH COUNCIL,ASC,Revenue,SOCIAL SERVICES,OTHER AGENCIES,EXTERNAL OUTREACH,463572,130243330,12-Aug-14,598.20,GENERATE OPPORTUNITIES LTD,SP0000503
WANDSWORTH COUNCIL,ASC,Revenue,SOCIAL SERVICES,OTHER AGENCIES,EXTERNAL OUTREACH,463578,130243330,12-Aug-14,797.60,GENERATE OPPORTUNITIES LTD,SP0000503
WANDSWORTH COUNCIL,ASC,Revenue,SOCIAL SERVICES,OTHER AGENCIES,EXTERNAL OUTREACH,463579,130243330,12-Aug-14,398.80,GENERATE OPPORTUNITIES LTD,SP0000503
WANDSWORTH COUNCIL,ASC,Revenue,SOCIAL SERVICES,OTHER AGENCIES,EXTERNAL OUTREACH,463580,130243330,12-Aug-14,919.40,GENERATE OPPORTUNITIES LTD,SP0000503
WANDSWORTH COUNCIL,ASC,Revenue,SOCIAL SERVICES,OTHER AGENCIES,EXTERNAL OUTREACH,463584,130243330,12-Aug-14,997.00,GENERATE OPPORTUNITIES LTD,SP0000503
WANDSWORTH COUNCIL,ASC,Revenue,SOCIAL SERVICES,OTHER AGENCIES,EXTERNAL OUTREACH,463592,130243330,12-Aug-14,"3,093.75",GENERATE OPPORTUNITIES LTD,SP0000503
WANDSWORTH COUNCIL,ASC,Revenue,SOCIAL SERVICES,OTHER AGENCIES,EXTERNAL OUTREACH,463595,130243330,12-Aug-14,"2,791.60",GENERATE OPPORTUNITIES LTD,SP0000503
WANDSWORTH COUNCIL,ASC,Revenue,SOCIAL SERVICES,OTHER AGENCIES,EXTERNAL OUTREACH,474120,130243330,27-Aug-14,402.80,GENERATE OPPORTUNITIES LTD,SP0000503
WANDSWORTH COUNCIL,ASC,Revenue,SOCIAL SERVICES,OTHER AGENCIES,EXTERNAL OUTREACH,457855,130243330,05-Aug-14,628.00,HARINGEY ASSOCIATION FOR INDEPENDENT LIV,SP0000222
WANDSWORTH COUNCIL,ASC,Revenue,SOCIAL SERVICES,OTHER AGENCIES,EXTERNAL OUTREACH,457091,130243330,04-Aug-14,850.00,PROTOCOL EDUCATION  LTD,SP0000171
WANDSWORTH COUNCIL,ASC,Revenue,SOCIAL SERVICES,OTHER AGENCIES,EXTERNAL OUTREACH,460433,130243330,07-Aug-14,850.00,PROTOCOL EDUCATION  LTD,SP0000171
WANDSWORTH COUNCIL,ASC,Revenue,SOCIAL SERVICES,OTHER AGENCIES,EXTERNAL OUTREACH,465205,130243330,14-Aug-14,850.00,PROTOCOL EDUCATION  LTD,SP0000171
WANDSWORTH COUNCIL,ASC,Revenue,SOCIAL SERVICES,OTHER AGENCIES,EXTERNAL OUTREACH,469960,130243330,20-Aug-14,850.00,PROTOCOL EDUCATION  LTD,SP0000171
WANDSWORTH COUNCIL,ASC,Revenue,SOCIAL SERVICES,OTHER AGENCIES,EXTERNAL OUTREACH,473413,130243330,26-Aug-14,850.00,PROTOCOL EDUCATION  LTD,SP0000171
WANDSWORTH COUNCIL,ASC,Revenue,SOCIAL SERVICES,OTHER AGENCIES,EXTERNAL OUTREACH,465208,130243330,14-Aug-14,570.40,RAINBOW MEDICAL SERVICES,SP0000037
WANDSWORTH COUNCIL,ASC,Revenue,SOCIAL SERVICES,OTHER AGENCIES,EXTERNAL OUTREACH,465210,130243330,14-Aug-14,641.38,RAINBOW MEDICAL SERVICES,SP0000037
WANDSWORTH COUNCIL,ASC,Revenue,SOCIAL SERVICES,OTHER AGENCIES,EXTERNAL OUTREACH,457847,130243330,05-Aug-14,570.00,ROYAL ASSOCIATION FOR DEAF PEOPLE,SP0001251
WANDSWORTH COUNCIL,ASC,Revenue,SOCIAL SERVICES,OTHER AGENCIES,EXTERNAL OUTREACH,457848,130243330,05-Aug-14,"1,560.00",ROYAL ASSOCIATION FOR DEAF PEOPLE,SP0001251
WANDSWORTH COUNCIL,ASC,Revenue,SOCIAL SERVICES,OTHER AGENCIES,EXTERNAL OUTREACH,461618,130243330,08-Aug-14,631.60,THE BRANDON TRUST,SP0005337
WANDSWORTH COUNCIL,ASC,Revenue,SOCIAL SERVICES,OTHER AGENCIES,EXTERNAL OUTREACH,461632,130243330,08-Aug-14,227.00,THE BRANDON TRUST,SP0005337
WANDSWORTH COUNCIL,ASC,Revenue,SOCIAL SERVICES,OTHER AGENCIES,EXTERNAL OUTREACH,461644,130243330,08-Aug-14,568.44,THE BRANDON TRUST,SP0005337
WANDSWORTH COUNCIL,ASC,Revenue,SOCIAL SERVICES,OTHER AGENCIES,EXTERNAL OUTREACH,461645,130243330,08-Aug-14,757.92,THE BRANDON TRUST,SP0005337
WANDSWORTH COUNCIL,ASC,Revenue,SOCIAL SERVICES,OTHER AGENCIES,EXTERNAL OUTREACH,461646,130243330,08-Aug-14,252.64,THE BRANDON TRUST,SP0005337
WANDSWORTH COUNCIL,ASC,Revenue,SOCIAL SERVICES,OTHER AGENCIES,EXTERNAL OUTREACH,461653,130243330,08-Aug-14,947.40,THE BRANDON TRUST,SP0005337
WANDSWORTH COUNCIL,ASC,Revenue,SOCIAL SERVICES,OTHER AGENCIES,EXTERNAL OUTREACH,461655,130243330,08-Aug-14,"1,170.80",THE BRANDON TRUST,SP0005337
WANDSWORTH COUNCIL,ASC,Revenue,SOCIAL SERVICES,OTHER AGENCIES,EXTERNAL OUTREACH,461676,130243330,08-Aug-14,694.76,THE BRANDON TRUST,SP0005337
WANDSWORTH COUNCIL,ASC,Revenue,SOCIAL SERVICES,OTHER AGENCIES,EXTERNAL OUTREACH,461692,130243330,08-Aug-14,331.20,THE BRANDON TRUST,SP0005337
WANDSWORTH COUNCIL,ASC,Revenue,SOCIAL SERVICES,OTHER AGENCIES,EXTERNAL OUTREACH,467992,130243330,19-Aug-14,947.40,THE BRANDON TRUST,SP0005337
WANDSWORTH COUNCIL,ASC,Revenue,SOCIAL SERVICES,OTHER AGENCIES,EXTERNAL OUTREACH,467994,130243330,19-Aug-14,"1,170.80",THE BRANDON TRUST,SP0005337
WANDSWORTH COUNCIL,ASC,Revenue,SOCIAL SERVICES,OTHER AGENCIES,EXTERNAL OUTREACH,468027,130243330,19-Aug-14,694.76,THE BRANDON TRUST,SP0005337
WANDSWORTH COUNCIL,ASC,Revenue,SOCIAL SERVICES,OTHER AGENCIES,EXTERNAL OUTREACH,468050,130243330,19-Aug-14,631.60,THE BRANDON TRUST,SP0005337
WANDSWORTH COUNCIL,ASC,Revenue,SOCIAL SERVICES,OTHER AGENCIES,EXTERNAL OUTREACH,468063,130243330,19-Aug-14,568.44,THE BRANDON TRUST,SP0005337
WANDSWORTH COUNCIL,ASC,Revenue,SOCIAL SERVICES,OTHER AGENCIES,EXTERNAL OUTREACH,468064,130243330,19-Aug-14,757.92,THE BRANDON TRUST,SP0005337
WANDSWORTH COUNCIL,ASC,Revenue,SOCIAL SERVICES,OTHER AGENCIES,EXTERNAL OUTREACH,468065,130243330,19-Aug-14,252.64,THE BRANDON TRUST,SP0005337
WANDSWORTH COUNCIL,ASC,Revenue,SOCIAL SERVICES,OTHER AGENCIES,EXTERNAL OUTREACH,469922,130243330,20-Aug-14,331.20,THE BRANDON TRUST,SP0005337
WANDSWORTH COUNCIL,ASC,Revenue,ENVIRONMENT & COMMUNITY,OTHER AGENCIES,APS SHARED LIVES SCHEME,460986,130243820,08-Aug-14,"15,619.00",SOUTHSIDE PARTNERSHIP,SP0000692
WANDSWORTH COUNCIL,ASC,Revenue,SOCIAL SERVICES,PRIVATE,EXTERNAL DAYCARE,465875,130245290,14-Aug-14,738.72,ACT TOO LTD,SP0000855
WANDSWORTH COUNCIL,ASC,Revenue,SOCIAL SERVICES,PRIVATE,EXTERNAL DAYCARE,465879,130245290,14-Aug-14,738.12,ACT TOO LTD,SP0000855
WANDSWORTH COUNCIL,ASC,Revenue,SOCIAL SERVICES,PRIVATE,EXTERNAL DAYCARE,465887,130245290,14-Aug-14,923.40,ACT TOO LTD,SP0000855
WANDSWORTH COUNCIL,ASC,Revenue,SOCIAL SERVICES,PRIVATE,EXTERNAL DAYCARE,465890,130245290,14-Aug-14,738.72,ACT TOO LTD,SP0000855
WANDSWORTH COUNCIL,ASC,Revenue,SOCIAL SERVICES,PRIVATE,EXTERNAL DAYCARE,465894,130245290,14-Aug-14,554.04,ACT TOO LTD,SP0000855
WANDSWORTH COUNCIL,ASC,Revenue,SOCIAL SERVICES,PRIVATE,EXTERNAL DAYCARE,465895,130245290,14-Aug-14,554.04,ACT TOO LTD,SP0000855
WANDSWORTH COUNCIL,ASC,Revenue,SOCIAL SERVICES,PRIVATE,EXTERNAL DAYCARE,465896,130245290,14-Aug-14,554.04,ACT TOO LTD,SP0000855
WANDSWORTH COUNCIL,ASC,Revenue,SOCIAL SERVICES,PRIVATE,EXTERNAL DAYCARE,465897,130245290,14-Aug-14,554.04,ACT TOO LTD,SP0000855
WANDSWORTH COUNCIL,ASC,Revenue,SOCIAL SERVICES,PRIVATE,EXTERNAL DAYCARE,465898,130245290,14-Aug-14,"1,108.08",ACT TOO LTD,SP0000855
WANDSWORTH COUNCIL,ASC,Revenue,SOCIAL SERVICES,PRIVATE,EXTERNAL DAYCARE,465900,130245290,14-Aug-14,738.72,ACT TOO LTD,SP0000855
WANDSWORTH COUNCIL,ASC,Revenue,SOCIAL SERVICES,PRIVATE,EXTERNAL DAYCARE,465905,130245290,14-Aug-14,554.04,ACT TOO LTD,SP0000855
WANDSWORTH COUNCIL,ASC,Revenue,SOCIAL SERVICES,PRIVATE,EXTERNAL DAYCARE,465908,130245290,14-Aug-14,554.04,ACT TOO LTD,SP0000855
WANDSWORTH COUNCIL,ASC,Revenue,SOCIAL SERVICES,PRIVATE,EXTERNAL DAYCARE,465910,130245290,14-Aug-14,554.04,ACT TOO LTD,SP0000855
WANDSWORTH COUNCIL,ASC,Revenue,SOCIAL SERVICES,PRIVATE,EXTERNAL DAYCARE,465911,130245290,14-Aug-14,554.04,ACT TOO LTD,SP0000855
WANDSWORTH COUNCIL,ASC,Revenue,SOCIAL SERVICES,PRIVATE,EXTERNAL DAYCARE,465913,130245290,14-Aug-14,554.04,ACT TOO LTD,SP0000855
WANDSWORTH COUNCIL,ASC,Revenue,SOCIAL SERVICES,PRIVATE,EXTERNAL DAYCARE,465916,130245290,14-Aug-14,738.72,ACT TOO LTD,SP0000855
WANDSWORTH COUNCIL,ASC,Revenue,SOCIAL SERVICES,PRIVATE,EXTERNAL DAYCARE,465917,130245290,14-Aug-14,554.04,ACT TOO LTD,SP0000855
WANDSWORTH COUNCIL,ASC,Revenue,SOCIAL SERVICES,PRIVATE,EXTERNAL DAYCARE,465920,130245290,14-Aug-14,554.04,ACT TOO LTD,SP0000855
WANDSWORTH COUNCIL,ASC,Revenue,SOCIAL SERVICES,PRIVATE,EXTERNAL DAYCARE,465923,130245290,14-Aug-14,923.40,ACT TOO LTD,SP0000855
WANDSWORTH COUNCIL,ASC,Revenue,SOCIAL SERVICES,PRIVATE,EXTERNAL DAYCARE,465924,130245290,14-Aug-14,554.04,ACT TOO LTD,SP0000855
WANDSWORTH COUNCIL,ASC,Revenue,SOCIAL SERVICES,PRIVATE,EXTERNAL DAYCARE,465925,130245290,14-Aug-14,554.04,ACT TOO LTD,SP0000855
WANDSWORTH COUNCIL,ASC,Revenue,SOCIAL SERVICES,PRIVATE,EXTERNAL DAYCARE,465927,130245290,14-Aug-14,923.40,ACT TOO LTD,SP0000855
WANDSWORTH COUNCIL,ASC,Revenue,SOCIAL SERVICES,PRIVATE,EXTERNAL DAYCARE,465928,130245290,14-Aug-14,554.04,ACT TOO LTD,SP0000855
WANDSWORTH COUNCIL,ASC,Revenue,SOCIAL SERVICES,PRIVATE,EXTERNAL DAYCARE,465929,130245290,14-Aug-14,"1,108.08",ACT TOO LTD,SP0000855
WANDSWORTH COUNCIL,ASC,Revenue,SOCIAL SERVICES,PRIVATE,EXTERNAL DAYCARE,465930,130245290,14-Aug-14,738.72,ACT TOO LTD,SP0000855
WANDSWORTH COUNCIL,ASC,Revenue,SOCIAL SERVICES,PRIVATE,EXTERNAL DAYCARE,465931,130245290,14-Aug-14,554.04,ACT TOO LTD,SP0000855
WANDSWORTH COUNCIL,ASC,Revenue,SOCIAL SERVICES,PRIVATE,EXTERNAL DAYCARE,465934,130245290,14-Aug-14,554.04,ACT TOO LTD,SP0000855
WANDSWORTH COUNCIL,ASC,Revenue,SOCIAL SERVICES,PRIVATE,EXTERNAL DAYCARE,465935,130245290,14-Aug-14,554.04,ACT TOO LTD,SP0000855
WANDSWORTH COUNCIL,ASC,Revenue,SOCIAL SERVICES,PRIVATE,EXTERNAL DAYCARE,465938,130245290,14-Aug-14,554.04,ACT TOO LTD,SP0000855
WANDSWORTH COUNCIL,ASC,Revenue,SOCIAL SERVICES,PRIVATE,EXTERNAL DAYCARE,465945,130245290,14-Aug-14,738.72,ACT TOO LTD,SP0000855
WANDSWORTH COUNCIL,ASC,Revenue,SOCIAL SERVICES,PRIVATE,EXTERNAL DAYCARE,459617,130245290,07-Aug-14,"1,258.79",ANTHONY TOBY HOMES TRUST,SP0000755
WANDSWORTH COUNCIL,ASC,Revenue,SOCIAL SERVICES,PRIVATE,EXTERNAL DAYCARE,473408,130245290,26-Aug-14,914.13,ASHFIELD CARE HOMES LTD,SP0000590
WANDSWORTH COUNCIL,ASC,Revenue,SOCIAL SERVICES,PRIVATE,EXTERNAL DAYCARE,457079,130245290,04-Aug-14,942.23,CHATSWORTH CARE,SP0000831
WANDSWORTH COUNCIL,ASC,Revenue,SOCIAL SERVICES,PRIVATE,EXTERNAL DAYCARE,474722,130245290,28-Aug-14,942.23,CHATSWORTH CARE,SP0000831
WANDSWORTH COUNCIL,ASC,Revenue,SOCIAL SERVICES,PRIVATE,EXTERNAL DAYCARE,467968,130245290,19-Aug-14,726.07,CHOICES,SP0000486
WANDSWORTH COUNCIL,ASC,Revenue,SOCIAL SERVICES,PRIVATE,EXTERNAL DAYCARE,469894,130245290,20-Aug-14,768.78,CHOICES,SP0000486
WANDSWORTH COUNCIL,ASC,Revenue,SOCIAL SERVICES,PRIVATE,EXTERNAL DAYCARE,469893,130245290,20-Aug-14,"1,999.41",CMG HOMES LTD,SP0000075
WANDSWORTH COUNCIL,ASC,Revenue,SOCIAL SERVICES,PRIVATE,EXTERNAL DAYCARE,474726,130245290,28-Aug-14,"2,094.62",CMG HOMES LTD,SP0000075
WANDSWORTH COUNCIL,ASC,Revenue,SOCIAL SERVICES,PRIVATE,EXTERNAL DAYCARE,461739,130245290,08-Aug-14,"1,107.68",COUNTRY CARE,SP0000090
WANDSWORTH COUNCIL,ASC,Revenue,SOCIAL SERVICES,PRIVATE,EXTERNAL DAYCARE,473421,130245290,26-Aug-14,"1,011.36",COUNTRY CARE,SP0000090
WANDSWORTH COUNCIL,ASC,Revenue,SOCIAL SERVICES,PRIVATE,EXTERNAL DAYCARE,461518,130245290,08-Aug-14,806.04,CRAEGMOOR FACILITIES CO LTD,SP0000306
WANDSWORTH COUNCIL,ASC,Revenue,SOCIAL SERVICES,PRIVATE,EXTERNAL DAYCARE,465947,130245290,14-Aug-14,791.20,CREST COOPERATIVE LTD,SP0000683
WANDSWORTH COUNCIL,ASC,Revenue,SOCIAL SERVICES,PRIVATE,EXTERNAL DAYCARE,465948,130245290,14-Aug-14,632.96,CREST COOPERATIVE LTD,SP0000683
WANDSWORTH COUNCIL,ASC,Revenue,SOCIAL SERVICES,PRIVATE,EXTERNAL DAYCARE,465949,130245290,14-Aug-14,632.96,CREST COOPERATIVE LTD,SP0000683
WANDSWORTH COUNCIL,ASC,Revenue,SOCIAL SERVICES,PRIVATE,EXTERNAL DAYCARE,467965,130245290,19-Aug-14,"1,022.28",DOLPHIN HOMES LTD,SP0000331
WANDSWORTH COUNCIL,ASC,Revenue,SOCIAL SERVICES,PRIVATE,EXTERNAL DAYCARE,467967,130245290,19-Aug-14,682.50,DORSET SCOPE,SP0000591
WANDSWORTH COUNCIL,ASC,Revenue,SOCIAL SERVICES,PRIVATE,EXTERNAL DAYCARE,463542,130245290,12-Aug-14,720.00,GENERATE OPPORTUNITIES LTD,SP0000503
WANDSWORTH COUNCIL,ASC,Revenue,SOCIAL SERVICES,PRIVATE,EXTERNAL DAYCARE,463544,130245290,12-Aug-14,800.00,GENERATE OPPORTUNITIES LTD,SP0000503
WANDSWORTH COUNCIL,ASC,Revenue,SOCIAL SERVICES,PRIVATE,EXTERNAL DAYCARE,463549,130245290,12-Aug-14,700.00,GENERATE OPPORTUNITIES LTD,SP0000503
WANDSWORTH COUNCIL,ASC,Revenue,SOCIAL SERVICES,PRIVATE,EXTERNAL DAYCARE,463550,130245290,12-Aug-14,400.00,GENERATE OPPORTUNITIES LTD,SP0000503
WANDSWORTH COUNCIL,ASC,Revenue,SOCIAL SERVICES,PRIVATE,EXTERNAL DAYCARE,463551,130245290,12-Aug-14,720.00,GENERATE OPPORTUNITIES LTD,SP0000503
WANDSWORTH COUNCIL,ASC,Revenue,SOCIAL SERVICES,PRIVATE,EXTERNAL DAYCARE,463558,130245290,12-Aug-14,720.00,GENERATE OPPORTUNITIES LTD,SP0000503
WANDSWORTH COUNCIL,ASC,Revenue,SOCIAL SERVICES,PRIVATE,EXTERNAL DAYCARE,463567,130245290,12-Aug-14,720.00,GENERATE OPPORTUNITIES LTD,SP0000503
WANDSWORTH COUNCIL,ASC,Revenue,SOCIAL SERVICES,PRIVATE,EXTERNAL DAYCARE,463576,130245290,12-Aug-14,700.00,GENERATE OPPORTUNITIES LTD,SP0000503
WANDSWORTH COUNCIL,ASC,Revenue,SOCIAL SERVICES,PRIVATE,EXTERNAL DAYCARE,463577,130245290,12-Aug-14,720.00,GENERATE OPPORTUNITIES LTD,SP0000503
WANDSWORTH COUNCIL,ASC,Revenue,SOCIAL SERVICES,PRIVATE,EXTERNAL DAYCARE,463579,130245290,12-Aug-14,200.00,GENERATE OPPORTUNITIES LTD,SP0000503
WANDSWORTH COUNCIL,ASC,Revenue,SOCIAL SERVICES,PRIVATE,EXTERNAL DAYCARE,463581,130245290,12-Aug-14,"1,375.00",GENERATE OPPORTUNITIES LTD,SP0000503
WANDSWORTH COUNCIL,ASC,Revenue,SOCIAL SERVICES,PRIVATE,EXTERNAL DAYCARE,463593,130245290,12-Aug-14,600.00,GENERATE OPPORTUNITIES LTD,SP0000503
WANDSWORTH COUNCIL,ASC,Revenue,SOCIAL SERVICES,PRIVATE,EXTERNAL DAYCARE,474118,130245290,27-Aug-14,600.00,GENERATE OPPORTUNITIES LTD,SP0000503
WANDSWORTH COUNCIL,ASC,Revenue,SOCIAL SERVICES,PRIVATE,EXTERNAL DAYCARE,474119,130245290,27-Aug-14,"1,000.00",GENERATE OPPORTUNITIES LTD,SP0000503
WANDSWORTH COUNCIL,ASC,Revenue,SOCIAL SERVICES,PRIVATE,EXTERNAL DAYCARE,474120,130245290,27-Aug-14,350.00,GENERATE OPPORTUNITIES LTD,SP0000503
WANDSWORTH COUNCIL,ASC,Revenue,SOCIAL SERVICES,PRIVATE,EXTERNAL DAYCARE,465873,130245290,14-Aug-14,807.30,HARROW MENCAP,SP0001347
WANDSWORTH COUNCIL,ASC,Revenue,SOCIAL SERVICES,PRIVATE,EXTERNAL DAYCARE,459624,130245290,07-Aug-14,602.56,HIGH HURLANDS HOMES,SP0000668
WANDSWORTH COUNCIL,ASC,Revenue,SOCIAL SERVICES,PRIVATE,EXTERNAL DAYCARE,467872,130245290,19-Aug-14,"1,551.24",LONDON CARE PARTNERSHIP LTD,SP0001138
WANDSWORTH COUNCIL,ASC,Revenue,SOCIAL SERVICES,PRIVATE,EXTERNAL DAYCARE,457858,130245290,05-Aug-14,504.80,MENCAP OPEN DOOR,SP0000832
WANDSWORTH COUNCIL,ASC,Revenue,SOCIAL SERVICES,PRIVATE,EXTERNAL DAYCARE,459627,130245290,07-Aug-14,515.52,MENCAP OPEN DOOR,SP0000832
WANDSWORTH COUNCIL,ASC,Revenue,SOCIAL SERVICES,PRIVATE,EXTERNAL DAYCARE,459628,130245290,07-Aug-14,"2,022.04",NAS SERVICES LIMITED,SP0000217
WANDSWORTH COUNCIL,ASC,Revenue,SOCIAL SERVICES,PRIVATE,EXTERNAL DAYCARE,459629,130245290,07-Aug-14,"2,022.04",NAS SERVICES LIMITED,SP0000217
WANDSWORTH COUNCIL,ASC,Revenue,SOCIAL SERVICES,PRIVATE,EXTERNAL DAYCARE,461490,130245290,08-Aug-14,"3,762.60",NAS SERVICES LIMITED,SP0000217
WANDSWORTH COUNCIL,ASC,Revenue,SOCIAL SERVICES,PRIVATE,EXTERNAL DAYCARE,461491,130245290,08-Aug-14,"1,575.80",NAS SERVICES LIMITED,SP0000217
WANDSWORTH COUNCIL,ASC,Revenue,SOCIAL SERVICES,PRIVATE,EXTERNAL DAYCARE,461492,130245290,08-Aug-14,"3,700.40",NAS SERVICES LIMITED,SP0000217
WANDSWORTH COUNCIL,ASC,Revenue,SOCIAL SERVICES,PRIVATE,EXTERNAL DAYCARE,461493,130245290,08-Aug-14,"2,303.20",NAS SERVICES LIMITED,SP0000217
WANDSWORTH COUNCIL,ASC,Revenue,SOCIAL SERVICES,PRIVATE,EXTERNAL DAYCARE,469906,130245290,20-Aug-14,"1,810.20",NAS SERVICES LIMITED,SP0000217
WANDSWORTH COUNCIL,ASC,Revenue,SOCIAL SERVICES,PRIVATE,EXTERNAL DAYCARE,472259,130245290,22-Aug-14,"3,762.60",NAS SERVICES LIMITED,SP0000217
WANDSWORTH COUNCIL,ASC,Revenue,SOCIAL SERVICES,PRIVATE,EXTERNAL DAYCARE,473411,130245290,26-Aug-14,"2,022.04",NAS SERVICES LIMITED,SP0000217
WANDSWORTH COUNCIL,ASC,Revenue,SOCIAL SERVICES,PRIVATE,EXTERNAL DAYCARE,473412,130245290,26-Aug-14,"2,194.40",NAS SERVICES LIMITED,SP0000217
WANDSWORTH COUNCIL,ASC,Revenue,SOCIAL SERVICES,PRIVATE,EXTERNAL DAYCARE,473423,130245290,26-Aug-14,864.80,NAS SERVICES LIMITED,SP0000217
WANDSWORTH COUNCIL,ASC,Revenue,SOCIAL SERVICES,PRIVATE,EXTERNAL DAYCARE,461495,130245290,08-Aug-14,"2,000.16",NORWOOD SCHOOLS LTD,SP0000332
WANDSWORTH COUNCIL,ASC,Revenue,SOCIAL SERVICES,PRIVATE,EXTERNAL DAYCARE,461496,130245290,08-Aug-14,"2,055.64",NORWOOD SCHOOLS LTD,SP0000332
WANDSWORTH COUNCIL,ASC,Revenue,SOCIAL SERVICES,PRIVATE,EXTERNAL DAYCARE,459630,130245290,07-Aug-14,878.48,ORCHARD VALE TRUST,SP0000214
WANDSWORTH COUNCIL,ASC,Revenue,SOCIAL SERVICES,PRIVATE,EXTERNAL DAYCARE,472268,130245290,22-Aug-14,891.29,ORIONE CARE,SP0000961
WANDSWORTH COUNCIL,ASC,Revenue,SOCIAL SERVICES,PRIVATE,EXTERNAL DAYCARE,472270,130245290,22-Aug-14,656.74,ORIONE CARE,SP0000961
WANDSWORTH COUNCIL,ASC,Revenue,SOCIAL SERVICES,PRIVATE,EXTERNAL DAYCARE,474730,130245290,28-Aug-14,546.00,PARCHMENT TRUST LTD,SP0000255
WANDSWORTH COUNCIL,ASC,Revenue,SOCIAL SERVICES,PRIVATE,EXTERNAL DAYCARE,461494,130245290,08-Aug-14,540.00,PROSPECTS,SP0000800
WANDSWORTH COUNCIL,ASC,Revenue,SOCIAL SERVICES,PRIVATE,EXTERNAL DAYCARE,457078,130245290,04-Aug-14,"1,138.40",RIDGEWOOD CARE SERVICES LTD,SP0000969
WANDSWORTH COUNCIL,ASC,Revenue,SOCIAL SERVICES,PRIVATE,EXTERNAL DAYCARE,467850,130245290,19-Aug-14,"1,200.00",RIDGEWOOD CARE SERVICES LTD,SP0000969
WANDSWORTH COUNCIL,ASC,Revenue,SOCIAL SERVICES,PRIVATE,EXTERNAL DAYCARE,474721,130245290,28-Aug-14,"1,138.40",RIDGEWOOD CARE SERVICES LTD,SP0000969
WANDSWORTH COUNCIL,ASC,Revenue,SOCIAL SERVICES,PRIVATE,EXTERNAL DAYCARE,461516,130245290,08-Aug-14,"2,172.00",ROYAL BOROUGH OF WINDSOR AND MAIDENHEAD,SP0001087
WANDSWORTH COUNCIL,ASC,Revenue,SOCIAL SERVICES,PRIVATE,EXTERNAL DAYCARE,461497,130245290,08-Aug-14,814.03,SCOPE,SP0000852
WANDSWORTH COUNCIL,ASC,Revenue,SOCIAL SERVICES,PRIVATE,EXTERNAL DAYCARE,461591,130245290,08-Aug-14,833.52,SCOPE,SP0000852
WANDSWORTH COUNCIL,ASC,Revenue,SOCIAL SERVICES,PRIVATE,EXTERNAL DAYCARE,473380,130245290,26-Aug-14,"1,044.40",SCOPE,SP0000991
WANDSWORTH COUNCIL,ASC,Revenue,SOCIAL SERVICES,PRIVATE,EXTERNAL DAYCARE,473381,130245290,26-Aug-14,"1,044.40",SCOPE,SP0000991
WANDSWORTH COUNCIL,ASC,Revenue,SOCIAL SERVICES,PRIVATE,EXTERNAL DAYCARE,473382,130245290,26-Aug-14,895.20,SCOPE,SP0000991
WANDSWORTH COUNCIL,ASC,Revenue,SOCIAL SERVICES,PRIVATE,EXTERNAL DAYCARE,474713,130245290,28-Aug-14,814.03,SCOPE,SP0000852
WANDSWORTH COUNCIL,ASC,Revenue,SOCIAL SERVICES,PRIVATE,EXTERNAL DAYCARE,474714,130245290,28-Aug-14,814.03,SCOPE,SP0000852
WANDSWORTH COUNCIL,ASC,Revenue,SOCIAL SERVICES,PRIVATE,EXTERNAL DAYCARE,457040,130245290,04-Aug-14,706.08,SHARE COMMUNITY,SP0000329
WANDSWORTH COUNCIL,ASC,Revenue,SOCIAL SERVICES,PRIVATE,EXTERNAL DAYCARE,457042,130245290,04-Aug-14,941.44,SHARE COMMUNITY,SP0000329
WANDSWORTH COUNCIL,ASC,Revenue,SOCIAL SERVICES,PRIVATE,EXTERNAL DAYCARE,457043,130245290,04-Aug-14,706.08,SHARE COMMUNITY,SP0000329
WANDSWORTH COUNCIL,ASC,Revenue,SOCIAL SERVICES,PRIVATE,EXTERNAL DAYCARE,457044,130245290,04-Aug-14,706.08,SHARE COMMUNITY,SP0000329
WANDSWORTH COUNCIL,ASC,Revenue,SOCIAL SERVICES,PRIVATE,EXTERNAL DAYCARE,457045,130245290,04-Aug-14,706.08,SHARE COMMUNITY,SP0000329
WANDSWORTH COUNCIL,ASC,Revenue,SOCIAL SERVICES,PRIVATE,EXTERNAL DAYCARE,457046,130245290,04-Aug-14,706.08,SHARE COMMUNITY,SP0000329
WANDSWORTH COUNCIL,ASC,Revenue,SOCIAL SERVICES,PRIVATE,EXTERNAL DAYCARE,457048,130245290,04-Aug-14,706.08,SHARE COMMUNITY,SP0000329
WANDSWORTH COUNCIL,ASC,Revenue,SOCIAL SERVICES,PRIVATE,EXTERNAL DAYCARE,457049,130245290,04-Aug-14,941.44,SHARE COMMUNITY,SP0000329
WANDSWORTH COUNCIL,ASC,Revenue,SOCIAL SERVICES,PRIVATE,EXTERNAL DAYCARE,457050,130245290,04-Aug-14,"1,176.80",SHARE COMMUNITY,SP0000329
WANDSWORTH COUNCIL,ASC,Revenue,SOCIAL SERVICES,PRIVATE,EXTERNAL DAYCARE,457051,130245290,04-Aug-14,"1,176.80",SHARE COMMUNITY,SP0000329
WANDSWORTH COUNCIL,ASC,Revenue,SOCIAL SERVICES,PRIVATE,EXTERNAL DAYCARE,457052,130245290,04-Aug-14,588.40,SHARE COMMUNITY,SP0000329
WANDSWORTH COUNCIL,ASC,Revenue,SOCIAL SERVICES,PRIVATE,EXTERNAL DAYCARE,457053,130245290,04-Aug-14,706.08,SHARE COMMUNITY,SP0000329
WANDSWORTH COUNCIL,ASC,Revenue,SOCIAL SERVICES,PRIVATE,EXTERNAL DAYCARE,457054,130245290,04-Aug-14,941.44,SHARE COMMUNITY,SP0000329
WANDSWORTH COUNCIL,ASC,Revenue,SOCIAL SERVICES,PRIVATE,EXTERNAL DAYCARE,457057,130245290,04-Aug-14,706.08,SHARE COMMUNITY,SP0000329
WANDSWORTH COUNCIL,ASC,Revenue,SOCIAL SERVICES,PRIVATE,EXTERNAL DAYCARE,457059,130245290,04-Aug-14,588.40,SHARE COMMUNITY,SP0000329
WANDSWORTH COUNCIL,ASC,Revenue,SOCIAL SERVICES,PRIVATE,EXTERNAL DAYCARE,457060,130245290,04-Aug-14,706.08,SHARE COMMUNITY,SP0000329
WANDSWORTH COUNCIL,ASC,Revenue,SOCIAL SERVICES,PRIVATE,EXTERNAL DAYCARE,457061,130245290,04-Aug-14,706.08,SHARE COMMUNITY,SP0000329
WANDSWORTH COUNCIL,ASC,Revenue,SOCIAL SERVICES,PRIVATE,EXTERNAL DAYCARE,474718,130245290,28-Aug-14,"1,057.00",ST DAVIDS CARE IN THE COMMUNITY,SP0000379
WANDSWORTH COUNCIL,ASC,Revenue,SOCIAL SERVICES,PRIVATE,EXTERNAL DAYCARE,474719,130245290,28-Aug-14,"1,057.00",ST DAVIDS CARE IN THE COMMUNITY,SP0000379
WANDSWORTH COUNCIL,ASC,Revenue,SOCIAL SERVICES,PRIVATE,EXTERNAL DAYCARE,474720,130245290,28-Aug-14,"1,057.00",ST DAVIDS CARE IN THE COMMUNITY,SP0000379
WANDSWORTH COUNCIL,ASC,Revenue,SOCIAL SERVICES,PRIVATE,EXTERNAL DAYCARE,460402,130245290,07-Aug-14,"1,736.84",ST MARYS RESIDENTIAL HOME,SP0000215
WANDSWORTH COUNCIL,ASC,Revenue,SOCIAL SERVICES,PRIVATE,EXTERNAL DAYCARE,460403,130245290,07-Aug-14,708.52,ST MARYS RESIDENTIAL HOME,SP0000215
WANDSWORTH COUNCIL,ASC,Revenue,SOCIAL SERVICES,PRIVATE,EXTERNAL DAYCARE,460407,130245290,07-Aug-14,956.80,ST MARYS RESIDENTIAL HOME,SP0000215
WANDSWORTH COUNCIL,ASC,Revenue,SOCIAL SERVICES,PRIVATE,EXTERNAL DAYCARE,460409,130245290,07-Aug-14,534.28,ST MARYS RESIDENTIAL HOME,SP0000215
WANDSWORTH COUNCIL,ASC,Revenue,SOCIAL SERVICES,PRIVATE,EXTERNAL DAYCARE,473383,130245290,26-Aug-14,516.50,ST MARYS RESIDENTIAL HOME,SP0000215
WANDSWORTH COUNCIL,ASC,Revenue,SOCIAL SERVICES,PRIVATE,EXTERNAL DAYCARE,473384,130245290,26-Aug-14,"2,171.05",ST MARYS RESIDENTIAL HOME,SP0000215
WANDSWORTH COUNCIL,ASC,Revenue,SOCIAL SERVICES,PRIVATE,EXTERNAL DAYCARE,473385,130245290,26-Aug-14,885.65,ST MARYS RESIDENTIAL HOME,SP0000215
WANDSWORTH COUNCIL,ASC,Revenue,SOCIAL SERVICES,PRIVATE,EXTERNAL DAYCARE,473386,130245290,26-Aug-14,500.00,ST MARYS RESIDENTIAL HOME,SP0000215
WANDSWORTH COUNCIL,ASC,Revenue,SOCIAL SERVICES,PRIVATE,EXTERNAL DAYCARE,473387,130245290,26-Aug-14,516.10,ST MARYS RESIDENTIAL HOME,SP0000215
WANDSWORTH COUNCIL,ASC,Revenue,SOCIAL SERVICES,PRIVATE,EXTERNAL DAYCARE,473388,130245290,26-Aug-14,516.50,ST MARYS RESIDENTIAL HOME,SP0000215
WANDSWORTH COUNCIL,ASC,Revenue,SOCIAL SERVICES,PRIVATE,EXTERNAL DAYCARE,473389,130245290,26-Aug-14,"1,196.00",ST MARYS RESIDENTIAL HOME,SP0000215
WANDSWORTH COUNCIL,ASC,Revenue,SOCIAL SERVICES,PRIVATE,EXTERNAL DAYCARE,473390,130245290,26-Aug-14,516.10,ST MARYS RESIDENTIAL HOME,SP0000215
WANDSWORTH COUNCIL,ASC,Revenue,SOCIAL SERVICES,PRIVATE,EXTERNAL DAYCARE,473391,130245290,26-Aug-14,667.85,ST MARYS RESIDENTIAL HOME,SP0000215
WANDSWORTH COUNCIL,ASC,Revenue,SOCIAL SERVICES,PRIVATE,EXTERNAL DAYCARE,474117,130245290,27-Aug-14,"1,736.84",ST MARYS RESIDENTIAL HOME,SP0000215
WANDSWORTH COUNCIL,ASC,Revenue,SOCIAL SERVICES,PRIVATE,EXTERNAL DAYCARE,459618,130245290,07-Aug-14,530.00,SURREY & BORDERS PARTNERSHIP NHS TRUST,SP0000501
WANDSWORTH COUNCIL,ASC,Revenue,SOCIAL SERVICES,PRIVATE,EXTERNAL DAYCARE,459596,130245290,07-Aug-14,"7,520.00",SURREY COUNTY COUNCIL,SP0000930
WANDSWORTH COUNCIL,ASC,Revenue,SOCIAL SERVICES,PRIVATE,EXTERNAL DAYCARE,463598,130245290,12-Aug-14,"7,520.00",SURREY COUNTY COUNCIL,SP0000930
WANDSWORTH COUNCIL,ASC,Revenue,SOCIAL SERVICES,PRIVATE,EXTERNAL DAYCARE,463599,130245290,12-Aug-14,"2,880.00",SURREY COUNTY COUNCIL,SP0000930
WANDSWORTH COUNCIL,ASC,Revenue,SOCIAL SERVICES,PRIVATE,EXTERNAL DAYCARE,463600,130245290,12-Aug-14,"2,880.00",SURREY COUNTY COUNCIL,SP0000930
WANDSWORTH COUNCIL,ASC,Revenue,SOCIAL SERVICES,PRIVATE,EXTERNAL DAYCARE,473410,130245290,26-Aug-14,"7,098.00",SURREY COUNTY COUNCIL,SP0000930
WANDSWORTH COUNCIL,ASC,Revenue,SOCIAL SERVICES,PRIVATE,EXTERNAL DAYCARE,469758,130245290,20-Aug-14,"1,407.00",SUSSEX HEALTH CARE,SP0001115
WANDSWORTH COUNCIL,ASC,Revenue,SOCIAL SERVICES,PRIVATE,EXTERNAL DAYCARE,461519,130245290,08-Aug-14,650.00,THE CAMDEN SOCIETY,SP0001674
WANDSWORTH COUNCIL,ASC,Revenue,SOCIAL SERVICES,PRIVATE,EXTERNAL DAYCARE,461520,130245290,08-Aug-14,650.00,THE CAMDEN SOCIETY,SP0001674
WANDSWORTH COUNCIL,ASC,Revenue,SOCIAL SERVICES,PRIVATE,EXTERNAL DAYCARE,461521,130245290,08-Aug-14,650.00,THE CAMDEN SOCIETY,SP0001674
WANDSWORTH COUNCIL,ASC,Revenue,SOCIAL SERVICES,PRIVATE,EXTERNAL DAYCARE,461522,130245290,08-Aug-14,650.00,THE CAMDEN SOCIETY,SP0001674
WANDSWORTH COUNCIL,ASC,Revenue,SOCIAL SERVICES,PRIVATE,EXTERNAL DAYCARE,461523,130245290,08-Aug-14,650.00,THE CAMDEN SOCIETY,SP0001674
WANDSWORTH COUNCIL,ASC,Revenue,SOCIAL SERVICES,PRIVATE,EXTERNAL DAYCARE,461524,130245290,08-Aug-14,650.00,THE CAMDEN SOCIETY,SP0001674
WANDSWORTH COUNCIL,ASC,Revenue,SOCIAL SERVICES,PRIVATE,EXTERNAL DAYCARE,459584,130245290,07-Aug-14,"2,830.88",THE CAMPHILL VILLAGE TRUST,SP0000145
WANDSWORTH COUNCIL,ASC,Revenue,SOCIAL SERVICES,PRIVATE,EXTERNAL DAYCARE,461445,130245290,08-Aug-14,125.80,THE CHESTNUTS,SP0000182
WANDSWORTH COUNCIL,ASC,Revenue,SOCIAL SERVICES,PRIVATE,EXTERNAL DAYCARE,461446,130245290,08-Aug-14,125.80,THE CHESTNUTS,SP0000182
WANDSWORTH COUNCIL,ASC,Revenue,SOCIAL SERVICES,PRIVATE,EXTERNAL DAYCARE,461527,130245290,08-Aug-14,644.00,THE CHESTNUTS,SP0000182
WANDSWORTH COUNCIL,ASC,Revenue,SOCIAL SERVICES,PRIVATE,EXTERNAL DAYCARE,461528,130245290,08-Aug-14,644.00,THE CHESTNUTS,SP0000182
WANDSWORTH COUNCIL,ASC,Revenue,SOCIAL SERVICES,PRIVATE,EXTERNAL DAYCARE,469902,130245290,20-Aug-14,"1,045.00",THE HOME FARM TRUST LTD,SP0001048
WANDSWORTH COUNCIL,ASC,Revenue,SOCIAL SERVICES,PRIVATE,EXTERNAL DAYCARE,465871,130245290,14-Aug-14,980.00,THE MANOR,SP0000340
WANDSWORTH COUNCIL,ASC,Revenue,SOCIAL SERVICES,PRIVATE,EXTERNAL DAYCARE,465872,130245290,14-Aug-14,980.00,THE MANOR,SP0000340
WANDSWORTH COUNCIL,ASC,Revenue,SOCIAL SERVICES,PRIVATE,EXTERNAL DAYCARE,467964,130245290,19-Aug-14,"1,057.00",THE MANOR HOUSE,SP0000728
WANDSWORTH COUNCIL,ASC,Revenue,SOCIAL SERVICES,PRIVATE,EXTERNAL DAYCARE,457073,130245290,04-Aug-14,"1,956.01",THE REGARD PARTNERSHIP,SP0000588
WANDSWORTH COUNCIL,ASC,Revenue,SOCIAL SERVICES,PRIVATE,EXTERNAL DAYCARE,457081,130245290,04-Aug-14,"1,371.17",THE REGARD PARTNERSHIP,SP0000588
WANDSWORTH COUNCIL,ASC,Revenue,SOCIAL SERVICES,PRIVATE,EXTERNAL DAYCARE,474716,130245290,28-Aug-14,"1,956.01",THE REGARD PARTNERSHIP,SP0000588
WANDSWORTH COUNCIL,ASC,Revenue,SOCIAL SERVICES,PRIVATE,EXTERNAL DAYCARE,474725,130245290,28-Aug-14,"1,371.17",THE REGARD PARTNERSHIP,SP0000588
WANDSWORTH COUNCIL,ASC,Revenue,SOCIAL SERVICES,PRIVATE,EXTERNAL DAYCARE,460418,130245290,07-Aug-14,660.00,THRIVE,SP0000601
WANDSWORTH COUNCIL,ASC,Revenue,SOCIAL SERVICES,PRIVATE,EXTERNAL DAYCARE,461575,130245290,08-Aug-14,528.00,THRIVE,SP0000601
WANDSWORTH COUNCIL,ASC,Revenue,SOCIAL SERVICES,PRIVATE,EXTERNAL DAYCARE,473398,130245290,26-Aug-14,528.00,THRIVE,SP0000601
WANDSWORTH COUNCIL,ASC,Revenue,SOCIAL SERVICES,PRIVATE,EXTERNAL DAYCARE,459239,130245290,07-Aug-14,527.36,UNITED RESPONSE,SP0000797
WANDSWORTH COUNCIL,ASC,Revenue,SOCIAL SERVICES,PRIVATE,EXTERNAL DAYCARE,469789,130245290,20-Aug-14,527.36,UNITED RESPONSE,SP0000797
WANDSWORTH COUNCIL,ASC,Revenue,SOCIAL SERVICES,PRIVATE,EXTERNAL DAYCARE,457074,130245290,04-Aug-14,578.08,VOYAGE CARE LTD,SP0000366
WANDSWORTH COUNCIL,ASC,Revenue,SOCIAL SERVICES,PRIVATE,EXTERNAL DAYCARE,457080,130245290,04-Aug-14,"1,654.08",VOYAGE CARE LTD,SP0000366
WANDSWORTH COUNCIL,ASC,Revenue,SOCIAL SERVICES,PRIVATE,EXTERNAL DAYCARE,459201,130245290,07-Aug-14,"1,080.54",VOYAGE CARE LTD,SP0000366
WANDSWORTH COUNCIL,ASC,Revenue,SOCIAL SERVICES,PRIVATE,EXTERNAL DAYCARE,474679,130245290,28-Aug-14,939.60,VOYAGE CARE LTD,SP0000366
WANDSWORTH COUNCIL,ASC,Revenue,SOCIAL SERVICES,PRIVATE,EXTERNAL DAYCARE,474717,130245290,28-Aug-14,578.08,VOYAGE CARE LTD,SP0000366
WANDSWORTH COUNCIL,ASC,Revenue,SOCIAL SERVICES,PRIVATE,EXTERNAL DAYCARE,474724,130245290,28-Aug-14,"1,654.08",VOYAGE CARE LTD,SP0000366
WANDSWORTH COUNCIL,ASC,Revenue,SOCIAL SERVICES,PRIVATE,EXTERNAL DAYCARE,467970,130245290,19-Aug-14,760.00,WANDSWORTH BENGALI WELFARE ASSOCIATION,SP0000479
WANDSWORTH COUNCIL,ASC,Revenue,SOCIAL SERVICES,PRIVATE,EXTERNAL DAYCARE,457075,130245290,04-Aug-14,"1,416.24",WINSLOW COURT,SP0000886
WANDSWORTH COUNCIL,ASC,Revenue,SOCIAL SERVICES,PRIVATE,EXTERNAL DAYCARE,457076,130245290,04-Aug-14,"1,416.24",WINSLOW COURT,SP0000886
WANDSWORTH COUNCIL,ASC,Revenue,SOCIAL SERVICES,PRIVATE,EXTERNAL DAYCARE,457077,130245290,04-Aug-14,"1,416.24",WINSLOW COURT,SP0000886
WANDSWORTH COUNCIL,ASC,Revenue,SOCIAL SERVICES,PRIVATE,EXTERNAL DAYCARE,459616,130245290,07-Aug-14,"1,416.24",WINSLOW COURT,SP0000886
WANDSWORTH COUNCIL,ASC,Revenue,SOCIAL SERVICES,PRIVATE,EXTERNAL DAYCARE,459537,130245290,07-Aug-14,632.00,WORKSHOP 305,SP0001403
WANDSWORTH COUNCIL,ASC,Revenue,SOCIAL SERVICES,PRIVATE,EXTERNAL DAYCARE,459539,130245290,07-Aug-14,552.00,WORKSHOP 305,SP0001403
WANDSWORTH COUNCIL,ASC,Revenue,SOCIAL SERVICES,PRIVATE,EXTERNAL DAYCARE,459540,130245290,07-Aug-14,828.00,WORKSHOP 305,SP0001403
WANDSWORTH COUNCIL,ASC,Revenue,SOCIAL SERVICES,PRIVATE,EXTERNAL DAYCARE,459548,130245290,07-Aug-14,944.00,WORKSHOP 305,SP0001403
WANDSWORTH COUNCIL,ASC,Revenue,SOCIAL SERVICES,PRIVATE,EXTERNAL DAYCARE,459552,130245290,07-Aug-14,708.00,WORKSHOP 305,SP0001403
WANDSWORTH COUNCIL,ASC,Revenue,SOCIAL SERVICES,PRIVATE,EXTERNAL DAYCARE,459560,130245290,07-Aug-14,828.00,WORKSHOP 305,SP0001403
WANDSWORTH COUNCIL,ASC,Revenue,SOCIAL SERVICES,PRIVATE,EXTERNAL DAYCARE,459566,130245290,07-Aug-14,552.00,WORKSHOP 305,SP0001403
WANDSWORTH COUNCIL,ASC,Revenue,SOCIAL SERVICES,PRIVATE,EXTERNAL DAYCARE,459568,130245290,07-Aug-14,708.00,WORKSHOP 305,SP0001403
WANDSWORTH COUNCIL,ASC,Revenue,SOCIAL SERVICES,PRIVATE,EXTERNAL DAYCARE,459571,130245290,07-Aug-14,552.00,WORKSHOP 305,SP0001403
WANDSWORTH COUNCIL,ASC,Revenue,SOCIAL SERVICES,PRIVATE,EXTERNAL DAYCARE,459578,130245290,07-Aug-14,944.00,WORKSHOP 305,SP0001403
WANDSWORTH COUNCIL,ASC,Revenue,SOCIAL SERVICES,PRIVATE,EXTERNAL DAYCARE,474073,130245290,27-Aug-14,632.00,WORKSHOP 305,SP0001403
WANDSWORTH COUNCIL,ASC,Revenue,SOCIAL SERVICES,PRIVATE,EXTERNAL DAYCARE,474075,130245290,27-Aug-14,552.00,WORKSHOP 305,SP0001403
WANDSWORTH COUNCIL,ASC,Revenue,SOCIAL SERVICES,PRIVATE,EXTERNAL DAYCARE,474076,130245290,27-Aug-14,828.00,WORKSHOP 305,SP0001403
WANDSWORTH COUNCIL,ASC,Revenue,SOCIAL SERVICES,PRIVATE,EXTERNAL DAYCARE,474083,130245290,27-Aug-14,944.00,WORKSHOP 305,SP0001403
WANDSWORTH COUNCIL,ASC,Revenue,SOCIAL SERVICES,PRIVATE,EXTERNAL DAYCARE,474087,130245290,27-Aug-14,708.00,WORKSHOP 305,SP0001403
WANDSWORTH COUNCIL,ASC,Revenue,SOCIAL SERVICES,PRIVATE,EXTERNAL DAYCARE,474095,130245290,27-Aug-14,828.00,WORKSHOP 305,SP0001403
WANDSWORTH COUNCIL,ASC,Revenue,SOCIAL SERVICES,PRIVATE,EXTERNAL DAYCARE,474101,130245290,27-Aug-14,552.00,WORKSHOP 305,SP0001403
WANDSWORTH COUNCIL,ASC,Revenue,SOCIAL SERVICES,PRIVATE,EXTERNAL DAYCARE,474103,130245290,27-Aug-14,708.00,WORKSHOP 305,SP0001403
WANDSWORTH COUNCIL,ASC,Revenue,SOCIAL SERVICES,PRIVATE,EXTERNAL DAYCARE,474106,130245290,27-Aug-14,552.00,WORKSHOP 305,SP0001403
WANDSWORTH COUNCIL,ASC,Revenue,SOCIAL SERVICES,PRIVATE,EXTERNAL DAYCARE,474114,130245290,27-Aug-14,944.00,WORKSHOP 305,SP0001403
WANDSWORTH COUNCIL,ASC,Revenue,SOCIAL SERVICES,PRIVATE,EXTERNAL HOMECARE,469845,130245300,20-Aug-14,"2,693.33",CHRISTIES CARE LTD,SP0005440
WANDSWORTH COUNCIL,ASC,Revenue,SOCIAL SERVICES,PRIVATE,EXTERNAL HOMECARE,472284,130245300,22-Aug-14,"4,480.00",HFH HEALTHCARE,SP0005937
WANDSWORTH COUNCIL,ASC,Revenue,SOCIAL SERVICES,PRIVATE,EXTERNAL HOMECARE,473226,130245300,26-Aug-14,"1,960.24",HFH HOMECARE,SP0001058
WANDSWORTH COUNCIL,ASC,Revenue,SOCIAL SERVICES,PRIVATE,EXTERNAL HOMECARE,474070,130245300,27-Aug-14,"1,485.60",HFH HOMECARE,SP0001058
WANDSWORTH COUNCIL,ASC,Revenue,SOCIAL SERVICES,PRIVATE,EXTERNAL HOMECARE,467941,130245300,19-Aug-14,"5,937.12",INDEPENDENCE HOMES LTD,SP0004378
WANDSWORTH COUNCIL,ASC,Revenue,SOCIAL SERVICES,PRIVATE,EXTERNAL HOMECARE,463528,130245300,12-Aug-14,"2,299.12",MEARS CARE LTD,SP0001491
WANDSWORTH COUNCIL,ASC,Revenue,SOCIAL SERVICES,PRIVATE,EXTERNAL HOMECARE,467945,130245300,19-Aug-14,784.30,MUSHKIL AASAAN LTD,SP0000978
WANDSWORTH COUNCIL,ASC,Revenue,SOCIAL SERVICES,PRIVATE,EXTERNAL HOMECARE,473999,130245300,27-Aug-14,975.00,MUSHKIL AASAAN LTD,SP0000978
WANDSWORTH COUNCIL,ASC,Revenue,SOCIAL SERVICES,PRIVATE,EXTERNAL HOMECARE,463503,130245300,12-Aug-14,639.93,PLAN PERSONNEL,SP0000359
WANDSWORTH COUNCIL,ASC,Revenue,SOCIAL SERVICES,PRIVATE,EXTERNAL HOMECARE,472244,130245300,22-Aug-14,637.10,PLAN PERSONNEL,SP0000359
WANDSWORTH COUNCIL,ASC,Revenue,SOCIAL SERVICES,PRIVATE,EXTERNAL HOMECARE,465741,130245300,14-Aug-14,"1,142.72",RAINBOW MEDICAL SERVICES,SP0000037
WANDSWORTH COUNCIL,ASC,Revenue,SOCIAL SERVICES,PRIVATE,EXTERNAL HOMECARE,459505,130245300,07-Aug-14,644.47,SOMA HEALTHCARE LTD,SP0001116
WANDSWORTH COUNCIL,ASC,Revenue,SOCIAL SERVICES,PRIVATE,EXTERNAL HOMECARE,474707,130245300,28-Aug-14,660.91,SOMA HEALTHCARE LTD,SP0001116
WANDSWORTH COUNCIL,ASC,Revenue,SOCIAL SERVICES,PRIVATE,EXTERNAL NURSING CARE,469457,130245310,20-Aug-14,"2,737.40",GEORGE POTTER CARE HOME LTD,SP0000276
WANDSWORTH COUNCIL,ASC,Revenue,SOCIAL SERVICES,PRIVATE,EXTERNAL NURSING CARE,467855,130245310,19-Aug-14,"4,915.40",RONALD GIBSON HOUSE,SP0000302
WANDSWORTH COUNCIL,ASC,Revenue,SOCIAL SERVICES,PRIVATE,EXTERNAL NURSING CARE,459258,130245310,07-Aug-14,"8,454.89",SUSSEX HEALTH CARE,SP0001115
WANDSWORTH COUNCIL,ASC,Revenue,SOCIAL SERVICES,PRIVATE,EXTERNAL NURSING CARE,474667,130245310,28-Aug-14,"8,454.89",SUSSEX HEALTH CARE,SP0001115
WANDSWORTH COUNCIL,ASC,Revenue,SOCIAL SERVICES,PRIVATE,EXTERNAL NURSING CARE,469665,130245310,20-Aug-14,"2,787.60",TRINITY COURT NURSING HOME,SP0001001
WANDSWORTH COUNCIL,ASC,Revenue,SOCIAL SERVICES,PRIVATE,EXTERNAL NURSING CARE,459169,130245310,07-Aug-14,"7,889.73",VOYAGE CARE LTD,SP0000366
WANDSWORTH COUNCIL,ASC,Revenue,SOCIAL SERVICES,PRIVATE,EXTERNAL NURSING CARE,474652,130245310,28-Aug-14,"7,889.72",VOYAGE CARE LTD,SP0000366
WANDSWORTH COUNCIL,ASC,Revenue,SOCIAL SERVICES,PRIVATE,EXTERNAL NURSING CARE,459205,130245310,07-Aug-14,"5,975.84",WINGHAM COURT,SP0000025
WANDSWORTH COUNCIL,ASC,Revenue,SOCIAL SERVICES,PRIVATE,EXTERNAL NURSING CARE,459268,130245310,07-Aug-14,"3,065.88",YEW TREE NURSING HOME,SP0000454
WANDSWORTH COUNCIL,ASC,Revenue,SOCIAL SERVICES,PRIVATE,EXTERNAL NURSING CARE,474685,130245310,28-Aug-14,"3,065.88",YEW TREE NURSING HOME,SP0000454
WANDSWORTH COUNCIL,ASC,Revenue,SOCIAL SERVICES,PRIVATE,EXTERNAL NURSING CARE,467918,130245310,19-Aug-14,"8,980.77",YORK COURT CARE HOME,SP0006091
WANDSWORTH COUNCIL,ASC,Revenue,SOCIAL SERVICES,PRIVATE,EXTERNAL RESIDENTIAL CARE,465682,130245330,14-Aug-14,"4,472.68",229 MITCHAM LANE LTD,SP0000884
WANDSWORTH COUNCIL,ASC,Revenue,SOCIAL SERVICES,PRIVATE,EXTERNAL RESIDENTIAL CARE,465683,130245330,14-Aug-14,"5,236.44",229 MITCHAM LANE LTD,SP0000884
WANDSWORTH COUNCIL,ASC,Revenue,SOCIAL SERVICES,PRIVATE,EXTERNAL RESIDENTIAL CARE,465684,130245330,14-Aug-14,"5,236.44",229 MITCHAM LANE LTD,SP0000884
WANDSWORTH COUNCIL,ASC,Revenue,SOCIAL SERVICES,PRIVATE,EXTERNAL RESIDENTIAL CARE,465685,130245330,14-Aug-14,"4,729.68",229 MITCHAM LANE LTD,SP0000884
WANDSWORTH COUNCIL,ASC,Revenue,SOCIAL SERVICES,PRIVATE,EXTERNAL RESIDENTIAL CARE,465686,130245330,14-Aug-14,"5,020.88",229 MITCHAM LANE LTD,SP0000884
WANDSWORTH COUNCIL,ASC,Revenue,SOCIAL SERVICES,PRIVATE,EXTERNAL RESIDENTIAL CARE,465687,130245330,14-Aug-14,"4,729.64",229 MITCHAM LANE LTD,SP0000884
WANDSWORTH COUNCIL,ASC,Revenue,SOCIAL SERVICES,PRIVATE,EXTERNAL RESIDENTIAL CARE,467865,130245330,19-Aug-14,"4,472.68",229 MITCHAM LANE LTD,SP0000884
WANDSWORTH COUNCIL,ASC,Revenue,SOCIAL SERVICES,PRIVATE,EXTERNAL RESIDENTIAL CARE,467866,130245330,19-Aug-14,"5,237.67",229 MITCHAM LANE LTD,SP0000884
WANDSWORTH COUNCIL,ASC,Revenue,SOCIAL SERVICES,PRIVATE,EXTERNAL RESIDENTIAL CARE,467867,130245330,19-Aug-14,"5,560.07",229 MITCHAM LANE LTD,SP0000884
WANDSWORTH COUNCIL,ASC,Revenue,SOCIAL SERVICES,PRIVATE,EXTERNAL RESIDENTIAL CARE,467868,130245330,19-Aug-14,"5,237.67",229 MITCHAM LANE LTD,SP0000884
WANDSWORTH COUNCIL,ASC,Revenue,SOCIAL SERVICES,PRIVATE,EXTERNAL RESIDENTIAL CARE,473161,130245330,26-Aug-14,"5,095.92",ACH OF LONDON LLP,SP0001688
WANDSWORTH COUNCIL,ASC,Revenue,SOCIAL SERVICES,PRIVATE,EXTERNAL RESIDENTIAL CARE,474639,130245330,28-Aug-14,"4,931.53",ACH OF LONDON LLP,SP0001688
WANDSWORTH COUNCIL,ASC,Revenue,SOCIAL SERVICES,PRIVATE,EXTERNAL RESIDENTIAL CARE,459259,130245330,07-Aug-14,"8,370.84",AIMS CARE PARTNERSHIP,SP0000561
WANDSWORTH COUNCIL,ASC,Revenue,SOCIAL SERVICES,PRIVATE,EXTERNAL RESIDENTIAL CARE,474668,130245330,28-Aug-14,"8,370.84",AIMS CARE PARTNERSHIP,SP0000561
WANDSWORTH COUNCIL,ASC,Revenue,SOCIAL SERVICES,PRIVATE,EXTERNAL RESIDENTIAL CARE,473167,130245330,26-Aug-14,"4,332.74",ALLIED CARE (MHS) LTD,SP0001069
WANDSWORTH COUNCIL,ASC,Revenue,SOCIAL SERVICES,PRIVATE,EXTERNAL RESIDENTIAL CARE,473183,130245330,26-Aug-14,"5,000.30",ALLIED CARE (MHS) LTD,SP0001069
WANDSWORTH COUNCIL,ASC,Revenue,SOCIAL SERVICES,PRIVATE,EXTERNAL RESIDENTIAL CARE,474632,130245330,28-Aug-14,"4,630.48",ALLIED CARE (MHS) LTD,SP0001069
WANDSWORTH COUNCIL,ASC,Revenue,SOCIAL SERVICES,PRIVATE,EXTERNAL RESIDENTIAL CARE,474633,130245330,28-Aug-14,"4,630.48",ALLIED CARE (MHS) LTD,SP0001069
WANDSWORTH COUNCIL,ASC,Revenue,SOCIAL SERVICES,PRIVATE,EXTERNAL RESIDENTIAL CARE,459210,130245330,07-Aug-14,"10,946.36",ASHCROFT CARE SERVICES,SP0000872
WANDSWORTH COUNCIL,ASC,Revenue,SOCIAL SERVICES,PRIVATE,EXTERNAL RESIDENTIAL CARE,459211,130245330,07-Aug-14,"11,311.23",ASHCROFT CARE SERVICES,SP0000872
WANDSWORTH COUNCIL,ASC,Revenue,SOCIAL SERVICES,PRIVATE,EXTERNAL RESIDENTIAL CARE,473166,130245330,26-Aug-14,"11,311.23",ASHCROFT CARE SERVICES,SP0000872
WANDSWORTH COUNCIL,ASC,Revenue,SOCIAL SERVICES,PRIVATE,EXTERNAL RESIDENTIAL CARE,459213,130245330,07-Aug-14,"3,842.32",BEECH LODGE,SP0000807
WANDSWORTH COUNCIL,ASC,Revenue,SOCIAL SERVICES,PRIVATE,EXTERNAL RESIDENTIAL CARE,459214,130245330,07-Aug-14,"3,830.91",BEECH LODGE,SP0000807
WANDSWORTH COUNCIL,ASC,Revenue,SOCIAL SERVICES,PRIVATE,EXTERNAL RESIDENTIAL CARE,459215,130245330,07-Aug-14,"3,842.32",BEECH LODGE,SP0000807
WANDSWORTH COUNCIL,ASC,Revenue,SOCIAL SERVICES,PRIVATE,EXTERNAL RESIDENTIAL CARE,469739,130245330,20-Aug-14,"3,970.39",BEECH LODGE,SP0000807
WANDSWORTH COUNCIL,ASC,Revenue,SOCIAL SERVICES,PRIVATE,EXTERNAL RESIDENTIAL CARE,469740,130245330,20-Aug-14,"3,970.39",BEECH LODGE,SP0000807
WANDSWORTH COUNCIL,ASC,Revenue,SOCIAL SERVICES,PRIVATE,EXTERNAL RESIDENTIAL CARE,469741,130245330,20-Aug-14,"3,970.39",BEECH LODGE,SP0000807
WANDSWORTH COUNCIL,ASC,Revenue,SOCIAL SERVICES,PRIVATE,EXTERNAL RESIDENTIAL CARE,469806,130245330,20-Aug-14,"6,641.44",BIRCC,SP0000584
WANDSWORTH COUNCIL,ASC,Revenue,SOCIAL SERVICES,PRIVATE,EXTERNAL RESIDENTIAL CARE,459278,130245330,07-Aug-14,"8,046.58",BROOKDALE CARE,SP0000282
WANDSWORTH COUNCIL,ASC,Revenue,SOCIAL SERVICES,PRIVATE,EXTERNAL RESIDENTIAL CARE,469786,130245330,20-Aug-14,"8,046.58",BROOKDALE CARE,SP0000282
WANDSWORTH COUNCIL,ASC,Revenue,SOCIAL SERVICES,PRIVATE,EXTERNAL RESIDENTIAL CARE,473171,130245330,26-Aug-14,"7,787.01",BROOKDALE CARE,SP0000282
WANDSWORTH COUNCIL,ASC,Revenue,SOCIAL SERVICES,PRIVATE,EXTERNAL RESIDENTIAL CARE,459287,130245330,07-Aug-14,"4,689.36",CAMERON LODGE LIMITED,SP0000271
WANDSWORTH COUNCIL,ASC,Revenue,SOCIAL SERVICES,PRIVATE,EXTERNAL RESIDENTIAL CARE,459219,130245330,07-Aug-14,"6,396.34",CARE UK LEARNING DISABILITIES SERVICES L,SP0001039
WANDSWORTH COUNCIL,ASC,Revenue,SOCIAL SERVICES,PRIVATE,EXTERNAL RESIDENTIAL CARE,459279,130245330,07-Aug-14,"6,609.54",CARE UK LEARNING DISABILITIES SERVICES L,SP0001039
WANDSWORTH COUNCIL,ASC,Revenue,SOCIAL SERVICES,PRIVATE,EXTERNAL RESIDENTIAL CARE,467902,130245330,19-Aug-14,"3,631.96",CARE UNLIMITED GROUP LTD,SP0001575
WANDSWORTH COUNCIL,ASC,Revenue,SOCIAL SERVICES,PRIVATE,EXTERNAL RESIDENTIAL CARE,467903,130245330,19-Aug-14,"3,631.96",CARE UNLIMITED GROUP LTD,SP0001575
WANDSWORTH COUNCIL,ASC,Revenue,SOCIAL SERVICES,PRIVATE,EXTERNAL RESIDENTIAL CARE,467904,130245330,19-Aug-14,"3,514.80",CARE UNLIMITED GROUP LTD,SP0001575
WANDSWORTH COUNCIL,ASC,Revenue,SOCIAL SERVICES,PRIVATE,EXTERNAL RESIDENTIAL CARE,467905,130245330,19-Aug-14,"3,631.96",CARE UNLIMITED GROUP LTD,SP0001575
WANDSWORTH COUNCIL,ASC,Revenue,SOCIAL SERVICES,PRIVATE,EXTERNAL RESIDENTIAL CARE,467906,130245330,19-Aug-14,"3,514.81",CARE UNLIMITED GROUP LTD,SP0001575
WANDSWORTH COUNCIL,ASC,Revenue,SOCIAL SERVICES,PRIVATE,EXTERNAL RESIDENTIAL CARE,461334,130245330,08-Aug-14,"3,975.08",CENTRUST CARE HOMES LTD,SP0000141
WANDSWORTH COUNCIL,ASC,Revenue,SOCIAL SERVICES,PRIVATE,EXTERNAL RESIDENTIAL CARE,469804,130245330,20-Aug-14,"3,975.08",CENTRUST CARE HOMES LTD,SP0000141
WANDSWORTH COUNCIL,ASC,Revenue,SOCIAL SERVICES,PRIVATE,EXTERNAL RESIDENTIAL CARE,459262,130245330,07-Aug-14,"7,959.25",CHATSWORTH CARE,SP0000831
WANDSWORTH COUNCIL,ASC,Revenue,SOCIAL SERVICES,PRIVATE,EXTERNAL RESIDENTIAL CARE,474675,130245330,28-Aug-14,"7,959.25",CHATSWORTH CARE,SP0000831
WANDSWORTH COUNCIL,ASC,Revenue,SOCIAL SERVICES,PRIVATE,EXTERNAL RESIDENTIAL CARE,459225,130245330,07-Aug-14,"3,861.82",CHERRY LODGE,SP0000965
WANDSWORTH COUNCIL,ASC,Revenue,SOCIAL SERVICES,PRIVATE,EXTERNAL RESIDENTIAL CARE,469748,130245330,20-Aug-14,"3,990.54",CHERRY LODGE,SP0000965
WANDSWORTH COUNCIL,ASC,Revenue,SOCIAL SERVICES,PRIVATE,EXTERNAL RESIDENTIAL CARE,463370,130245330,12-Aug-14,"5,632.12",CMG HOMES LTD,SP0000075
WANDSWORTH COUNCIL,ASC,Revenue,SOCIAL SERVICES,PRIVATE,EXTERNAL RESIDENTIAL CARE,463374,130245330,12-Aug-14,"3,911.48",CMG HOMES LTD,SP0000075
WANDSWORTH COUNCIL,ASC,Revenue,SOCIAL SERVICES,PRIVATE,EXTERNAL RESIDENTIAL CARE,463375,130245330,12-Aug-14,"4,372.00",CMG HOMES LTD,SP0000075
WANDSWORTH COUNCIL,ASC,Revenue,SOCIAL SERVICES,PRIVATE,EXTERNAL RESIDENTIAL CARE,463376,130245330,12-Aug-14,"8,061.00",CMG HOMES LTD,SP0000075
WANDSWORTH COUNCIL,ASC,Revenue,SOCIAL SERVICES,PRIVATE,EXTERNAL RESIDENTIAL CARE,463377,130245330,12-Aug-14,"4,866.36",CMG HOMES LTD,SP0000075
WANDSWORTH COUNCIL,ASC,Revenue,SOCIAL SERVICES,PRIVATE,EXTERNAL RESIDENTIAL CARE,463378,130245330,12-Aug-14,"4,646.00",CMG HOMES LTD,SP0000075
WANDSWORTH COUNCIL,ASC,Revenue,SOCIAL SERVICES,PRIVATE,EXTERNAL RESIDENTIAL CARE,463381,130245330,12-Aug-14,"7,123.64",CMG HOMES LTD,SP0000075
WANDSWORTH COUNCIL,ASC,Revenue,SOCIAL SERVICES,PRIVATE,EXTERNAL RESIDENTIAL CARE,463382,130245330,12-Aug-14,"4,415.60",CMG HOMES LTD,SP0000075
WANDSWORTH COUNCIL,ASC,Revenue,SOCIAL SERVICES,PRIVATE,EXTERNAL RESIDENTIAL CARE,469744,130245330,20-Aug-14,"6,007.12",CMG HOMES LTD,SP0000075
WANDSWORTH COUNCIL,ASC,Revenue,SOCIAL SERVICES,PRIVATE,EXTERNAL RESIDENTIAL CARE,469745,130245330,20-Aug-14,"5,553.00",CMG HOMES LTD,SP0000075
WANDSWORTH COUNCIL,ASC,Revenue,SOCIAL SERVICES,PRIVATE,EXTERNAL RESIDENTIAL CARE,469746,130245330,20-Aug-14,"3,862.12",CMG HOMES LTD,SP0000075
WANDSWORTH COUNCIL,ASC,Revenue,SOCIAL SERVICES,PRIVATE,EXTERNAL RESIDENTIAL CARE,469787,130245330,20-Aug-14,"8,192.86",CONDOVER COLLEGE LTD,SP0001641
WANDSWORTH COUNCIL,ASC,Revenue,SOCIAL SERVICES,PRIVATE,EXTERNAL RESIDENTIAL CARE,461439,130245330,08-Aug-14,"3,449.59",COUNTRY CARE,SP0000090
WANDSWORTH COUNCIL,ASC,Revenue,SOCIAL SERVICES,PRIVATE,EXTERNAL RESIDENTIAL CARE,473173,130245330,26-Aug-14,"3,449.59",COUNTRY CARE,SP0000090
WANDSWORTH COUNCIL,ASC,Revenue,SOCIAL SERVICES,PRIVATE,EXTERNAL RESIDENTIAL CARE,461440,130245330,08-Aug-14,"3,029.72",CRAEGMOOR FACILITIES CO LTD,SP0000306
WANDSWORTH COUNCIL,ASC,Revenue,SOCIAL SERVICES,PRIVATE,EXTERNAL RESIDENTIAL CARE,461441,130245330,08-Aug-14,"5,389.70",CREDITON CARE & SUPPORT HOMES,SP0000998
WANDSWORTH COUNCIL,ASC,Revenue,SOCIAL SERVICES,PRIVATE,EXTERNAL RESIDENTIAL CARE,469749,130245330,20-Aug-14,"5,389.70",CREDITON CARE & SUPPORT HOMES,SP0000998
WANDSWORTH COUNCIL,ASC,Revenue,SOCIAL SERVICES,PRIVATE,EXTERNAL RESIDENTIAL CARE,467862,130245330,19-Aug-14,"5,476.25",DOLPHIN HOMES LTD,SP0000331
WANDSWORTH COUNCIL,ASC,Revenue,SOCIAL SERVICES,PRIVATE,EXTERNAL RESIDENTIAL CARE,467863,130245330,19-Aug-14,"4,311.16",DOLPHIN HOMES LTD,SP0000331
WANDSWORTH COUNCIL,ASC,Revenue,SOCIAL SERVICES,PRIVATE,EXTERNAL RESIDENTIAL CARE,459229,130245330,07-Aug-14,"4,029.91",DOWNING (CHERTSEY ROAD) LTD,SP0000959
WANDSWORTH COUNCIL,ASC,Revenue,SOCIAL SERVICES,PRIVATE,EXTERNAL RESIDENTIAL CARE,473175,130245330,26-Aug-14,"4,029.91",DOWNING (CHERTSEY ROAD) LTD,SP0000959
WANDSWORTH COUNCIL,ASC,Revenue,SOCIAL SERVICES,PRIVATE,EXTERNAL RESIDENTIAL CARE,473182,130245330,26-Aug-14,"5,980.80",ENHAM,SP0005845
WANDSWORTH COUNCIL,ASC,Revenue,SOCIAL SERVICES,PRIVATE,EXTERNAL RESIDENTIAL CARE,459281,130245330,07-Aug-14,"5,646.25",ESSEX CARE CONSORTIUM,SP0000387
WANDSWORTH COUNCIL,ASC,Revenue,SOCIAL SERVICES,PRIVATE,EXTERNAL RESIDENTIAL CARE,473192,130245330,26-Aug-14,"5,464.11",ESSEX CARE CONSORTIUM,SP0000387
WANDSWORTH COUNCIL,ASC,Revenue,SOCIAL SERVICES,PRIVATE,EXTERNAL RESIDENTIAL CARE,459226,130245330,07-Aug-14,"2,267.32",FREEWAYS TRUST LTD,SP0000793
WANDSWORTH COUNCIL,ASC,Revenue,SOCIAL SERVICES,PRIVATE,EXTERNAL RESIDENTIAL CARE,467908,130245330,19-Aug-14,"2,267.32",FREEWAYS TRUST LTD,SP0000793
WANDSWORTH COUNCIL,ASC,Revenue,SOCIAL SERVICES,PRIVATE,EXTERNAL RESIDENTIAL CARE,467909,130245330,19-Aug-14,"2,267.32",FREEWAYS TRUST LTD,SP0000793
WANDSWORTH COUNCIL,ASC,Revenue,SOCIAL SERVICES,PRIVATE,EXTERNAL RESIDENTIAL CARE,467869,130245330,19-Aug-14,"3,724.72",HAYDON PARK LODGE LTD,SP0000231
WANDSWORTH COUNCIL,ASC,Revenue,SOCIAL SERVICES,PRIVATE,EXTERNAL RESIDENTIAL CARE,459235,130245330,07-Aug-14,"2,571.36",HEYWOODS GRANGE LTD,SP0000361
WANDSWORTH COUNCIL,ASC,Revenue,SOCIAL SERVICES,PRIVATE,EXTERNAL RESIDENTIAL CARE,459236,130245330,07-Aug-14,"3,107.14",HEYWOODS GRANGE LTD,SP0000361
WANDSWORTH COUNCIL,ASC,Revenue,SOCIAL SERVICES,PRIVATE,EXTERNAL RESIDENTIAL CARE,461382,130245330,08-Aug-14,"3,210.71",HEYWOODS GRANGE LTD,SP0000361
WANDSWORTH COUNCIL,ASC,Revenue,SOCIAL SERVICES,PRIVATE,EXTERNAL RESIDENTIAL CARE,473186,130245330,26-Aug-14,"2,571.36",HEYWOODS GRANGE LTD,SP0000361
WANDSWORTH COUNCIL,ASC,Revenue,SOCIAL SERVICES,PRIVATE,EXTERNAL RESIDENTIAL CARE,473185,130245330,26-Aug-14,"2,405.51",HILL PARK AUTISTIC TRUST,SP0000926
WANDSWORTH COUNCIL,ASC,Revenue,SOCIAL SERVICES,PRIVATE,EXTERNAL RESIDENTIAL CARE,467870,130245330,19-Aug-14,"6,679.26",HOME FROM HOME CARE LIMITED,SP0001373
WANDSWORTH COUNCIL,ASC,Revenue,SOCIAL SERVICES,PRIVATE,EXTERNAL RESIDENTIAL CARE,472211,130245330,22-Aug-14,"6,679.26",HOME FROM HOME CARE LIMITED,SP0001373
WANDSWORTH COUNCIL,ASC,Revenue,SOCIAL SERVICES,PRIVATE,EXTERNAL RESIDENTIAL CARE,459171,130245330,07-Aug-14,"12,485.03",ILG LTD,SP0001103
WANDSWORTH COUNCIL,ASC,Revenue,SOCIAL SERVICES,PRIVATE,EXTERNAL RESIDENTIAL CARE,467871,130245330,19-Aug-14,"5,025.37",IN CHORUS LTD,SP0000129
WANDSWORTH COUNCIL,ASC,Revenue,SOCIAL SERVICES,PRIVATE,EXTERNAL RESIDENTIAL CARE,461336,130245330,08-Aug-14,"4,150.04",KENILWORTH RESIDENTIAL HOME,SP0000432
WANDSWORTH COUNCIL,ASC,Revenue,SOCIAL SERVICES,PRIVATE,EXTERNAL RESIDENTIAL CARE,461337,130245330,08-Aug-14,"3,976.83",KENILWORTH RESIDENTIAL HOME,SP0000432
WANDSWORTH COUNCIL,ASC,Revenue,SOCIAL SERVICES,PRIVATE,EXTERNAL RESIDENTIAL CARE,461474,130245330,08-Aug-14,"10,836.28",KISIMUL GROUP LTD,SP0002487
WANDSWORTH COUNCIL,ASC,Revenue,SOCIAL SERVICES,PRIVATE,EXTERNAL RESIDENTIAL CARE,461475,130245330,08-Aug-14,"10,948.00",KISIMUL GROUP LTD,SP0002487
WANDSWORTH COUNCIL,ASC,Revenue,SOCIAL SERVICES,PRIVATE,EXTERNAL RESIDENTIAL CARE,472197,130245330,22-Aug-14,"4,792.20",LAETUS LODGE,SP0000600
WANDSWORTH COUNCIL,ASC,Revenue,SOCIAL SERVICES,PRIVATE,EXTERNAL RESIDENTIAL CARE,472198,130245330,22-Aug-14,"6,096.48",LAETUS LODGE,SP0000600
WANDSWORTH COUNCIL,ASC,Revenue,SOCIAL SERVICES,PRIVATE,EXTERNAL RESIDENTIAL CARE,472199,130245330,22-Aug-14,"3,759.76",LAETUS LODGE,SP0000600
WANDSWORTH COUNCIL,ASC,Revenue,SOCIAL SERVICES,PRIVATE,EXTERNAL RESIDENTIAL CARE,472200,130245330,22-Aug-14,"6,193.48",LAETUS LODGE,SP0000600
WANDSWORTH COUNCIL,ASC,Revenue,SOCIAL SERVICES,PRIVATE,EXTERNAL RESIDENTIAL CARE,472201,130245330,22-Aug-14,"3,759.76",LAETUS LODGE,SP0000600
WANDSWORTH COUNCIL,ASC,Revenue,SOCIAL SERVICES,PRIVATE,EXTERNAL RESIDENTIAL CARE,472202,130245330,22-Aug-14,"3,669.12",LAETUS LODGE,SP0000600
WANDSWORTH COUNCIL,ASC,Revenue,SOCIAL SERVICES,PRIVATE,EXTERNAL RESIDENTIAL CARE,472203,130245330,22-Aug-14,"3,759.76",LAETUS LODGE,SP0000600
WANDSWORTH COUNCIL,ASC,Revenue,SOCIAL SERVICES,PRIVATE,EXTERNAL RESIDENTIAL CARE,472204,130245330,22-Aug-14,"5,240.56",LAETUS LODGE,SP0000600
WANDSWORTH COUNCIL,ASC,Revenue,SOCIAL SERVICES,PRIVATE,EXTERNAL RESIDENTIAL CARE,461343,130245330,08-Aug-14,"4,967.48",LARKFIELD HALL LTD T/A PEPENBURY,SP0001378
WANDSWORTH COUNCIL,ASC,Revenue,SOCIAL SERVICES,PRIVATE,EXTERNAL RESIDENTIAL CARE,467844,130245330,19-Aug-14,"4,967.48",LARKFIELD HALL LTD T/A PEPENBURY,SP0001378
WANDSWORTH COUNCIL,ASC,Revenue,SOCIAL SERVICES,PRIVATE,EXTERNAL RESIDENTIAL CARE,473187,130245330,26-Aug-14,"7,528.57",LD CARE,SP0005447
WANDSWORTH COUNCIL,ASC,Revenue,SOCIAL SERVICES,PRIVATE,EXTERNAL RESIDENTIAL CARE,459290,130245330,07-Aug-14,"6,323.91",LEONARD CHESHIRE,SP0000976
WANDSWORTH COUNCIL,ASC,Revenue,SOCIAL SERVICES,PRIVATE,EXTERNAL RESIDENTIAL CARE,459341,130245330,07-Aug-14,"4,498.32",LEONARD CHESHIRE,SP0000976
WANDSWORTH COUNCIL,ASC,Revenue,SOCIAL SERVICES,PRIVATE,EXTERNAL RESIDENTIAL CARE,459342,130245330,07-Aug-14,"4,494.73",LEONARD CHESHIRE,SP0000976
WANDSWORTH COUNCIL,ASC,Revenue,SOCIAL SERVICES,PRIVATE,EXTERNAL RESIDENTIAL CARE,459343,130245330,07-Aug-14,"4,644.55",LEONARD CHESHIRE,SP0000976
WANDSWORTH COUNCIL,ASC,Revenue,SOCIAL SERVICES,PRIVATE,EXTERNAL RESIDENTIAL CARE,461421,130245330,08-Aug-14,"4,306.03",LEONARD CHESHIRE,SP0000976
WANDSWORTH COUNCIL,ASC,Revenue,SOCIAL SERVICES,PRIVATE,EXTERNAL RESIDENTIAL CARE,461378,130245330,08-Aug-14,"2,395.60",LIVABILITY,SP0000669
WANDSWORTH COUNCIL,ASC,Revenue,SOCIAL SERVICES,PRIVATE,EXTERNAL RESIDENTIAL CARE,467872,130245330,19-Aug-14,"6,916.63",LONDON CARE PARTNERSHIP LTD,SP0001138
WANDSWORTH COUNCIL,ASC,Revenue,SOCIAL SERVICES,PRIVATE,EXTERNAL RESIDENTIAL CARE,467873,130245330,19-Aug-14,"8,835.00",LONDON CARE PARTNERSHIP LTD,SP0001138
WANDSWORTH COUNCIL,ASC,Revenue,SOCIAL SERVICES,PRIVATE,EXTERNAL RESIDENTIAL CARE,467874,130245330,19-Aug-14,"8,192.86",LONDON CARE PARTNERSHIP LTD,SP0001138
WANDSWORTH COUNCIL,ASC,Revenue,SOCIAL SERVICES,PRIVATE,EXTERNAL RESIDENTIAL CARE,467875,130245330,19-Aug-14,"8,303.57",LONDON CARE PARTNERSHIP LTD,SP0001138
WANDSWORTH COUNCIL,ASC,Revenue,SOCIAL SERVICES,PRIVATE,EXTERNAL RESIDENTIAL CARE,467876,130245330,19-Aug-14,"8,525.00",LONDON CARE PARTNERSHIP LTD,SP0001138
WANDSWORTH COUNCIL,ASC,Revenue,SOCIAL SERVICES,PRIVATE,EXTERNAL RESIDENTIAL CARE,469818,130245330,20-Aug-14,"7,717.76",LORING HALL LIMITED,SP0000511
WANDSWORTH COUNCIL,ASC,Revenue,SOCIAL SERVICES,PRIVATE,EXTERNAL RESIDENTIAL CARE,461366,130245330,08-Aug-14,"4,613.60",LOTUS CARE HOME LTD,SP0001006
WANDSWORTH COUNCIL,ASC,Revenue,SOCIAL SERVICES,PRIVATE,EXTERNAL RESIDENTIAL CARE,473193,130245330,26-Aug-14,"4,613.60",LOTUS CARE HOME LTD,SP0001006
WANDSWORTH COUNCIL,ASC,Revenue,SOCIAL SERVICES,PRIVATE,EXTERNAL RESIDENTIAL CARE,459355,130245330,07-Aug-14,"11,322.96",LOVING CARE LTD,SP0000670
WANDSWORTH COUNCIL,ASC,Revenue,SOCIAL SERVICES,PRIVATE,EXTERNAL RESIDENTIAL CARE,459356,130245330,07-Aug-14,"11,282.12",LOVING CARE LTD,SP0000670
WANDSWORTH COUNCIL,ASC,Revenue,SOCIAL SERVICES,PRIVATE,EXTERNAL RESIDENTIAL CARE,459357,130245330,07-Aug-14,"11,475.84",LOVING CARE LTD,SP0000670
WANDSWORTH COUNCIL,ASC,Revenue,SOCIAL SERVICES,PRIVATE,EXTERNAL RESIDENTIAL CARE,459358,130245330,07-Aug-14,"11,017.24",LOVING CARE LTD,SP0000670
WANDSWORTH COUNCIL,ASC,Revenue,SOCIAL SERVICES,PRIVATE,EXTERNAL RESIDENTIAL CARE,459361,130245330,07-Aug-14,"11,475.88",LOVING CARE LTD,SP0000670
WANDSWORTH COUNCIL,ASC,Revenue,SOCIAL SERVICES,PRIVATE,EXTERNAL RESIDENTIAL CARE,459362,130245330,07-Aug-14,"11,170.12",LOVING CARE LTD,SP0000670
WANDSWORTH COUNCIL,ASC,Revenue,SOCIAL SERVICES,PRIVATE,EXTERNAL RESIDENTIAL CARE,459363,130245330,07-Aug-14,"11,475.88",LOVING CARE LTD,SP0000670
WANDSWORTH COUNCIL,ASC,Revenue,SOCIAL SERVICES,PRIVATE,EXTERNAL RESIDENTIAL CARE,472212,130245330,22-Aug-14,"11,322.96",LOVING CARE LTD,SP0000670
WANDSWORTH COUNCIL,ASC,Revenue,SOCIAL SERVICES,PRIVATE,EXTERNAL RESIDENTIAL CARE,472213,130245330,22-Aug-14,"11,282.12",LOVING CARE LTD,SP0000670
WANDSWORTH COUNCIL,ASC,Revenue,SOCIAL SERVICES,PRIVATE,EXTERNAL RESIDENTIAL CARE,472214,130245330,22-Aug-14,"11,475.84",LOVING CARE LTD,SP0000670
WANDSWORTH COUNCIL,ASC,Revenue,SOCIAL SERVICES,PRIVATE,EXTERNAL RESIDENTIAL CARE,472215,130245330,22-Aug-14,"11,017.24",LOVING CARE LTD,SP0000670
WANDSWORTH COUNCIL,ASC,Revenue,SOCIAL SERVICES,PRIVATE,EXTERNAL RESIDENTIAL CARE,472216,130245330,22-Aug-14,"11,475.40",LOVING CARE LTD,SP0000670
WANDSWORTH COUNCIL,ASC,Revenue,SOCIAL SERVICES,PRIVATE,EXTERNAL RESIDENTIAL CARE,472217,130245330,22-Aug-14,"11,170.12",LOVING CARE LTD,SP0000670
WANDSWORTH COUNCIL,ASC,Revenue,SOCIAL SERVICES,PRIVATE,EXTERNAL RESIDENTIAL CARE,472218,130245330,22-Aug-14,"11,475.88",LOVING CARE LTD,SP0000670
WANDSWORTH COUNCIL,ASC,Revenue,SOCIAL SERVICES,PRIVATE,EXTERNAL RESIDENTIAL CARE,461356,130245330,08-Aug-14,"5,206.28",MACINTYRE CARE,SP0000473
WANDSWORTH COUNCIL,ASC,Revenue,SOCIAL SERVICES,PRIVATE,EXTERNAL RESIDENTIAL CARE,461357,130245330,08-Aug-14,"3,759.64",MACINTYRE CARE,SP0000473
WANDSWORTH COUNCIL,ASC,Revenue,SOCIAL SERVICES,PRIVATE,EXTERNAL RESIDENTIAL CARE,461358,130245330,08-Aug-14,"5,429.64",MACINTYRE CARE,SP0000473
WANDSWORTH COUNCIL,ASC,Revenue,SOCIAL SERVICES,PRIVATE,EXTERNAL RESIDENTIAL CARE,461360,130245330,08-Aug-14,"3,759.64",MACINTYRE CARE,SP0000473
WANDSWORTH COUNCIL,ASC,Revenue,SOCIAL SERVICES,PRIVATE,EXTERNAL RESIDENTIAL CARE,461361,130245330,08-Aug-14,"5,192.48",MACINTYRE CARE,SP0000473
WANDSWORTH COUNCIL,ASC,Revenue,SOCIAL SERVICES,PRIVATE,EXTERNAL RESIDENTIAL CARE,461362,130245330,08-Aug-14,"3,750.72",MACINTYRE CARE,SP0000473
WANDSWORTH COUNCIL,ASC,Revenue,SOCIAL SERVICES,PRIVATE,EXTERNAL RESIDENTIAL CARE,461363,130245330,08-Aug-14,"3,813.84",MACINTYRE CARE,SP0000473
WANDSWORTH COUNCIL,ASC,Revenue,SOCIAL SERVICES,PRIVATE,EXTERNAL RESIDENTIAL CARE,461364,130245330,08-Aug-14,"4,998.84",MACINTYRE CARE,SP0000473
WANDSWORTH COUNCIL,ASC,Revenue,SOCIAL SERVICES,PRIVATE,EXTERNAL RESIDENTIAL CARE,461365,130245330,08-Aug-14,"5,097.20",MACINTYRE CARE,SP0000473
WANDSWORTH COUNCIL,ASC,Revenue,SOCIAL SERVICES,PRIVATE,EXTERNAL RESIDENTIAL CARE,461367,130245330,08-Aug-14,"8,054.24",MACINTYRE CARE,SP0000473
WANDSWORTH COUNCIL,ASC,Revenue,SOCIAL SERVICES,PRIVATE,EXTERNAL RESIDENTIAL CARE,461368,130245330,08-Aug-14,"5,026.36",MACINTYRE CARE,SP0000473
WANDSWORTH COUNCIL,ASC,Revenue,SOCIAL SERVICES,PRIVATE,EXTERNAL RESIDENTIAL CARE,461369,130245330,08-Aug-14,"5,429.76",MACINTYRE CARE,SP0000473
WANDSWORTH COUNCIL,ASC,Revenue,SOCIAL SERVICES,PRIVATE,EXTERNAL RESIDENTIAL CARE,461371,130245330,08-Aug-14,"4,909.16",MACINTYRE CARE,SP0000473
WANDSWORTH COUNCIL,ASC,Revenue,SOCIAL SERVICES,PRIVATE,EXTERNAL RESIDENTIAL CARE,461373,130245330,08-Aug-14,"4,907.76",MACINTYRE CARE,SP0000473
WANDSWORTH COUNCIL,ASC,Revenue,SOCIAL SERVICES,PRIVATE,EXTERNAL RESIDENTIAL CARE,461374,130245330,08-Aug-14,"4,907.76",MACINTYRE CARE,SP0000473
WANDSWORTH COUNCIL,ASC,Revenue,SOCIAL SERVICES,PRIVATE,EXTERNAL RESIDENTIAL CARE,461375,130245330,08-Aug-14,"4,901.68",MACINTYRE CARE,SP0000473
WANDSWORTH COUNCIL,ASC,Revenue,SOCIAL SERVICES,PRIVATE,EXTERNAL RESIDENTIAL CARE,461376,130245330,08-Aug-14,"5,030.56",MACINTYRE CARE,SP0000473
WANDSWORTH COUNCIL,ASC,Revenue,SOCIAL SERVICES,PRIVATE,EXTERNAL RESIDENTIAL CARE,461377,130245330,08-Aug-14,"4,907.76",MACINTYRE CARE,SP0000473
WANDSWORTH COUNCIL,ASC,Revenue,SOCIAL SERVICES,PRIVATE,EXTERNAL RESIDENTIAL CARE,467842,130245330,19-Aug-14,"7,523.88",MCCH SOCIETY LIMITED,SP0001531
WANDSWORTH COUNCIL,ASC,Revenue,SOCIAL SERVICES,PRIVATE,EXTERNAL RESIDENTIAL CARE,467843,130245330,19-Aug-14,"7,523.88",MCCH SOCIETY LIMITED,SP0001531
WANDSWORTH COUNCIL,ASC,Revenue,SOCIAL SERVICES,PRIVATE,EXTERNAL RESIDENTIAL CARE,467827,130245330,19-Aug-14,"3,454.37",MENCAP,SP0000604
WANDSWORTH COUNCIL,ASC,Revenue,SOCIAL SERVICES,PRIVATE,EXTERNAL RESIDENTIAL CARE,467828,130245330,19-Aug-14,"3,454.37",MENCAP,SP0000604
WANDSWORTH COUNCIL,ASC,Revenue,SOCIAL SERVICES,PRIVATE,EXTERNAL RESIDENTIAL CARE,467838,130245330,19-Aug-14,"2,391.83",MENCAP,SP0000604
WANDSWORTH COUNCIL,ASC,Revenue,SOCIAL SERVICES,PRIVATE,EXTERNAL RESIDENTIAL CARE,469810,130245330,20-Aug-14,"3,659.52",METROPOLITAN HOUSING TRUST,SP0000626
WANDSWORTH COUNCIL,ASC,Revenue,SOCIAL SERVICES,PRIVATE,EXTERNAL RESIDENTIAL CARE,469811,130245330,20-Aug-14,"3,659.52",METROPOLITAN HOUSING TRUST,SP0000626
WANDSWORTH COUNCIL,ASC,Revenue,SOCIAL SERVICES,PRIVATE,EXTERNAL RESIDENTIAL CARE,469812,130245330,20-Aug-14,"3,659.52",METROPOLITAN HOUSING TRUST,SP0000626
WANDSWORTH COUNCIL,ASC,Revenue,SOCIAL SERVICES,PRIVATE,EXTERNAL RESIDENTIAL CARE,469813,130245330,20-Aug-14,"3,659.52",METROPOLITAN HOUSING TRUST,SP0000626
WANDSWORTH COUNCIL,ASC,Revenue,SOCIAL SERVICES,PRIVATE,EXTERNAL RESIDENTIAL CARE,469814,130245330,20-Aug-14,"3,659.68",METROPOLITAN HOUSING TRUST,SP0000626
WANDSWORTH COUNCIL,ASC,Revenue,SOCIAL SERVICES,PRIVATE,EXTERNAL RESIDENTIAL CARE,469816,130245330,20-Aug-14,"3,659.52",METROPOLITAN HOUSING TRUST,SP0000626
WANDSWORTH COUNCIL,ASC,Revenue,SOCIAL SERVICES,PRIVATE,EXTERNAL RESIDENTIAL CARE,469819,130245330,20-Aug-14,"4,756.88",METROPOLITAN HOUSING TRUST,SP0000626
WANDSWORTH COUNCIL,ASC,Revenue,SOCIAL SERVICES,PRIVATE,EXTERNAL RESIDENTIAL CARE,469820,130245330,20-Aug-14,"4,756.88",METROPOLITAN HOUSING TRUST,SP0000626
WANDSWORTH COUNCIL,ASC,Revenue,SOCIAL SERVICES,PRIVATE,EXTERNAL RESIDENTIAL CARE,469821,130245330,20-Aug-14,"4,756.88",METROPOLITAN HOUSING TRUST,SP0000626
WANDSWORTH COUNCIL,ASC,Revenue,SOCIAL SERVICES,PRIVATE,EXTERNAL RESIDENTIAL CARE,469822,130245330,20-Aug-14,"4,756.88",METROPOLITAN HOUSING TRUST,SP0000626
WANDSWORTH COUNCIL,ASC,Revenue,SOCIAL SERVICES,PRIVATE,EXTERNAL RESIDENTIAL CARE,469823,130245330,20-Aug-14,"3,492.64",METROPOLITAN HOUSING TRUST,SP0000626
WANDSWORTH COUNCIL,ASC,Revenue,SOCIAL SERVICES,PRIVATE,EXTERNAL RESIDENTIAL CARE,469824,130245330,20-Aug-14,"3,659.52",METROPOLITAN HOUSING TRUST,SP0000626
WANDSWORTH COUNCIL,ASC,Revenue,SOCIAL SERVICES,PRIVATE,EXTERNAL RESIDENTIAL CARE,469825,130245330,20-Aug-14,"4,427.04",METROPOLITAN HOUSING TRUST,SP0000626
WANDSWORTH COUNCIL,ASC,Revenue,SOCIAL SERVICES,PRIVATE,EXTERNAL RESIDENTIAL CARE,469826,130245330,20-Aug-14,"4,427.04",METROPOLITAN HOUSING TRUST,SP0000626
WANDSWORTH COUNCIL,ASC,Revenue,SOCIAL SERVICES,PRIVATE,EXTERNAL RESIDENTIAL CARE,469828,130245330,20-Aug-14,"4,709.79",METROPOLITAN HOUSING TRUST,SP0000626
WANDSWORTH COUNCIL,ASC,Revenue,SOCIAL SERVICES,PRIVATE,EXTERNAL RESIDENTIAL CARE,469829,130245330,20-Aug-14,"4,709.79",METROPOLITAN HOUSING TRUST,SP0000626
WANDSWORTH COUNCIL,ASC,Revenue,SOCIAL SERVICES,PRIVATE,EXTERNAL RESIDENTIAL CARE,469830,130245330,20-Aug-14,"4,709.79",METROPOLITAN HOUSING TRUST,SP0000626
WANDSWORTH COUNCIL,ASC,Revenue,SOCIAL SERVICES,PRIVATE,EXTERNAL RESIDENTIAL CARE,469832,130245330,20-Aug-14,"4,709.79",METROPOLITAN HOUSING TRUST,SP0000626
WANDSWORTH COUNCIL,ASC,Revenue,SOCIAL SERVICES,PRIVATE,EXTERNAL RESIDENTIAL CARE,469833,130245330,20-Aug-14,"4,709.79",METROPOLITAN HOUSING TRUST,SP0000626
WANDSWORTH COUNCIL,ASC,Revenue,SOCIAL SERVICES,PRIVATE,EXTERNAL RESIDENTIAL CARE,469834,130245330,20-Aug-14,"4,709.79",METROPOLITAN HOUSING TRUST,SP0000626
WANDSWORTH COUNCIL,ASC,Revenue,SOCIAL SERVICES,PRIVATE,EXTERNAL RESIDENTIAL CARE,469836,130245330,20-Aug-14,"4,709.79",METROPOLITAN HOUSING TRUST,SP0000626
WANDSWORTH COUNCIL,ASC,Revenue,SOCIAL SERVICES,PRIVATE,EXTERNAL RESIDENTIAL CARE,469837,130245330,20-Aug-14,"4,709.79",METROPOLITAN HOUSING TRUST,SP0000626
WANDSWORTH COUNCIL,ASC,Revenue,SOCIAL SERVICES,PRIVATE,EXTERNAL RESIDENTIAL CARE,474636,130245330,28-Aug-14,"8,500.00",MIGHOUSE RESIDENTIAL CARE HOME LTD,SP0001402
WANDSWORTH COUNCIL,ASC,Revenue,SOCIAL SERVICES,PRIVATE,EXTERNAL RESIDENTIAL CARE,474637,130245330,28-Aug-14,"6,800.00",MIGHOUSE RESIDENTIAL CARE HOME LTD,SP0001402
WANDSWORTH COUNCIL,ASC,Revenue,SOCIAL SERVICES,PRIVATE,EXTERNAL RESIDENTIAL CARE,467841,130245330,19-Aug-14,"2,930.00",MISSION CARE,SP0000958
WANDSWORTH COUNCIL,ASC,Revenue,SOCIAL SERVICES,PRIVATE,EXTERNAL RESIDENTIAL CARE,459359,130245330,07-Aug-14,"3,370.92",NAS SERVICES LIMITED,SP0000217
WANDSWORTH COUNCIL,ASC,Revenue,SOCIAL SERVICES,PRIVATE,EXTERNAL RESIDENTIAL CARE,459360,130245330,07-Aug-14,"3,370.92",NAS SERVICES LIMITED,SP0000217
WANDSWORTH COUNCIL,ASC,Revenue,SOCIAL SERVICES,PRIVATE,EXTERNAL RESIDENTIAL CARE,461342,130245330,08-Aug-14,"5,487.72",NAS SERVICES LIMITED,SP0000217
WANDSWORTH COUNCIL,ASC,Revenue,SOCIAL SERVICES,PRIVATE,EXTERNAL RESIDENTIAL CARE,466315,130245330,15-Aug-14,"8,645.88",NAS SERVICES LIMITED,SP0000217
WANDSWORTH COUNCIL,ASC,Revenue,SOCIAL SERVICES,PRIVATE,EXTERNAL RESIDENTIAL CARE,466316,130245330,15-Aug-14,"8,645.88",NAS SERVICES LIMITED,SP0000217
WANDSWORTH COUNCIL,ASC,Revenue,SOCIAL SERVICES,PRIVATE,EXTERNAL RESIDENTIAL CARE,469800,130245330,20-Aug-14,"8,645.88",NAS SERVICES LIMITED,SP0000217
WANDSWORTH COUNCIL,ASC,Revenue,SOCIAL SERVICES,PRIVATE,EXTERNAL RESIDENTIAL CARE,473194,130245330,26-Aug-14,"3,370.92",NAS SERVICES LIMITED,SP0000217
WANDSWORTH COUNCIL,ASC,Revenue,SOCIAL SERVICES,PRIVATE,EXTERNAL RESIDENTIAL CARE,473443,130245330,27-Aug-14,"8,645.88",NAS SERVICES LIMITED,SP0000217
WANDSWORTH COUNCIL,ASC,Revenue,SOCIAL SERVICES,PRIVATE,EXTERNAL RESIDENTIAL CARE,465689,130245330,14-Aug-14,"6,000.00",NATIONAL SOCIETY FOR EPILEPSY,SP0000120
WANDSWORTH COUNCIL,ASC,Revenue,SOCIAL SERVICES,PRIVATE,EXTERNAL RESIDENTIAL CARE,461345,130245330,08-Aug-14,"6,154.44",NORWOOD SCHOOLS LTD,SP0000332
WANDSWORTH COUNCIL,ASC,Revenue,SOCIAL SERVICES,PRIVATE,EXTERNAL RESIDENTIAL CARE,461346,130245330,08-Aug-14,"6,409.80",NORWOOD SCHOOLS LTD,SP0000332
WANDSWORTH COUNCIL,ASC,Revenue,SOCIAL SERVICES,PRIVATE,EXTERNAL RESIDENTIAL CARE,469827,130245330,20-Aug-14,"4,383.40",NUTLEY HALL LTD,SP0001581
WANDSWORTH COUNCIL,ASC,Revenue,SOCIAL SERVICES,PRIVATE,EXTERNAL RESIDENTIAL CARE,461333,130245330,08-Aug-14,"1,647.40",ORCHARD VALE TRUST,SP0000214
WANDSWORTH COUNCIL,ASC,Revenue,SOCIAL SERVICES,PRIVATE,EXTERNAL RESIDENTIAL CARE,459283,130245330,07-Aug-14,"4,035.96",PARK LODGE SOLUTIONS LTD,SP0006663
WANDSWORTH COUNCIL,ASC,Revenue,SOCIAL SERVICES,PRIVATE,EXTERNAL RESIDENTIAL CARE,473165,130245330,26-Aug-14,"7,054.98",PARK LODGE SOLUTIONS LTD,SP0006663
WANDSWORTH COUNCIL,ASC,Revenue,SOCIAL SERVICES,PRIVATE,EXTERNAL RESIDENTIAL CARE,459233,130245330,07-Aug-14,"3,135.60",POTENSIAL LTD,SP0000395
WANDSWORTH COUNCIL,ASC,Revenue,SOCIAL SERVICES,PRIVATE,EXTERNAL RESIDENTIAL CARE,459291,130245330,07-Aug-14,"3,135.60",POTENSIAL LTD,SP0000395
WANDSWORTH COUNCIL,ASC,Revenue,SOCIAL SERVICES,PRIVATE,EXTERNAL RESIDENTIAL CARE,461443,130245330,08-Aug-14,"3,135.60",POTENSIAL LTD,SP0000395
WANDSWORTH COUNCIL,ASC,Revenue,SOCIAL SERVICES,PRIVATE,EXTERNAL RESIDENTIAL CARE,461344,130245330,08-Aug-14,"3,151.20",PROSPECTS,SP0000800
WANDSWORTH COUNCIL,ASC,Revenue,SOCIAL SERVICES,PRIVATE,EXTERNAL RESIDENTIAL CARE,459243,130245330,07-Aug-14,"8,576.72",RALEIGH HOUSE LTD,SP0000760
WANDSWORTH COUNCIL,ASC,Revenue,SOCIAL SERVICES,PRIVATE,EXTERNAL RESIDENTIAL CARE,459244,130245330,07-Aug-14,"7,763.33",RALEIGH HOUSE LTD,SP0000760
WANDSWORTH COUNCIL,ASC,Revenue,SOCIAL SERVICES,PRIVATE,EXTERNAL RESIDENTIAL CARE,459165,130245330,07-Aug-14,"1,418.40",REDACTED PERSONAL DATA,SP0000931
WANDSWORTH COUNCIL,ASC,Revenue,SOCIAL SERVICES,PRIVATE,EXTERNAL RESIDENTIAL CARE,459313,130245330,07-Aug-14,"1,418.40",REDACTED PERSONAL DATA,SP0000931
WANDSWORTH COUNCIL,ASC,Revenue,SOCIAL SERVICES,PRIVATE,EXTERNAL RESIDENTIAL CARE,474648,130245330,28-Aug-14,"1,418.40",REDACTED PERSONAL DATA,SP0000931
WANDSWORTH COUNCIL,ASC,Revenue,SOCIAL SERVICES,PRIVATE,EXTERNAL RESIDENTIAL CARE,474673,130245330,28-Aug-14,"6,206.86",RESIDENTIAL COMMUNITY CARE,SP0000315
WANDSWORTH COUNCIL,ASC,Revenue,SOCIAL SERVICES,PRIVATE,EXTERNAL RESIDENTIAL CARE,474674,130245330,28-Aug-14,"6,263.46",RESIDENTIAL COMMUNITY CARE,SP0000315
WANDSWORTH COUNCIL,ASC,Revenue,SOCIAL SERVICES,PRIVATE,EXTERNAL RESIDENTIAL CARE,459261,130245330,07-Aug-14,"6,493.16",RIDGEWOOD CARE SERVICES LTD,SP0000969
WANDSWORTH COUNCIL,ASC,Revenue,SOCIAL SERVICES,PRIVATE,EXTERNAL RESIDENTIAL CARE,459344,130245330,07-Aug-14,"3,359.36",RIDGEWOOD CARE SERVICES LTD,SP0000969
WANDSWORTH COUNCIL,ASC,Revenue,SOCIAL SERVICES,PRIVATE,EXTERNAL RESIDENTIAL CARE,467849,130245330,19-Aug-14,"3,359.36",RIDGEWOOD CARE SERVICES LTD,SP0000969
WANDSWORTH COUNCIL,ASC,Revenue,SOCIAL SERVICES,PRIVATE,EXTERNAL RESIDENTIAL CARE,467850,130245330,19-Aug-14,-24.00,RIDGEWOOD CARE SERVICES LTD,SP0000969
WANDSWORTH COUNCIL,ASC,Revenue,SOCIAL SERVICES,PRIVATE,EXTERNAL RESIDENTIAL CARE,474671,130245330,28-Aug-14,"3,548.76",RIDGEWOOD CARE SERVICES LTD,SP0000969
WANDSWORTH COUNCIL,ASC,Revenue,SOCIAL SERVICES,PRIVATE,EXTERNAL RESIDENTIAL CARE,474672,130245330,28-Aug-14,"6,493.16",RIDGEWOOD CARE SERVICES LTD,SP0000969
WANDSWORTH COUNCIL,ASC,Revenue,SOCIAL SERVICES,PRIVATE,EXTERNAL RESIDENTIAL CARE,467864,130245330,19-Aug-14,"8,784.69",ROOKERY HOVE PRIORY,SP0001498
WANDSWORTH COUNCIL,ASC,Revenue,SOCIAL SERVICES,PRIVATE,EXTERNAL RESIDENTIAL CARE,459332,130245330,07-Aug-14,"10,219.46",SALISBURY AUTISTIC CARE,SP0001691
WANDSWORTH COUNCIL,ASC,Revenue,SOCIAL SERVICES,PRIVATE,EXTERNAL RESIDENTIAL CARE,469401,130245330,20-Aug-14,"2,162.32",SANCTUARY CARE LTD,SP0000121
WANDSWORTH COUNCIL,ASC,Revenue,SOCIAL SERVICES,PRIVATE,EXTERNAL RESIDENTIAL CARE,459253,130245330,07-Aug-14,"2,500.06",SAXON COURT,SP0001100
WANDSWORTH COUNCIL,ASC,Revenue,SOCIAL SERVICES,PRIVATE,EXTERNAL RESIDENTIAL CARE,474660,130245330,28-Aug-14,"2,500.06",SAXON COURT,SP0001100
WANDSWORTH COUNCIL,ASC,Revenue,SOCIAL SERVICES,PRIVATE,EXTERNAL RESIDENTIAL CARE,467861,130245330,19-Aug-14,"2,592.44",SCOPE,SP0000852
WANDSWORTH COUNCIL,ASC,Revenue,SOCIAL SERVICES,PRIVATE,EXTERNAL RESIDENTIAL CARE,459333,130245330,07-Aug-14,"7,529.94",SEEABILITY,SP0000572
WANDSWORTH COUNCIL,ASC,Revenue,SOCIAL SERVICES,PRIVATE,EXTERNAL RESIDENTIAL CARE,465677,130245330,14-Aug-14,"8,720.00",SPRING LAKE,SP0000223
WANDSWORTH COUNCIL,ASC,Revenue,SOCIAL SERVICES,PRIVATE,EXTERNAL RESIDENTIAL CARE,465678,130245330,14-Aug-14,"7,600.00",SPRING LAKE,SP0000223
WANDSWORTH COUNCIL,ASC,Revenue,SOCIAL SERVICES,PRIVATE,EXTERNAL RESIDENTIAL CARE,459254,130245330,07-Aug-14,"2,178.12",ST DAVIDS CARE IN THE COMMUNITY,SP0000379
WANDSWORTH COUNCIL,ASC,Revenue,SOCIAL SERVICES,PRIVATE,EXTERNAL RESIDENTIAL CARE,459255,130245330,07-Aug-14,"2,625.12",ST DAVIDS CARE IN THE COMMUNITY,SP0000379
WANDSWORTH COUNCIL,ASC,Revenue,SOCIAL SERVICES,PRIVATE,EXTERNAL RESIDENTIAL CARE,459256,130245330,07-Aug-14,"2,178.12",ST DAVIDS CARE IN THE COMMUNITY,SP0000379
WANDSWORTH COUNCIL,ASC,Revenue,SOCIAL SERVICES,PRIVATE,EXTERNAL RESIDENTIAL CARE,474661,130245330,28-Aug-14,"2,178.12",ST DAVIDS CARE IN THE COMMUNITY,SP0000379
WANDSWORTH COUNCIL,ASC,Revenue,SOCIAL SERVICES,PRIVATE,EXTERNAL RESIDENTIAL CARE,474662,130245330,28-Aug-14,"2,625.12",ST DAVIDS CARE IN THE COMMUNITY,SP0000379
WANDSWORTH COUNCIL,ASC,Revenue,SOCIAL SERVICES,PRIVATE,EXTERNAL RESIDENTIAL CARE,474663,130245330,28-Aug-14,"2,178.12",ST DAVIDS CARE IN THE COMMUNITY,SP0000379
WANDSWORTH COUNCIL,ASC,Revenue,SOCIAL SERVICES,PRIVATE,EXTERNAL RESIDENTIAL CARE,465679,130245330,14-Aug-14,"3,269.48",ST MARYS RESIDENTIAL HOME,SP0000215
WANDSWORTH COUNCIL,ASC,Revenue,SOCIAL SERVICES,PRIVATE,EXTERNAL RESIDENTIAL CARE,465680,130245330,14-Aug-14,"3,101.12",ST MARYS RESIDENTIAL HOME,SP0000215
WANDSWORTH COUNCIL,ASC,Revenue,SOCIAL SERVICES,PRIVATE,EXTERNAL RESIDENTIAL CARE,465681,130245330,14-Aug-14,"3,723.12",ST MARYS RESIDENTIAL HOME,SP0000215
WANDSWORTH COUNCIL,ASC,Revenue,SOCIAL SERVICES,PRIVATE,EXTERNAL RESIDENTIAL CARE,467809,130245330,19-Aug-14,"3,961.80",ST MARYS RESIDENTIAL HOME,SP0000215
WANDSWORTH COUNCIL,ASC,Revenue,SOCIAL SERVICES,PRIVATE,EXTERNAL RESIDENTIAL CARE,467810,130245330,19-Aug-14,"3,467.14",ST MARYS RESIDENTIAL HOME,SP0000215
WANDSWORTH COUNCIL,ASC,Revenue,SOCIAL SERVICES,PRIVATE,EXTERNAL RESIDENTIAL CARE,467811,130245330,19-Aug-14,"3,582.71",ST MARYS RESIDENTIAL HOME,SP0000215
WANDSWORTH COUNCIL,ASC,Revenue,SOCIAL SERVICES,PRIVATE,EXTERNAL RESIDENTIAL CARE,467812,130245330,19-Aug-14,"3,898.73",ST MARYS RESIDENTIAL HOME,SP0000215
WANDSWORTH COUNCIL,ASC,Revenue,SOCIAL SERVICES,PRIVATE,EXTERNAL RESIDENTIAL CARE,467813,130245330,19-Aug-14,"5,127.48",ST MARYS RESIDENTIAL HOME,SP0000215
WANDSWORTH COUNCIL,ASC,Revenue,SOCIAL SERVICES,PRIVATE,EXTERNAL RESIDENTIAL CARE,467814,130245330,19-Aug-14,"3,569.82",ST MARYS RESIDENTIAL HOME,SP0000215
WANDSWORTH COUNCIL,ASC,Revenue,SOCIAL SERVICES,PRIVATE,EXTERNAL RESIDENTIAL CARE,467815,130245330,19-Aug-14,"3,711.63",ST MARYS RESIDENTIAL HOME,SP0000215
WANDSWORTH COUNCIL,ASC,Revenue,SOCIAL SERVICES,PRIVATE,EXTERNAL RESIDENTIAL CARE,467816,130245330,19-Aug-14,"3,134.18",ST MARYS RESIDENTIAL HOME,SP0000215
WANDSWORTH COUNCIL,ASC,Revenue,SOCIAL SERVICES,PRIVATE,EXTERNAL RESIDENTIAL CARE,467817,130245330,19-Aug-14,"5,041.35",ST MARYS RESIDENTIAL HOME,SP0000215
WANDSWORTH COUNCIL,ASC,Revenue,SOCIAL SERVICES,PRIVATE,EXTERNAL RESIDENTIAL CARE,467818,130245330,19-Aug-14,"3,619.78",ST MARYS RESIDENTIAL HOME,SP0000215
WANDSWORTH COUNCIL,ASC,Revenue,SOCIAL SERVICES,PRIVATE,EXTERNAL RESIDENTIAL CARE,467819,130245330,19-Aug-14,"3,582.71",ST MARYS RESIDENTIAL HOME,SP0000215
WANDSWORTH COUNCIL,ASC,Revenue,SOCIAL SERVICES,PRIVATE,EXTERNAL RESIDENTIAL CARE,467820,130245330,19-Aug-14,"3,269.48",ST MARYS RESIDENTIAL HOME,SP0000215
WANDSWORTH COUNCIL,ASC,Revenue,SOCIAL SERVICES,PRIVATE,EXTERNAL RESIDENTIAL CARE,467821,130245330,19-Aug-14,"2,313.48",ST MARYS RESIDENTIAL HOME,SP0000215
WANDSWORTH COUNCIL,ASC,Revenue,SOCIAL SERVICES,PRIVATE,EXTERNAL RESIDENTIAL CARE,467822,130245330,19-Aug-14,"3,801.92",ST MARYS RESIDENTIAL HOME,SP0000215
WANDSWORTH COUNCIL,ASC,Revenue,SOCIAL SERVICES,PRIVATE,EXTERNAL RESIDENTIAL CARE,467823,130245330,19-Aug-14,"2,313.48",ST MARYS RESIDENTIAL HOME,SP0000215
WANDSWORTH COUNCIL,ASC,Revenue,SOCIAL SERVICES,PRIVATE,EXTERNAL RESIDENTIAL CARE,467824,130245330,19-Aug-14,"3,101.12",ST MARYS RESIDENTIAL HOME,SP0000215
WANDSWORTH COUNCIL,ASC,Revenue,SOCIAL SERVICES,PRIVATE,EXTERNAL RESIDENTIAL CARE,467825,130245330,19-Aug-14,"3,723.12",ST MARYS RESIDENTIAL HOME,SP0000215
WANDSWORTH COUNCIL,ASC,Revenue,SOCIAL SERVICES,PRIVATE,EXTERNAL RESIDENTIAL CARE,467884,130245330,19-Aug-14,"3,961.80",ST MARYS RESIDENTIAL HOME,SP0000215
WANDSWORTH COUNCIL,ASC,Revenue,SOCIAL SERVICES,PRIVATE,EXTERNAL RESIDENTIAL CARE,467885,130245330,19-Aug-14,"3,582.71",ST MARYS RESIDENTIAL HOME,SP0000215
WANDSWORTH COUNCIL,ASC,Revenue,SOCIAL SERVICES,PRIVATE,EXTERNAL RESIDENTIAL CARE,467886,130245330,19-Aug-14,"3,898.73",ST MARYS RESIDENTIAL HOME,SP0000215
WANDSWORTH COUNCIL,ASC,Revenue,SOCIAL SERVICES,PRIVATE,EXTERNAL RESIDENTIAL CARE,467887,130245330,19-Aug-14,"5,127.48",ST MARYS RESIDENTIAL HOME,SP0000215
WANDSWORTH COUNCIL,ASC,Revenue,SOCIAL SERVICES,PRIVATE,EXTERNAL RESIDENTIAL CARE,467888,130245330,19-Aug-14,"3,569.82",ST MARYS RESIDENTIAL HOME,SP0000215
WANDSWORTH COUNCIL,ASC,Revenue,SOCIAL SERVICES,PRIVATE,EXTERNAL RESIDENTIAL CARE,467889,130245330,19-Aug-14,"3,711.63",ST MARYS RESIDENTIAL HOME,SP0000215
WANDSWORTH COUNCIL,ASC,Revenue,SOCIAL SERVICES,PRIVATE,EXTERNAL RESIDENTIAL CARE,467890,130245330,19-Aug-14,"3,134.18",ST MARYS RESIDENTIAL HOME,SP0000215
WANDSWORTH COUNCIL,ASC,Revenue,SOCIAL SERVICES,PRIVATE,EXTERNAL RESIDENTIAL CARE,467891,130245330,19-Aug-14,"5,041.35",ST MARYS RESIDENTIAL HOME,SP0000215
WANDSWORTH COUNCIL,ASC,Revenue,SOCIAL SERVICES,PRIVATE,EXTERNAL RESIDENTIAL CARE,467892,130245330,19-Aug-14,"3,619.78",ST MARYS RESIDENTIAL HOME,SP0000215
WANDSWORTH COUNCIL,ASC,Revenue,SOCIAL SERVICES,PRIVATE,EXTERNAL RESIDENTIAL CARE,467893,130245330,19-Aug-14,"3,582.71",ST MARYS RESIDENTIAL HOME,SP0000215
WANDSWORTH COUNCIL,ASC,Revenue,SOCIAL SERVICES,PRIVATE,EXTERNAL RESIDENTIAL CARE,467894,130245330,19-Aug-14,"2,313.48",ST MARYS RESIDENTIAL HOME,SP0000215
WANDSWORTH COUNCIL,ASC,Revenue,SOCIAL SERVICES,PRIVATE,EXTERNAL RESIDENTIAL CARE,467895,130245330,19-Aug-14,"3,801.92",ST MARYS RESIDENTIAL HOME,SP0000215
WANDSWORTH COUNCIL,ASC,Revenue,SOCIAL SERVICES,PRIVATE,EXTERNAL RESIDENTIAL CARE,467896,130245330,19-Aug-14,"2,313.48",ST MARYS RESIDENTIAL HOME,SP0000215
WANDSWORTH COUNCIL,ASC,Revenue,SOCIAL SERVICES,PRIVATE,EXTERNAL RESIDENTIAL CARE,473943,130245330,27-Aug-14,"3,941.92",ST MARYS RESIDENTIAL HOME,SP0000215
WANDSWORTH COUNCIL,ASC,Revenue,SOCIAL SERVICES,PRIVATE,EXTERNAL RESIDENTIAL CARE,473944,130245330,27-Aug-14,"3,941.92",ST MARYS RESIDENTIAL HOME,SP0000215
WANDSWORTH COUNCIL,ASC,Revenue,SOCIAL SERVICES,PRIVATE,EXTERNAL RESIDENTIAL CARE,473945,130245330,27-Aug-14,"3,941.92",ST MARYS RESIDENTIAL HOME,SP0000215
WANDSWORTH COUNCIL,ASC,Revenue,SOCIAL SERVICES,PRIVATE,EXTERNAL RESIDENTIAL CARE,473966,130245330,27-Aug-14,"3,269.48",ST MARYS RESIDENTIAL HOME,SP0000215
WANDSWORTH COUNCIL,ASC,Revenue,SOCIAL SERVICES,PRIVATE,EXTERNAL RESIDENTIAL CARE,467848,130245330,19-Aug-14,"3,255.26",STALLCOMBE HOUSE,SP0000843
WANDSWORTH COUNCIL,ASC,Revenue,SOCIAL SERVICES,PRIVATE,EXTERNAL RESIDENTIAL CARE,459338,130245330,07-Aug-14,"8,982.39",SURREY & BORDERS PARTNERSHIP NHS TRUST,SP0000501
WANDSWORTH COUNCIL,ASC,Revenue,SOCIAL SERVICES,PRIVATE,EXTERNAL RESIDENTIAL CARE,459339,130245330,07-Aug-14,"5,622.80",SURREY & BORDERS PARTNERSHIP NHS TRUST,SP0000501
WANDSWORTH COUNCIL,ASC,Revenue,SOCIAL SERVICES,PRIVATE,EXTERNAL RESIDENTIAL CARE,474666,130245330,28-Aug-14,"8,982.39",SURREY & BORDERS PARTNERSHIP NHS TRUST,SP0000501
WANDSWORTH COUNCIL,ASC,Revenue,SOCIAL SERVICES,PRIVATE,EXTERNAL RESIDENTIAL CARE,461348,130245330,08-Aug-14,"6,234.50",SUSSEX AUTISTIC COMMUNITY TRUST(CARE SER,SP0000652
WANDSWORTH COUNCIL,ASC,Revenue,SOCIAL SERVICES,PRIVATE,EXTERNAL RESIDENTIAL CARE,461422,130245330,08-Aug-14,"6,033.39",SUSSEX AUTISTIC COMMUNITY TRUST(CARE SER,SP0000652
WANDSWORTH COUNCIL,ASC,Revenue,SOCIAL SERVICES,PRIVATE,EXTERNAL RESIDENTIAL CARE,467852,130245330,19-Aug-14,"6,186.62",SUSSEX HEALTH CARE,SP0001115
WANDSWORTH COUNCIL,ASC,Revenue,SOCIAL SERVICES,PRIVATE,EXTERNAL RESIDENTIAL CARE,469758,130245330,20-Aug-14,"7,220.22",SUSSEX HEALTH CARE,SP0001115
WANDSWORTH COUNCIL,ASC,Revenue,SOCIAL SERVICES,PRIVATE,EXTERNAL RESIDENTIAL CARE,467901,130245330,19-Aug-14,"9,312.93",TANGLEWOOD CARE HOME,SP0000167
WANDSWORTH COUNCIL,ASC,Revenue,SOCIAL SERVICES,PRIVATE,EXTERNAL RESIDENTIAL CARE,461381,130245330,08-Aug-14,"6,408.96",THE BRANDON TRUST,SP0005337
WANDSWORTH COUNCIL,ASC,Revenue,SOCIAL SERVICES,PRIVATE,EXTERNAL RESIDENTIAL CARE,469751,130245330,20-Aug-14,"6,408.96",THE BRANDON TRUST,SP0005337
WANDSWORTH COUNCIL,ASC,Revenue,SOCIAL SERVICES,PRIVATE,EXTERNAL RESIDENTIAL CARE,461445,130245330,08-Aug-14,"4,593.96",THE CHESTNUTS,SP0000182
WANDSWORTH COUNCIL,ASC,Revenue,SOCIAL SERVICES,PRIVATE,EXTERNAL RESIDENTIAL CARE,461446,130245330,08-Aug-14,"4,593.96",THE CHESTNUTS,SP0000182
WANDSWORTH COUNCIL,ASC,Revenue,SOCIAL SERVICES,PRIVATE,EXTERNAL RESIDENTIAL CARE,461447,130245330,08-Aug-14,"5,555.16",THE CHESTNUTS,SP0000182
WANDSWORTH COUNCIL,ASC,Revenue,SOCIAL SERVICES,PRIVATE,EXTERNAL RESIDENTIAL CARE,461448,130245330,08-Aug-14,"5,555.16",THE CHESTNUTS,SP0000182
WANDSWORTH COUNCIL,ASC,Revenue,SOCIAL SERVICES,PRIVATE,EXTERNAL RESIDENTIAL CARE,459220,130245330,07-Aug-14,"5,588.41",THE COMMUNITY CARE COMPANY UK LTD,SP0000576
WANDSWORTH COUNCIL,ASC,Revenue,SOCIAL SERVICES,PRIVATE,EXTERNAL RESIDENTIAL CARE,459221,130245330,07-Aug-14,"9,564.12",THE COMMUNITY CARE COMPANY UK LTD,SP0000576
WANDSWORTH COUNCIL,ASC,Revenue,SOCIAL SERVICES,PRIVATE,EXTERNAL RESIDENTIAL CARE,459222,130245330,07-Aug-14,"7,051.53",THE COMMUNITY CARE COMPANY UK LTD,SP0000576
WANDSWORTH COUNCIL,ASC,Revenue,SOCIAL SERVICES,PRIVATE,EXTERNAL RESIDENTIAL CARE,459223,130245330,07-Aug-14,"5,943.28",THE COMMUNITY CARE COMPANY UK LTD,SP0000576
WANDSWORTH COUNCIL,ASC,Revenue,SOCIAL SERVICES,PRIVATE,EXTERNAL RESIDENTIAL CARE,459232,130245330,07-Aug-14,"7,131.86",THE COMMUNITY CARE COMPANY UK LTD,SP0000576
WANDSWORTH COUNCIL,ASC,Revenue,SOCIAL SERVICES,PRIVATE,EXTERNAL RESIDENTIAL CARE,459237,130245330,07-Aug-14,"6,127.37",THE COMMUNITY CARE COMPANY UK LTD,SP0000576
WANDSWORTH COUNCIL,ASC,Revenue,SOCIAL SERVICES,PRIVATE,EXTERNAL RESIDENTIAL CARE,461444,130245330,08-Aug-14,"5,929.72",THE COMMUNITY CARE COMPANY UK LTD,SP0000576
WANDSWORTH COUNCIL,ASC,Revenue,SOCIAL SERVICES,PRIVATE,EXTERNAL RESIDENTIAL CARE,473936,130245330,27-Aug-14,"5,588.41",THE COMMUNITY CARE COMPANY UK LTD,SP0000576
WANDSWORTH COUNCIL,ASC,Revenue,SOCIAL SERVICES,PRIVATE,EXTERNAL RESIDENTIAL CARE,473937,130245330,27-Aug-14,"9,564.12",THE COMMUNITY CARE COMPANY UK LTD,SP0000576
WANDSWORTH COUNCIL,ASC,Revenue,SOCIAL SERVICES,PRIVATE,EXTERNAL RESIDENTIAL CARE,473938,130245330,27-Aug-14,"5,943.28",THE COMMUNITY CARE COMPANY UK LTD,SP0000576
WANDSWORTH COUNCIL,ASC,Revenue,SOCIAL SERVICES,PRIVATE,EXTERNAL RESIDENTIAL CARE,473941,130245330,27-Aug-14,"7,131.86",THE COMMUNITY CARE COMPANY UK LTD,SP0000576
WANDSWORTH COUNCIL,ASC,Revenue,SOCIAL SERVICES,PRIVATE,EXTERNAL RESIDENTIAL CARE,473942,130245330,27-Aug-14,"6,127.37",THE COMMUNITY CARE COMPANY UK LTD,SP0000576
WANDSWORTH COUNCIL,ASC,Revenue,SOCIAL SERVICES,PRIVATE,EXTERNAL RESIDENTIAL CARE,474630,130245330,28-Aug-14,"7,051.53",THE COMMUNITY CARE COMPANY UK LTD,SP0000576
WANDSWORTH COUNCIL,ASC,Revenue,SOCIAL SERVICES,PRIVATE,EXTERNAL RESIDENTIAL CARE,461406,130245330,08-Aug-14,"7,708.95",THE DISABILITIES TRUST,SP0000239
WANDSWORTH COUNCIL,ASC,Revenue,SOCIAL SERVICES,PRIVATE,EXTERNAL RESIDENTIAL CARE,461335,130245330,08-Aug-14,"3,708.20",THE HOME FARM TRUST LTD,SP0001048
WANDSWORTH COUNCIL,ASC,Revenue,SOCIAL SERVICES,PRIVATE,EXTERNAL RESIDENTIAL CARE,463371,130245330,12-Aug-14,"2,743.88",THE HOME FARM TRUST LTD,SP0001048
WANDSWORTH COUNCIL,ASC,Revenue,SOCIAL SERVICES,PRIVATE,EXTERNAL RESIDENTIAL CARE,463372,130245330,12-Aug-14,"2,323.00",THE HOME FARM TRUST LTD,SP0001048
WANDSWORTH COUNCIL,ASC,Revenue,SOCIAL SERVICES,PRIVATE,EXTERNAL RESIDENTIAL CARE,463373,130245330,12-Aug-14,"2,457.40",THE HOME FARM TRUST LTD,SP0001048
WANDSWORTH COUNCIL,ASC,Revenue,SOCIAL SERVICES,PRIVATE,EXTERNAL RESIDENTIAL CARE,473143,130245330,26-Aug-14,"3,708.20",THE HOME FARM TRUST LTD,SP0001048
WANDSWORTH COUNCIL,ASC,Revenue,SOCIAL SERVICES,PRIVATE,EXTERNAL RESIDENTIAL CARE,474642,130245330,28-Aug-14,"2,743.88",THE HOME FARM TRUST LTD,SP0001048
WANDSWORTH COUNCIL,ASC,Revenue,SOCIAL SERVICES,PRIVATE,EXTERNAL RESIDENTIAL CARE,474643,130245330,28-Aug-14,"2,323.00",THE HOME FARM TRUST LTD,SP0001048
WANDSWORTH COUNCIL,ASC,Revenue,SOCIAL SERVICES,PRIVATE,EXTERNAL RESIDENTIAL CARE,474644,130245330,28-Aug-14,"2,457.40",THE HOME FARM TRUST LTD,SP0001048
WANDSWORTH COUNCIL,ASC,Revenue,SOCIAL SERVICES,PRIVATE,EXTERNAL RESIDENTIAL CARE,461338,130245330,08-Aug-14,"3,957.32",THE LEO TRUST,SP0000908
WANDSWORTH COUNCIL,ASC,Revenue,SOCIAL SERVICES,PRIVATE,EXTERNAL RESIDENTIAL CARE,469545,130245330,20-Aug-14,"2,671.60",THE LYLE PARK TRUST,SP0000070
WANDSWORTH COUNCIL,ASC,Revenue,SOCIAL SERVICES,PRIVATE,EXTERNAL RESIDENTIAL CARE,467880,130245330,19-Aug-14,"2,409.62",THE MANOR,SP0000340
WANDSWORTH COUNCIL,ASC,Revenue,SOCIAL SERVICES,PRIVATE,EXTERNAL RESIDENTIAL CARE,467879,130245330,19-Aug-14,"3,099.03",THE MANOR HOUSE,SP0000728
WANDSWORTH COUNCIL,ASC,Revenue,SOCIAL SERVICES,PRIVATE,EXTERNAL RESIDENTIAL CARE,459246,130245330,07-Aug-14,"7,409.79",THE REGARD PARTNERSHIP,SP0000588
WANDSWORTH COUNCIL,ASC,Revenue,SOCIAL SERVICES,PRIVATE,EXTERNAL RESIDENTIAL CARE,459247,130245330,07-Aug-14,"7,290.26",THE REGARD PARTNERSHIP,SP0000588
WANDSWORTH COUNCIL,ASC,Revenue,SOCIAL SERVICES,PRIVATE,EXTERNAL RESIDENTIAL CARE,459248,130245330,07-Aug-14,"6,689.57",THE REGARD PARTNERSHIP,SP0000588
WANDSWORTH COUNCIL,ASC,Revenue,SOCIAL SERVICES,PRIVATE,EXTERNAL RESIDENTIAL CARE,459249,130245330,07-Aug-14,"6,974.82",THE REGARD PARTNERSHIP,SP0000588
WANDSWORTH COUNCIL,ASC,Revenue,SOCIAL SERVICES,PRIVATE,EXTERNAL RESIDENTIAL CARE,459250,130245330,07-Aug-14,"7,073.86",THE REGARD PARTNERSHIP,SP0000588
WANDSWORTH COUNCIL,ASC,Revenue,SOCIAL SERVICES,PRIVATE,EXTERNAL RESIDENTIAL CARE,459251,130245330,07-Aug-14,"5,895.16",THE REGARD PARTNERSHIP,SP0000588
WANDSWORTH COUNCIL,ASC,Revenue,SOCIAL SERVICES,PRIVATE,EXTERNAL RESIDENTIAL CARE,459267,130245330,07-Aug-14,"7,794.28",THE REGARD PARTNERSHIP,SP0000588
WANDSWORTH COUNCIL,ASC,Revenue,SOCIAL SERVICES,PRIVATE,EXTERNAL RESIDENTIAL CARE,474654,130245330,28-Aug-14,"7,409.80",THE REGARD PARTNERSHIP,SP0000588
WANDSWORTH COUNCIL,ASC,Revenue,SOCIAL SERVICES,PRIVATE,EXTERNAL RESIDENTIAL CARE,474655,130245330,28-Aug-14,"7,290.27",THE REGARD PARTNERSHIP,SP0000588
WANDSWORTH COUNCIL,ASC,Revenue,SOCIAL SERVICES,PRIVATE,EXTERNAL RESIDENTIAL CARE,474656,130245330,28-Aug-14,"6,689.58",THE REGARD PARTNERSHIP,SP0000588
WANDSWORTH COUNCIL,ASC,Revenue,SOCIAL SERVICES,PRIVATE,EXTERNAL RESIDENTIAL CARE,474657,130245330,28-Aug-14,"7,073.85",THE REGARD PARTNERSHIP,SP0000588
WANDSWORTH COUNCIL,ASC,Revenue,SOCIAL SERVICES,PRIVATE,EXTERNAL RESIDENTIAL CARE,474658,130245330,28-Aug-14,"5,895.16",THE REGARD PARTNERSHIP,SP0000588
WANDSWORTH COUNCIL,ASC,Revenue,SOCIAL SERVICES,PRIVATE,EXTERNAL RESIDENTIAL CARE,474684,130245330,28-Aug-14,"7,794.29",THE REGARD PARTNERSHIP,SP0000588
WANDSWORTH COUNCIL,ASC,Revenue,SOCIAL SERVICES,PRIVATE,EXTERNAL RESIDENTIAL CARE,461404,130245330,08-Aug-14,"4,654.08",THE WELL HOUSE,SP0000448
WANDSWORTH COUNCIL,ASC,Revenue,SOCIAL SERVICES,PRIVATE,EXTERNAL RESIDENTIAL CARE,461405,130245330,08-Aug-14,"4,403.76",THE WELL HOUSE,SP0000448
WANDSWORTH COUNCIL,ASC,Revenue,SOCIAL SERVICES,PRIVATE,EXTERNAL RESIDENTIAL CARE,472205,130245330,22-Aug-14,"7,395.80",TOTTERDOWN,SP0001113
WANDSWORTH COUNCIL,ASC,Revenue,SOCIAL SERVICES,PRIVATE,EXTERNAL RESIDENTIAL CARE,472206,130245330,22-Aug-14,"3,671.24",TOTTERDOWN,SP0001113
WANDSWORTH COUNCIL,ASC,Revenue,SOCIAL SERVICES,PRIVATE,EXTERNAL RESIDENTIAL CARE,459260,130245330,07-Aug-14,"5,204.19",TRACS,SP0000914
WANDSWORTH COUNCIL,ASC,Revenue,SOCIAL SERVICES,PRIVATE,EXTERNAL RESIDENTIAL CARE,474669,130245330,28-Aug-14,"5,204.19",TRACS,SP0000914
WANDSWORTH COUNCIL,ASC,Revenue,SOCIAL SERVICES,PRIVATE,EXTERNAL RESIDENTIAL CARE,459216,130245330,07-Aug-14,"3,140.56",UNITED RESPONSE,SP0000797
WANDSWORTH COUNCIL,ASC,Revenue,SOCIAL SERVICES,PRIVATE,EXTERNAL RESIDENTIAL CARE,469759,130245330,20-Aug-14,"3,140.56",UNITED RESPONSE,SP0000797
WANDSWORTH COUNCIL,ASC,Revenue,SOCIAL SERVICES,PRIVATE,EXTERNAL RESIDENTIAL CARE,459170,130245330,07-Aug-14,"5,979.28",VOYAGE CARE LTD,SP0000366
WANDSWORTH COUNCIL,ASC,Revenue,SOCIAL SERVICES,PRIVATE,EXTERNAL RESIDENTIAL CARE,459172,130245330,07-Aug-14,"7,444.36",VOYAGE CARE LTD,SP0000366
WANDSWORTH COUNCIL,ASC,Revenue,SOCIAL SERVICES,PRIVATE,EXTERNAL RESIDENTIAL CARE,459198,130245330,07-Aug-14,"6,091.76",VOYAGE CARE LTD,SP0000366
WANDSWORTH COUNCIL,ASC,Revenue,SOCIAL SERVICES,PRIVATE,EXTERNAL RESIDENTIAL CARE,459199,130245330,07-Aug-14,"6,127.81",VOYAGE CARE LTD,SP0000366
WANDSWORTH COUNCIL,ASC,Revenue,SOCIAL SERVICES,PRIVATE,EXTERNAL RESIDENTIAL CARE,459201,130245330,07-Aug-14,"6,290.42",VOYAGE CARE LTD,SP0000366
WANDSWORTH COUNCIL,ASC,Revenue,SOCIAL SERVICES,PRIVATE,EXTERNAL RESIDENTIAL CARE,459203,130245330,07-Aug-14,"7,754.53",VOYAGE CARE LTD,SP0000366
WANDSWORTH COUNCIL,ASC,Revenue,SOCIAL SERVICES,PRIVATE,EXTERNAL RESIDENTIAL CARE,459204,130245330,07-Aug-14,"6,441.12",VOYAGE CARE LTD,SP0000366
WANDSWORTH COUNCIL,ASC,Revenue,SOCIAL SERVICES,PRIVATE,EXTERNAL RESIDENTIAL CARE,474653,130245330,28-Aug-14,"5,979.28",VOYAGE CARE LTD,SP0000366
WANDSWORTH COUNCIL,ASC,Revenue,SOCIAL SERVICES,PRIVATE,EXTERNAL RESIDENTIAL CARE,474659,130245330,28-Aug-14,"7,444.36",VOYAGE CARE LTD,SP0000366
WANDSWORTH COUNCIL,ASC,Revenue,SOCIAL SERVICES,PRIVATE,EXTERNAL RESIDENTIAL CARE,474677,130245330,28-Aug-14,"6,091.76",VOYAGE CARE LTD,SP0000366
WANDSWORTH COUNCIL,ASC,Revenue,SOCIAL SERVICES,PRIVATE,EXTERNAL RESIDENTIAL CARE,474678,130245330,28-Aug-14,"6,127.81",VOYAGE CARE LTD,SP0000366
WANDSWORTH COUNCIL,ASC,Revenue,SOCIAL SERVICES,PRIVATE,EXTERNAL RESIDENTIAL CARE,474679,130245330,28-Aug-14,"6,431.36",VOYAGE CARE LTD,SP0000366
WANDSWORTH COUNCIL,ASC,Revenue,SOCIAL SERVICES,PRIVATE,EXTERNAL RESIDENTIAL CARE,474682,130245330,28-Aug-14,"6,441.12",VOYAGE CARE LTD,SP0000366
WANDSWORTH COUNCIL,ASC,Revenue,SOCIAL SERVICES,PRIVATE,EXTERNAL RESIDENTIAL CARE,474683,130245330,28-Aug-14,"7,766.71",VOYAGE CARE LTD,SP0000366
WANDSWORTH COUNCIL,ASC,Revenue,SOCIAL SERVICES,PRIVATE,EXTERNAL RESIDENTIAL CARE,461419,130245330,08-Aug-14,"6,312.44",WESSEX AUTISTIC SOCIETY,SP0000805
WANDSWORTH COUNCIL,ASC,Revenue,SOCIAL SERVICES,PRIVATE,EXTERNAL RESIDENTIAL CARE,473169,130245330,26-Aug-14,"6,312.44",WESSEX AUTISTIC SOCIETY,SP0000805
WANDSWORTH COUNCIL,ASC,Revenue,SOCIAL SERVICES,PRIVATE,EXTERNAL RESIDENTIAL CARE,459265,130245330,07-Aug-14,"5,543.92",WINSLOW COURT,SP0000886
WANDSWORTH COUNCIL,ASC,Revenue,SOCIAL SERVICES,PRIVATE,EXTERNAL RESIDENTIAL CARE,459266,130245330,07-Aug-14,"5,761.68",WINSLOW COURT,SP0000886
WANDSWORTH COUNCIL,ASC,Revenue,SOCIAL SERVICES,PRIVATE,EXTERNAL RESI RESPITE CARE,473964,130245340,27-Aug-14,598.36,ST MARYS RESIDENTIAL HOME,SP0000215
WANDSWORTH COUNCIL,ASC,Revenue,SOCIAL SERVICES,PRIVATE,EXTERNAL RESI RESPITE CARE,473965,130245340,27-Aug-14,598.36,ST MARYS RESIDENTIAL HOME,SP0000215
WANDSWORTH COUNCIL,ASC,Revenue,SOCIAL SERVICES,PRIVATE,RESPITE CARE AT HOME -VOUCHERS,465742,130245510,14-Aug-14,"1,160.84",RAINBOW MEDICAL SERVICES,SP0000037
WANDSWORTH COUNCIL,ASC,Revenue,SOCIAL SERVICES,PRIVATE,ONE TO ONE CARE,473418,130246220,26-Aug-14,"2,018.10",ACH OF LONDON LLP,SP0001688
WANDSWORTH COUNCIL,ASC,Revenue,SOCIAL SERVICES,PRIVATE,ONE TO ONE CARE,457762,130246220,05-Aug-14,"2,884.77",DOWNING (CHERTSEY ROAD) LTD,SP0000959
WANDSWORTH COUNCIL,ASC,Revenue,SOCIAL SERVICES,PRIVATE,ONE TO ONE CARE,473422,130246220,26-Aug-14,"2,884.77",DOWNING (CHERTSEY ROAD) LTD,SP0000959
WANDSWORTH COUNCIL,ASC,Revenue,SOCIAL SERVICES,PRIVATE,ONE TO ONE CARE,457791,130246220,05-Aug-14,716.24,FRONTIER SUPPORT SERVICES LTD,SP0001132
WANDSWORTH COUNCIL,ASC,Revenue,SOCIAL SERVICES,PRIVATE,ONE TO ONE CARE,465203,130246220,14-Aug-14,976.56,HARROW MENCAP,SP0001347
WANDSWORTH COUNCIL,ASC,Revenue,SOCIAL SERVICES,PRIVATE,ONE TO ONE CARE,461740,130246220,08-Aug-14,900.00,HILL PARK AUTISTIC TRUST,SP0000926
WANDSWORTH COUNCIL,ASC,Revenue,SOCIAL SERVICES,PRIVATE,ONE TO ONE CARE,469913,130246220,20-Aug-14,900.00,HILL PARK AUTISTIC TRUST,SP0000926
WANDSWORTH COUNCIL,ASC,Revenue,SOCIAL SERVICES,PRIVATE,ONE TO ONE CARE,474728,130246220,28-Aug-14,900.00,HILL PARK AUTISTIC TRUST,SP0000926
WANDSWORTH COUNCIL,ASC,Revenue,SOCIAL SERVICES,PRIVATE,ONE TO ONE CARE,461589,130246220,08-Aug-14,802.08,LARKFIELD HALL LTD T/A PEPENBURY,SP0001378
WANDSWORTH COUNCIL,ASC,Revenue,SOCIAL SERVICES,PRIVATE,ONE TO ONE CARE,467985,130246220,19-Aug-14,802.08,LARKFIELD HALL LTD T/A PEPENBURY,SP0001378
WANDSWORTH COUNCIL,ASC,Revenue,SOCIAL SERVICES,PRIVATE,ONE TO ONE CARE,461680,130246220,08-Aug-14,"1,350.52",MACINTYRE CARE,SP0000473
WANDSWORTH COUNCIL,ASC,Revenue,SOCIAL SERVICES,PRIVATE,ONE TO ONE CARE,461681,130246220,08-Aug-14,"1,350.52",MACINTYRE CARE,SP0000473
WANDSWORTH COUNCIL,ASC,Revenue,SOCIAL SERVICES,PRIVATE,ONE TO ONE CARE,461682,130246220,08-Aug-14,"1,910.04",MACINTYRE CARE,SP0000473
WANDSWORTH COUNCIL,ASC,Revenue,SOCIAL SERVICES,PRIVATE,ONE TO ONE CARE,461683,130246220,08-Aug-14,"1,350.52",MACINTYRE CARE,SP0000473
WANDSWORTH COUNCIL,ASC,Revenue,SOCIAL SERVICES,PRIVATE,ONE TO ONE CARE,461684,130246220,08-Aug-14,694.56,MACINTYRE CARE,SP0000473
WANDSWORTH COUNCIL,ASC,Revenue,SOCIAL SERVICES,PRIVATE,ONE TO ONE CARE,465206,130246220,14-Aug-14,"1,143.00",RAINBOW MEDICAL SERVICES,SP0000037
WANDSWORTH COUNCIL,ASC,Revenue,SOCIAL SERVICES,PRIVATE,ONE TO ONE CARE,465207,130246220,14-Aug-14,"2,667.00",RAINBOW MEDICAL SERVICES,SP0000037
WANDSWORTH COUNCIL,ASC,Revenue,SOCIAL SERVICES,PRIVATE,ONE TO ONE CARE,465209,130246220,14-Aug-14,"1,858.40",RAINBOW MEDICAL SERVICES,SP0000037
WANDSWORTH COUNCIL,ASC,Revenue,SOCIAL SERVICES,PRIVATE,ONE TO ONE CARE,465211,130246220,14-Aug-14,"2,570.10",RAINBOW MEDICAL SERVICES,SP0000037
WANDSWORTH COUNCIL,ASC,Revenue,SOCIAL SERVICES,PRIVATE,ONE TO ONE CARE,474673,130246220,28-Aug-14,"1,963.85",RESIDENTIAL COMMUNITY CARE,SP0000315
WANDSWORTH COUNCIL,ASC,Revenue,SOCIAL SERVICES,PRIVATE,ONE TO ONE CARE,467982,130246220,19-Aug-14,693.78,ST MARYS RESIDENTIAL HOME,SP0000215
WANDSWORTH COUNCIL,ASC,Revenue,SOCIAL SERVICES,PRIVATE,ONE TO ONE CARE,467983,130246220,19-Aug-14,648.83,ST MARYS RESIDENTIAL HOME,SP0000215
WANDSWORTH COUNCIL,ASC,Revenue,SOCIAL SERVICES,PRIVATE,ONE TO ONE CARE,467987,130246220,19-Aug-14,648.83,ST MARYS RESIDENTIAL HOME,SP0000215
WANDSWORTH COUNCIL,ASC,Revenue,SOCIAL SERVICES,PRIVATE,ONE TO ONE CARE,473414,130246220,26-Aug-14,693.78,ST MARYS RESIDENTIAL HOME,SP0000215
WANDSWORTH COUNCIL,ASC,Revenue,SOCIAL SERVICES,PRIVATE,ONE TO ONE CARE,461594,130246220,08-Aug-14,"1,987.20",THE BRANDON TRUST,SP0005337
WANDSWORTH COUNCIL,ASC,Revenue,SOCIAL SERVICES,PRIVATE,ONE TO ONE CARE,461595,130246220,08-Aug-14,"1,312.00",THE BRANDON TRUST,SP0005337
WANDSWORTH COUNCIL,ASC,Revenue,SOCIAL SERVICES,PRIVATE,ONE TO ONE CARE,461598,130246220,08-Aug-14,"2,450.88",THE BRANDON TRUST,SP0005337
WANDSWORTH COUNCIL,ASC,Revenue,SOCIAL SERVICES,PRIVATE,ONE TO ONE CARE,461631,130246220,08-Aug-14,600.04,THE BRANDON TRUST,SP0005337
WANDSWORTH COUNCIL,ASC,Revenue,SOCIAL SERVICES,PRIVATE,ONE TO ONE CARE,461668,130246220,08-Aug-14,331.20,THE BRANDON TRUST,SP0005337
WANDSWORTH COUNCIL,ASC,Revenue,SOCIAL SERVICES,PRIVATE,ONE TO ONE CARE,461670,130246220,08-Aug-14,331.20,THE BRANDON TRUST,SP0005337
WANDSWORTH COUNCIL,ASC,Revenue,SOCIAL SERVICES,PRIVATE,ONE TO ONE CARE,461690,130246220,08-Aug-14,324.00,THE BRANDON TRUST,SP0005337
WANDSWORTH COUNCIL,ASC,Revenue,SOCIAL SERVICES,PRIVATE,ONE TO ONE CARE,468008,130246220,19-Aug-14,600.04,THE BRANDON TRUST,SP0005337
WANDSWORTH COUNCIL,ASC,Revenue,SOCIAL SERVICES,PRIVATE,ONE TO ONE CARE,468019,130246220,19-Aug-14,331.20,THE BRANDON TRUST,SP0005337
WANDSWORTH COUNCIL,ASC,Revenue,SOCIAL SERVICES,PRIVATE,ONE TO ONE CARE,468021,130246220,19-Aug-14,331.20,THE BRANDON TRUST,SP0005337
WANDSWORTH COUNCIL,ASC,Revenue,SOCIAL SERVICES,PRIVATE,ONE TO ONE CARE,469920,130246220,20-Aug-14,324.00,THE BRANDON TRUST,SP0005337
WANDSWORTH COUNCIL,ASC,Revenue,SOCIAL SERVICES,PRIVATE,ONE TO ONE CARE,469954,130246220,20-Aug-14,"1,987.20",THE BRANDON TRUST,SP0005337
WANDSWORTH COUNCIL,ASC,Revenue,SOCIAL SERVICES,PRIVATE,ONE TO ONE CARE,469955,130246220,20-Aug-14,"1,312.00",THE BRANDON TRUST,SP0005337
WANDSWORTH COUNCIL,ASC,Revenue,SOCIAL SERVICES,PRIVATE,ONE TO ONE CARE,469958,130246220,20-Aug-14,"2,450.88",THE BRANDON TRUST,SP0005337
WANDSWORTH COUNCIL,ASC,Revenue,SOCIAL SERVICES,PRIVATE,ONE TO ONE CARE,461742,130246220,08-Aug-14,720.00,THE CHESTNUTS,SP0000182
WANDSWORTH COUNCIL,ASC,Revenue,SOCIAL SERVICES,PRIVATE,ONE TO ONE CARE,461743,130246220,08-Aug-14,720.00,THE CHESTNUTS,SP0000182
WANDSWORTH COUNCIL,ASC,Revenue,SOCIAL SERVICES,PRIVATE,ONE TO ONE CARE,457758,130246220,05-Aug-14,"1,152.89",THE COMMUNITY CARE COMPANY UK LTD,SP0000576
WANDSWORTH COUNCIL,ASC,Revenue,SOCIAL SERVICES,PRIVATE,ONE TO ONE CARE,457759,130246220,05-Aug-14,"1,314.80",THE COMMUNITY CARE COMPANY UK LTD,SP0000576
WANDSWORTH COUNCIL,ASC,Revenue,SOCIAL SERVICES,PRIVATE,ONE TO ONE CARE,474160,130246220,27-Aug-14,"1,314.80",THE COMMUNITY CARE COMPANY UK LTD,SP0000576
WANDSWORTH COUNCIL,ASC,Revenue,SOCIAL SERVICES,PRIVATE,ONE TO ONE CARE,474727,130246220,28-Aug-14,"1,152.89",THE COMMUNITY CARE COMPANY UK LTD,SP0000576
WANDSWORTH COUNCIL,ASC,Revenue,SOCIAL SERVICES,PRIVATE,ONE TO ONE CARE,472280,130246220,22-Aug-14,"1,597.44",TOTTERDOWN,SP0001113
WANDSWORTH COUNCIL,ASC,Revenue,SOCIAL SERVICES,PRIVATE,ONE TO ONE CARE,457141,130246220,04-Aug-14,"1,062.86",VOYAGE CARE LTD,SP0000366
WANDSWORTH COUNCIL,ASC,Revenue,SOCIAL SERVICES,VOL ASS,SUPPORTED HOUSING PROGRAMME,465240,130248030,14-Aug-14,"1,320.00",ACT TOO LTD,SP0000855
WANDSWORTH COUNCIL,ASC,Revenue,SOCIAL SERVICES,VOL ASS,SUPPORTED HOUSING PROGRAMME,465241,130248030,14-Aug-14,"1,035.00",ACT TOO LTD,SP0000855
WANDSWORTH COUNCIL,ASC,Revenue,SOCIAL SERVICES,VOL ASS,SUPPORTED HOUSING PROGRAMME,465244,130248030,14-Aug-14,"1,350.00",ACT TOO LTD,SP0000855
WANDSWORTH COUNCIL,ASC,Revenue,SOCIAL SERVICES,VOL ASS,SUPPORTED HOUSING PROGRAMME,465245,130248030,14-Aug-14,"2,220.00",ACT TOO LTD,SP0000855
WANDSWORTH COUNCIL,ASC,Revenue,SOCIAL SERVICES,VOL ASS,SUPPORTED HOUSING PROGRAMME,465246,130248030,14-Aug-14,600.00,ACT TOO LTD,SP0000855
WANDSWORTH COUNCIL,ASC,Revenue,SOCIAL SERVICES,VOL ASS,SUPPORTED HOUSING PROGRAMME,465250,130248030,14-Aug-14,765.00,ACT TOO LTD,SP0000855
WANDSWORTH COUNCIL,ASC,Revenue,SOCIAL SERVICES,VOL ASS,SUPPORTED HOUSING PROGRAMME,465258,130248030,14-Aug-14,560.00,ACT TOO LTD,SP0000855
WANDSWORTH COUNCIL,ASC,Revenue,SOCIAL SERVICES,VOL ASS,SUPPORTED HOUSING PROGRAMME,465259,130248030,14-Aug-14,700.00,ACT TOO LTD,SP0000855
WANDSWORTH COUNCIL,ASC,Revenue,SOCIAL SERVICES,VOL ASS,SUPPORTED HOUSING PROGRAMME,465260,130248030,14-Aug-14,620.76,ACT TOO LTD,SP0000855
WANDSWORTH COUNCIL,ASC,Revenue,SOCIAL SERVICES,VOL ASS,SUPPORTED HOUSING PROGRAMME,469994,130248030,20-Aug-14,"1,320.00",ACT TOO LTD,SP0000855
WANDSWORTH COUNCIL,ASC,Revenue,SOCIAL SERVICES,VOL ASS,SUPPORTED HOUSING PROGRAMME,469995,130248030,20-Aug-14,"1,035.00",ACT TOO LTD,SP0000855
WANDSWORTH COUNCIL,ASC,Revenue,SOCIAL SERVICES,VOL ASS,SUPPORTED HOUSING PROGRAMME,469998,130248030,20-Aug-14,"1,350.00",ACT TOO LTD,SP0000855
WANDSWORTH COUNCIL,ASC,Revenue,SOCIAL SERVICES,VOL ASS,SUPPORTED HOUSING PROGRAMME,469999,130248030,20-Aug-14,"2,220.00",ACT TOO LTD,SP0000855
WANDSWORTH COUNCIL,ASC,Revenue,SOCIAL SERVICES,VOL ASS,SUPPORTED HOUSING PROGRAMME,470000,130248030,20-Aug-14,600.00,ACT TOO LTD,SP0000855
WANDSWORTH COUNCIL,ASC,Revenue,SOCIAL SERVICES,VOL ASS,SUPPORTED HOUSING PROGRAMME,470002,130248030,20-Aug-14,560.00,ACT TOO LTD,SP0000855
WANDSWORTH COUNCIL,ASC,Revenue,SOCIAL SERVICES,VOL ASS,SUPPORTED HOUSING PROGRAMME,470003,130248030,20-Aug-14,700.00,ACT TOO LTD,SP0000855
WANDSWORTH COUNCIL,ASC,Revenue,SOCIAL SERVICES,VOL ASS,SUPPORTED HOUSING PROGRAMME,461734,130248030,08-Aug-14,"1,964.20",C M CARE LTD,SP0000455
WANDSWORTH COUNCIL,ASC,Revenue,SOCIAL SERVICES,VOL ASS,SUPPORTED HOUSING PROGRAMME,467989,130248030,19-Aug-14,"4,772.00",CARE UNLIMITED DOMCARE LIMITED,SP0005359
WANDSWORTH COUNCIL,ASC,Revenue,SOCIAL SERVICES,VOL ASS,SUPPORTED HOUSING PROGRAMME,467990,130248030,19-Aug-14,"4,772.00",CARE UNLIMITED DOMCARE LIMITED,SP0005359
WANDSWORTH COUNCIL,ASC,Revenue,SOCIAL SERVICES,VOL ASS,SUPPORTED HOUSING PROGRAMME,457782,130248030,05-Aug-14,"8,080.68",CHOICE SUPPORT,SP0000398
WANDSWORTH COUNCIL,ASC,Revenue,SOCIAL SERVICES,VOL ASS,SUPPORTED HOUSING PROGRAMME,459288,130248030,07-Aug-14,"9,574.36",CHOICE SUPPORT,SP0000398
WANDSWORTH COUNCIL,ASC,Revenue,SOCIAL SERVICES,VOL ASS,SUPPORTED HOUSING PROGRAMME,459289,130248030,07-Aug-14,"7,972.24",CHOICE SUPPORT,SP0000398
WANDSWORTH COUNCIL,ASC,Revenue,SOCIAL SERVICES,VOL ASS,SUPPORTED HOUSING PROGRAMME,473939,130248030,27-Aug-14,"7,972.24",CHOICE SUPPORT,SP0000398
WANDSWORTH COUNCIL,ASC,Revenue,SOCIAL SERVICES,VOL ASS,SUPPORTED HOUSING PROGRAMME,473940,130248030,27-Aug-14,"9,574.36",CHOICE SUPPORT,SP0000398
WANDSWORTH COUNCIL,ASC,Revenue,SOCIAL SERVICES,VOL ASS,SUPPORTED HOUSING PROGRAMME,474161,130248030,27-Aug-14,"8,080.68",CHOICE SUPPORT,SP0000398
WANDSWORTH COUNCIL,ASC,Revenue,SOCIAL SERVICES,VOL ASS,SUPPORTED HOUSING PROGRAMME,463379,130248030,12-Aug-14,"4,120.24",CMG HOMES LTD,SP0000075
WANDSWORTH COUNCIL,ASC,Revenue,SOCIAL SERVICES,VOL ASS,SUPPORTED HOUSING PROGRAMME,457786,130248030,05-Aug-14,"1,251.12",FRONTIER SUPPORT SERVICES LTD,SP0001132
WANDSWORTH COUNCIL,ASC,Revenue,SOCIAL SERVICES,VOL ASS,SUPPORTED HOUSING PROGRAMME,457787,130248030,05-Aug-14,"1,864.88",FRONTIER SUPPORT SERVICES LTD,SP0001132
WANDSWORTH COUNCIL,ASC,Revenue,SOCIAL SERVICES,VOL ASS,SUPPORTED HOUSING PROGRAMME,457788,130248030,05-Aug-14,"1,097.56",FRONTIER SUPPORT SERVICES LTD,SP0001132
WANDSWORTH COUNCIL,ASC,Revenue,SOCIAL SERVICES,VOL ASS,SUPPORTED HOUSING PROGRAMME,457789,130248030,05-Aug-14,"1,685.92",FRONTIER SUPPORT SERVICES LTD,SP0001132
WANDSWORTH COUNCIL,ASC,Revenue,SOCIAL SERVICES,VOL ASS,SUPPORTED HOUSING PROGRAMME,457790,130248030,05-Aug-14,"1,353.32",FRONTIER SUPPORT SERVICES LTD,SP0001132
WANDSWORTH COUNCIL,ASC,Revenue,SOCIAL SERVICES,VOL ASS,SUPPORTED HOUSING PROGRAMME,457791,130248030,05-Aug-14,"1,097.64",FRONTIER SUPPORT SERVICES LTD,SP0001132
WANDSWORTH COUNCIL,ASC,Revenue,SOCIAL SERVICES,VOL ASS,SUPPORTED HOUSING PROGRAMME,457792,130248030,05-Aug-14,"1,353.32",FRONTIER SUPPORT SERVICES LTD,SP0001132
WANDSWORTH COUNCIL,ASC,Revenue,SOCIAL SERVICES,VOL ASS,SUPPORTED HOUSING PROGRAMME,457794,130248030,05-Aug-14,657.80,FRONTIER SUPPORT SERVICES LTD,SP0001132
WANDSWORTH COUNCIL,ASC,Revenue,SOCIAL SERVICES,VOL ASS,SUPPORTED HOUSING PROGRAMME,457795,130248030,05-Aug-14,"2,509.20",FRONTIER SUPPORT SERVICES LTD,SP0001132
WANDSWORTH COUNCIL,ASC,Revenue,SOCIAL SERVICES,VOL ASS,SUPPORTED HOUSING PROGRAMME,457796,130248030,05-Aug-14,"1,533.00",FRONTIER SUPPORT SERVICES LTD,SP0001132
WANDSWORTH COUNCIL,ASC,Revenue,SOCIAL SERVICES,VOL ASS,SUPPORTED HOUSING PROGRAMME,457797,130248030,05-Aug-14,"1,097.52",FRONTIER SUPPORT SERVICES LTD,SP0001132
WANDSWORTH COUNCIL,ASC,Revenue,SOCIAL SERVICES,VOL ASS,SUPPORTED HOUSING PROGRAMME,457799,130248030,05-Aug-14,"1,535.48",FRONTIER SUPPORT SERVICES LTD,SP0001132
WANDSWORTH COUNCIL,ASC,Revenue,SOCIAL SERVICES,VOL ASS,SUPPORTED HOUSING PROGRAMME,459528,130248030,07-Aug-14,833.06,HARINGEY ASSOCIATION FOR INDEPENDENT LIV,SP0000222
WANDSWORTH COUNCIL,ASC,Revenue,SOCIAL SERVICES,VOL ASS,SUPPORTED HOUSING PROGRAMME,459529,130248030,07-Aug-14,724.40,HARINGEY ASSOCIATION FOR INDEPENDENT LIV,SP0000222
WANDSWORTH COUNCIL,ASC,Revenue,SOCIAL SERVICES,VOL ASS,SUPPORTED HOUSING PROGRAMME,459531,130248030,07-Aug-14,"3,247.28",HARINGEY ASSOCIATION FOR INDEPENDENT LIV,SP0000222
WANDSWORTH COUNCIL,ASC,Revenue,SOCIAL SERVICES,VOL ASS,SUPPORTED HOUSING PROGRAMME,459532,130248030,07-Aug-14,"1,521.52",HARINGEY ASSOCIATION FOR INDEPENDENT LIV,SP0000222
WANDSWORTH COUNCIL,ASC,Revenue,SOCIAL SERVICES,VOL ASS,SUPPORTED HOUSING PROGRAMME,465738,130248030,14-Aug-14,713.78,HARINGEY ASSOCIATION FOR INDEPENDENT LIV,SP0000222
WANDSWORTH COUNCIL,ASC,Revenue,SOCIAL SERVICES,VOL ASS,SUPPORTED HOUSING PROGRAMME,467986,130248030,19-Aug-14,"6,104.21",INDEPENDENCE HOMES LTD,SP0004378
WANDSWORTH COUNCIL,ASC,Revenue,SOCIAL SERVICES,VOL ASS,SUPPORTED HOUSING PROGRAMME,20289644,130248030,08-Aug-14,"2,464.37",LIFEWAYS COMMUNITY CARE LTD,2002127
WANDSWORTH COUNCIL,ASC,Revenue,SOCIAL SERVICES,VOL ASS,SUPPORTED HOUSING PROGRAMME,20289645,130248030,08-Aug-14,"1,687.24",LIFEWAYS COMMUNITY CARE LTD,2002127
WANDSWORTH COUNCIL,ASC,Revenue,SOCIAL SERVICES,VOL ASS,SUPPORTED HOUSING PROGRAMME,20290229,130248030,18-Aug-14,"1,860.96",LIFEWAYS COMMUNITY CARE LTD,2002127
WANDSWORTH COUNCIL,ASC,Revenue,SOCIAL SERVICES,VOL ASS,SUPPORTED HOUSING PROGRAMME,20290241,130248030,18-Aug-14,"1,851.70",LIFEWAYS COMMUNITY CARE LTD,2002127
WANDSWORTH COUNCIL,ASC,Revenue,SOCIAL SERVICES,VOL ASS,SUPPORTED HOUSING PROGRAMME,457092,130248030,04-Aug-14,621.60,LIFEWAYS COMMUNITY CARE LTD,SP0000364
WANDSWORTH COUNCIL,ASC,Revenue,SOCIAL SERVICES,VOL ASS,SUPPORTED HOUSING PROGRAMME,457093,130248030,04-Aug-14,"3,292.68",LIFEWAYS COMMUNITY CARE LTD,SP0000364
WANDSWORTH COUNCIL,ASC,Revenue,SOCIAL SERVICES,VOL ASS,SUPPORTED HOUSING PROGRAMME,457094,130248030,04-Aug-14,"2,210.76",LIFEWAYS COMMUNITY CARE LTD,SP0000364
WANDSWORTH COUNCIL,ASC,Revenue,SOCIAL SERVICES,VOL ASS,SUPPORTED HOUSING PROGRAMME,457095,130248030,04-Aug-14,"1,901.64",LIFEWAYS COMMUNITY CARE LTD,SP0000364
WANDSWORTH COUNCIL,ASC,Revenue,SOCIAL SERVICES,VOL ASS,SUPPORTED HOUSING PROGRAMME,457096,130248030,04-Aug-14,"1,695.56",LIFEWAYS COMMUNITY CARE LTD,SP0000364
WANDSWORTH COUNCIL,ASC,Revenue,SOCIAL SERVICES,VOL ASS,SUPPORTED HOUSING PROGRAMME,457097,130248030,04-Aug-14,"1,953.16",LIFEWAYS COMMUNITY CARE LTD,SP0000364
WANDSWORTH COUNCIL,ASC,Revenue,SOCIAL SERVICES,VOL ASS,SUPPORTED HOUSING PROGRAMME,457098,130248030,04-Aug-14,"1,695.56",LIFEWAYS COMMUNITY CARE LTD,SP0000364
WANDSWORTH COUNCIL,ASC,Revenue,SOCIAL SERVICES,VOL ASS,SUPPORTED HOUSING PROGRAMME,457099,130248030,04-Aug-14,"1,901.64",LIFEWAYS COMMUNITY CARE LTD,SP0000364
WANDSWORTH COUNCIL,ASC,Revenue,SOCIAL SERVICES,VOL ASS,SUPPORTED HOUSING PROGRAMME,457100,130248030,04-Aug-14,"2,056.20",LIFEWAYS COMMUNITY CARE LTD,SP0000364
WANDSWORTH COUNCIL,ASC,Revenue,SOCIAL SERVICES,VOL ASS,SUPPORTED HOUSING PROGRAMME,457101,130248030,04-Aug-14,"1,489.48",LIFEWAYS COMMUNITY CARE LTD,SP0000364
WANDSWORTH COUNCIL,ASC,Revenue,SOCIAL SERVICES,VOL ASS,SUPPORTED HOUSING PROGRAMME,457102,130248030,04-Aug-14,"1,644.04",LIFEWAYS COMMUNITY CARE LTD,SP0000364
WANDSWORTH COUNCIL,ASC,Revenue,SOCIAL SERVICES,VOL ASS,SUPPORTED HOUSING PROGRAMME,457103,130248030,04-Aug-14,"2,725.96",LIFEWAYS COMMUNITY CARE LTD,SP0000364
WANDSWORTH COUNCIL,ASC,Revenue,SOCIAL SERVICES,VOL ASS,SUPPORTED HOUSING PROGRAMME,457105,130248030,04-Aug-14,732.48,LIFEWAYS COMMUNITY CARE LTD,SP0000364
WANDSWORTH COUNCIL,ASC,Revenue,SOCIAL SERVICES,VOL ASS,SUPPORTED HOUSING PROGRAMME,457108,130248030,04-Aug-14,"3,335.96",LIFEWAYS COMMUNITY CARE LTD,SP0000364
WANDSWORTH COUNCIL,ASC,Revenue,SOCIAL SERVICES,VOL ASS,SUPPORTED HOUSING PROGRAMME,457109,130248030,04-Aug-14,"2,603.48",LIFEWAYS COMMUNITY CARE LTD,SP0000364
WANDSWORTH COUNCIL,ASC,Revenue,SOCIAL SERVICES,VOL ASS,SUPPORTED HOUSING PROGRAMME,457110,130248030,04-Aug-14,"3,335.96",LIFEWAYS COMMUNITY CARE LTD,SP0000364
WANDSWORTH COUNCIL,ASC,Revenue,SOCIAL SERVICES,VOL ASS,SUPPORTED HOUSING PROGRAMME,457111,130248030,04-Aug-14,"2,603.48",LIFEWAYS COMMUNITY CARE LTD,SP0000364
WANDSWORTH COUNCIL,ASC,Revenue,SOCIAL SERVICES,VOL ASS,SUPPORTED HOUSING PROGRAMME,457112,130248030,04-Aug-14,"2,341.88",LIFEWAYS COMMUNITY CARE LTD,SP0000364
WANDSWORTH COUNCIL,ASC,Revenue,SOCIAL SERVICES,VOL ASS,SUPPORTED HOUSING PROGRAMME,457113,130248030,04-Aug-14,"1,292.80",LIFEWAYS COMMUNITY CARE LTD,SP0000364
WANDSWORTH COUNCIL,ASC,Revenue,SOCIAL SERVICES,VOL ASS,SUPPORTED HOUSING PROGRAMME,457114,130248030,04-Aug-14,"1,975.56",LIFEWAYS COMMUNITY CARE LTD,SP0000364
WANDSWORTH COUNCIL,ASC,Revenue,SOCIAL SERVICES,VOL ASS,SUPPORTED HOUSING PROGRAMME,457115,130248030,04-Aug-14,"2,025.24",LIFEWAYS COMMUNITY CARE LTD,SP0000364
WANDSWORTH COUNCIL,ASC,Revenue,SOCIAL SERVICES,VOL ASS,SUPPORTED HOUSING PROGRAMME,457116,130248030,04-Aug-14,"2,025.24",LIFEWAYS COMMUNITY CARE LTD,SP0000364
WANDSWORTH COUNCIL,ASC,Revenue,SOCIAL SERVICES,VOL ASS,SUPPORTED HOUSING PROGRAMME,457117,130248030,04-Aug-14,"1,395.72",LIFEWAYS COMMUNITY CARE LTD,SP0000364
WANDSWORTH COUNCIL,ASC,Revenue,SOCIAL SERVICES,VOL ASS,SUPPORTED HOUSING PROGRAMME,457118,130248030,04-Aug-14,"2,025.24",LIFEWAYS COMMUNITY CARE LTD,SP0000364
WANDSWORTH COUNCIL,ASC,Revenue,SOCIAL SERVICES,VOL ASS,SUPPORTED HOUSING PROGRAMME,457119,130248030,04-Aug-14,"2,244.28",LIFEWAYS COMMUNITY CARE LTD,SP0000364
WANDSWORTH COUNCIL,ASC,Revenue,SOCIAL SERVICES,VOL ASS,SUPPORTED HOUSING PROGRAMME,457120,130248030,04-Aug-14,"2,518.08",LIFEWAYS COMMUNITY CARE LTD,SP0000364
WANDSWORTH COUNCIL,ASC,Revenue,SOCIAL SERVICES,VOL ASS,SUPPORTED HOUSING PROGRAMME,457121,130248030,04-Aug-14,"2,025.24",LIFEWAYS COMMUNITY CARE LTD,SP0000364
WANDSWORTH COUNCIL,ASC,Revenue,SOCIAL SERVICES,VOL ASS,SUPPORTED HOUSING PROGRAMME,457122,130248030,04-Aug-14,"2,244.28",LIFEWAYS COMMUNITY CARE LTD,SP0000364
WANDSWORTH COUNCIL,ASC,Revenue,SOCIAL SERVICES,VOL ASS,SUPPORTED HOUSING PROGRAMME,457123,130248030,04-Aug-14,"2,299.04",LIFEWAYS COMMUNITY CARE LTD,SP0000364
WANDSWORTH COUNCIL,ASC,Revenue,SOCIAL SERVICES,VOL ASS,SUPPORTED HOUSING PROGRAMME,457124,130248030,04-Aug-14,"2,056.72",LIFEWAYS COMMUNITY CARE LTD,SP0000364
WANDSWORTH COUNCIL,ASC,Revenue,SOCIAL SERVICES,VOL ASS,SUPPORTED HOUSING PROGRAMME,457125,130248030,04-Aug-14,"2,187.52",LIFEWAYS COMMUNITY CARE LTD,SP0000364
WANDSWORTH COUNCIL,ASC,Revenue,SOCIAL SERVICES,VOL ASS,SUPPORTED HOUSING PROGRAMME,457126,130248030,04-Aug-14,"2,501.44",LIFEWAYS COMMUNITY CARE LTD,SP0000364
WANDSWORTH COUNCIL,ASC,Revenue,SOCIAL SERVICES,VOL ASS,SUPPORTED HOUSING PROGRAMME,457133,130248030,04-Aug-14,"1,850.12",LIFEWAYS COMMUNITY CARE LTD,SP0000364
WANDSWORTH COUNCIL,ASC,Revenue,SOCIAL SERVICES,VOL ASS,SUPPORTED HOUSING PROGRAMME,457134,130248030,04-Aug-14,"2,932.04",LIFEWAYS COMMUNITY CARE LTD,SP0000364
WANDSWORTH COUNCIL,ASC,Revenue,SOCIAL SERVICES,VOL ASS,SUPPORTED HOUSING PROGRAMME,457135,130248030,04-Aug-14,"2,551.16",LIFEWAYS COMMUNITY CARE LTD,SP0000364
WANDSWORTH COUNCIL,ASC,Revenue,SOCIAL SERVICES,VOL ASS,SUPPORTED HOUSING PROGRAMME,457136,130248030,04-Aug-14,"2,969.72",LIFEWAYS COMMUNITY CARE LTD,SP0000364
WANDSWORTH COUNCIL,ASC,Revenue,SOCIAL SERVICES,VOL ASS,SUPPORTED HOUSING PROGRAMME,457137,130248030,04-Aug-14,"2,551.16",LIFEWAYS COMMUNITY CARE LTD,SP0000364
WANDSWORTH COUNCIL,ASC,Revenue,SOCIAL SERVICES,VOL ASS,SUPPORTED HOUSING PROGRAMME,457138,130248030,04-Aug-14,"1,637.38",LIFEWAYS COMMUNITY CARE LTD,SP0000364
WANDSWORTH COUNCIL,ASC,Revenue,SOCIAL SERVICES,VOL ASS,SUPPORTED HOUSING PROGRAMME,457851,130248030,05-Aug-14,744.74,LIFEWAYS COMMUNITY CARE LTD,SP0000364
WANDSWORTH COUNCIL,ASC,Revenue,SOCIAL SERVICES,VOL ASS,SUPPORTED HOUSING PROGRAMME,459510,130248030,07-Aug-14,"7,336.00",LIFEWAYS COMMUNITY CARE LTD,SP0000364
WANDSWORTH COUNCIL,ASC,Revenue,SOCIAL SERVICES,VOL ASS,SUPPORTED HOUSING PROGRAMME,465739,130248030,14-Aug-14,"7,336.00",LIFEWAYS COMMUNITY CARE LTD,SP0000364
WANDSWORTH COUNCIL,ASC,Revenue,SOCIAL SERVICES,VOL ASS,SUPPORTED HOUSING PROGRAMME,465740,130248030,14-Aug-14,"7,336.00",LIFEWAYS COMMUNITY CARE LTD,SP0000364
WANDSWORTH COUNCIL,ASC,Revenue,SOCIAL SERVICES,VOL ASS,SUPPORTED HOUSING PROGRAMME,461590,130248030,08-Aug-14,"5,543.72",NORWOOD SCHOOLS LTD,SP0000332
WANDSWORTH COUNCIL,ASC,Revenue,SOCIAL SERVICES,VOL ASS,SUPPORTED HOUSING PROGRAMME,461592,130248030,08-Aug-14,"3,718.08",THE BRANDON TRUST,SP0005337
WANDSWORTH COUNCIL,ASC,Revenue,SOCIAL SERVICES,VOL ASS,SUPPORTED HOUSING PROGRAMME,461593,130248030,08-Aug-14,"3,121.92",THE BRANDON TRUST,SP0005337
WANDSWORTH COUNCIL,ASC,Revenue,SOCIAL SERVICES,VOL ASS,SUPPORTED HOUSING PROGRAMME,461594,130248030,08-Aug-14,"5,688.08",THE BRANDON TRUST,SP0005337
WANDSWORTH COUNCIL,ASC,Revenue,SOCIAL SERVICES,VOL ASS,SUPPORTED HOUSING PROGRAMME,461595,130248030,08-Aug-14,"5,983.44",THE BRANDON TRUST,SP0005337
WANDSWORTH COUNCIL,ASC,Revenue,SOCIAL SERVICES,VOL ASS,SUPPORTED HOUSING PROGRAMME,461596,130248030,08-Aug-14,"4,827.60",THE BRANDON TRUST,SP0005337
WANDSWORTH COUNCIL,ASC,Revenue,SOCIAL SERVICES,VOL ASS,SUPPORTED HOUSING PROGRAMME,461597,130248030,08-Aug-14,"6,346.04",THE BRANDON TRUST,SP0005337
WANDSWORTH COUNCIL,ASC,Revenue,SOCIAL SERVICES,VOL ASS,SUPPORTED HOUSING PROGRAMME,461598,130248030,08-Aug-14,"3,324.96",THE BRANDON TRUST,SP0005337
WANDSWORTH COUNCIL,ASC,Revenue,SOCIAL SERVICES,VOL ASS,SUPPORTED HOUSING PROGRAMME,461599,130248030,08-Aug-14,"2,886.04",THE BRANDON TRUST,SP0005337
WANDSWORTH COUNCIL,ASC,Revenue,SOCIAL SERVICES,VOL ASS,SUPPORTED HOUSING PROGRAMME,461600,130248030,08-Aug-14,"2,327.04",THE BRANDON TRUST,SP0005337
WANDSWORTH COUNCIL,ASC,Revenue,SOCIAL SERVICES,VOL ASS,SUPPORTED HOUSING PROGRAMME,461601,130248030,08-Aug-14,"2,856.96",THE BRANDON TRUST,SP0005337
WANDSWORTH COUNCIL,ASC,Revenue,SOCIAL SERVICES,VOL ASS,SUPPORTED HOUSING PROGRAMME,461602,130248030,08-Aug-14,"3,088.80",THE BRANDON TRUST,SP0005337
WANDSWORTH COUNCIL,ASC,Revenue,SOCIAL SERVICES,VOL ASS,SUPPORTED HOUSING PROGRAMME,461603,130248030,08-Aug-14,"2,758.28",THE BRANDON TRUST,SP0005337
WANDSWORTH COUNCIL,ASC,Revenue,SOCIAL SERVICES,VOL ASS,SUPPORTED HOUSING PROGRAMME,461604,130248030,08-Aug-14,"2,128.32",THE BRANDON TRUST,SP0005337
WANDSWORTH COUNCIL,ASC,Revenue,SOCIAL SERVICES,VOL ASS,SUPPORTED HOUSING PROGRAMME,461605,130248030,08-Aug-14,"6,198.76",THE BRANDON TRUST,SP0005337
WANDSWORTH COUNCIL,ASC,Revenue,SOCIAL SERVICES,VOL ASS,SUPPORTED HOUSING PROGRAMME,461606,130248030,08-Aug-14,"1,465.92",THE BRANDON TRUST,SP0005337
WANDSWORTH COUNCIL,ASC,Revenue,SOCIAL SERVICES,VOL ASS,SUPPORTED HOUSING PROGRAMME,461607,130248030,08-Aug-14,"1,548.72",THE BRANDON TRUST,SP0005337
WANDSWORTH COUNCIL,ASC,Revenue,SOCIAL SERVICES,VOL ASS,SUPPORTED HOUSING PROGRAMME,461608,130248030,08-Aug-14,"2,658.24",THE BRANDON TRUST,SP0005337
WANDSWORTH COUNCIL,ASC,Revenue,SOCIAL SERVICES,VOL ASS,SUPPORTED HOUSING PROGRAMME,461609,130248030,08-Aug-14,"2,592.60",THE BRANDON TRUST,SP0005337
WANDSWORTH COUNCIL,ASC,Revenue,SOCIAL SERVICES,VOL ASS,SUPPORTED HOUSING PROGRAMME,461610,130248030,08-Aug-14,"2,724.48",THE BRANDON TRUST,SP0005337
WANDSWORTH COUNCIL,ASC,Revenue,SOCIAL SERVICES,VOL ASS,SUPPORTED HOUSING PROGRAMME,461611,130248030,08-Aug-14,"3,564.56",THE BRANDON TRUST,SP0005337
WANDSWORTH COUNCIL,ASC,Revenue,SOCIAL SERVICES,VOL ASS,SUPPORTED HOUSING PROGRAMME,461612,130248030,08-Aug-14,"3,416.80",THE BRANDON TRUST,SP0005337
WANDSWORTH COUNCIL,ASC,Revenue,SOCIAL SERVICES,VOL ASS,SUPPORTED HOUSING PROGRAMME,461613,130248030,08-Aug-14,"4,007.84",THE BRANDON TRUST,SP0005337
WANDSWORTH COUNCIL,ASC,Revenue,SOCIAL SERVICES,VOL ASS,SUPPORTED HOUSING PROGRAMME,461614,130248030,08-Aug-14,"2,848.72",THE BRANDON TRUST,SP0005337
WANDSWORTH COUNCIL,ASC,Revenue,SOCIAL SERVICES,VOL ASS,SUPPORTED HOUSING PROGRAMME,461615,130248030,08-Aug-14,"2,327.24",THE BRANDON TRUST,SP0005337
WANDSWORTH COUNCIL,ASC,Revenue,SOCIAL SERVICES,VOL ASS,SUPPORTED HOUSING PROGRAMME,461616,130248030,08-Aug-14,"2,327.24",THE BRANDON TRUST,SP0005337
WANDSWORTH COUNCIL,ASC,Revenue,SOCIAL SERVICES,VOL ASS,SUPPORTED HOUSING PROGRAMME,461617,130248030,08-Aug-14,"2,819.52",THE BRANDON TRUST,SP0005337
WANDSWORTH COUNCIL,ASC,Revenue,SOCIAL SERVICES,VOL ASS,SUPPORTED HOUSING PROGRAMME,461632,130248030,08-Aug-14,947.04,THE BRANDON TRUST,SP0005337
WANDSWORTH COUNCIL,ASC,Revenue,SOCIAL SERVICES,VOL ASS,SUPPORTED HOUSING PROGRAMME,461646,130248030,08-Aug-14,"1,499.04",THE BRANDON TRUST,SP0005337
WANDSWORTH COUNCIL,ASC,Revenue,SOCIAL SERVICES,VOL ASS,SUPPORTED HOUSING PROGRAMME,461656,130248030,08-Aug-14,"1,034.48",THE BRANDON TRUST,SP0005337
WANDSWORTH COUNCIL,ASC,Revenue,SOCIAL SERVICES,VOL ASS,SUPPORTED HOUSING PROGRAMME,461662,130248030,08-Aug-14,"1,477.60",THE BRANDON TRUST,SP0005337
WANDSWORTH COUNCIL,ASC,Revenue,SOCIAL SERVICES,VOL ASS,SUPPORTED HOUSING PROGRAMME,461663,130248030,08-Aug-14,"1,674.84",THE BRANDON TRUST,SP0005337
WANDSWORTH COUNCIL,ASC,Revenue,SOCIAL SERVICES,VOL ASS,SUPPORTED HOUSING PROGRAMME,461664,130248030,08-Aug-14,"2,658.24",THE BRANDON TRUST,SP0005337
WANDSWORTH COUNCIL,ASC,Revenue,SOCIAL SERVICES,VOL ASS,SUPPORTED HOUSING PROGRAMME,461665,130248030,08-Aug-14,"2,405.96",THE BRANDON TRUST,SP0005337
WANDSWORTH COUNCIL,ASC,Revenue,SOCIAL SERVICES,VOL ASS,SUPPORTED HOUSING PROGRAMME,461668,130248030,08-Aug-14,"2,459.52",THE BRANDON TRUST,SP0005337
WANDSWORTH COUNCIL,ASC,Revenue,SOCIAL SERVICES,VOL ASS,SUPPORTED HOUSING PROGRAMME,461669,130248030,08-Aug-14,"3,883.68",THE BRANDON TRUST,SP0005337
WANDSWORTH COUNCIL,ASC,Revenue,SOCIAL SERVICES,VOL ASS,SUPPORTED HOUSING PROGRAMME,461670,130248030,08-Aug-14,"2,618.48",THE BRANDON TRUST,SP0005337
WANDSWORTH COUNCIL,ASC,Revenue,SOCIAL SERVICES,VOL ASS,SUPPORTED HOUSING PROGRAMME,461671,130248030,08-Aug-14,"1,730.88",THE BRANDON TRUST,SP0005337
WANDSWORTH COUNCIL,ASC,Revenue,SOCIAL SERVICES,VOL ASS,SUPPORTED HOUSING PROGRAMME,461685,130248030,08-Aug-14,"1,551.32",THE BRANDON TRUST,SP0005337
WANDSWORTH COUNCIL,ASC,Revenue,SOCIAL SERVICES,VOL ASS,SUPPORTED HOUSING PROGRAMME,461686,130248030,08-Aug-14,"1,504.84",THE BRANDON TRUST,SP0005337
WANDSWORTH COUNCIL,ASC,Revenue,SOCIAL SERVICES,VOL ASS,SUPPORTED HOUSING PROGRAMME,461687,130248030,08-Aug-14,"1,504.84",THE BRANDON TRUST,SP0005337
WANDSWORTH COUNCIL,ASC,Revenue,SOCIAL SERVICES,VOL ASS,SUPPORTED HOUSING PROGRAMME,461688,130248030,08-Aug-14,"1,936.52",THE BRANDON TRUST,SP0005337
WANDSWORTH COUNCIL,ASC,Revenue,SOCIAL SERVICES,VOL ASS,SUPPORTED HOUSING PROGRAMME,461689,130248030,08-Aug-14,"7,764.16",THE BRANDON TRUST,SP0005337
WANDSWORTH COUNCIL,ASC,Revenue,SOCIAL SERVICES,VOL ASS,SUPPORTED HOUSING PROGRAMME,461690,130248030,08-Aug-14,"2,327.04",THE BRANDON TRUST,SP0005337
WANDSWORTH COUNCIL,ASC,Revenue,SOCIAL SERVICES,VOL ASS,SUPPORTED HOUSING PROGRAMME,461691,130248030,08-Aug-14,"2,980.32",THE BRANDON TRUST,SP0005337
WANDSWORTH COUNCIL,ASC,Revenue,SOCIAL SERVICES,VOL ASS,SUPPORTED HOUSING PROGRAMME,461692,130248030,08-Aug-14,"2,969.16",THE BRANDON TRUST,SP0005337
WANDSWORTH COUNCIL,ASC,Revenue,SOCIAL SERVICES,VOL ASS,SUPPORTED HOUSING PROGRAMME,461693,130248030,08-Aug-14,"2,979.92",THE BRANDON TRUST,SP0005337
WANDSWORTH COUNCIL,ASC,Revenue,SOCIAL SERVICES,VOL ASS,SUPPORTED HOUSING PROGRAMME,461694,130248030,08-Aug-14,"2,186.04",THE BRANDON TRUST,SP0005337
WANDSWORTH COUNCIL,ASC,Revenue,SOCIAL SERVICES,VOL ASS,SUPPORTED HOUSING PROGRAMME,461695,130248030,08-Aug-14,"1,125.08",THE BRANDON TRUST,SP0005337
WANDSWORTH COUNCIL,ASC,Revenue,SOCIAL SERVICES,VOL ASS,SUPPORTED HOUSING PROGRAMME,461696,130248030,08-Aug-14,"1,155.88",THE BRANDON TRUST,SP0005337
WANDSWORTH COUNCIL,ASC,Revenue,SOCIAL SERVICES,VOL ASS,SUPPORTED HOUSING PROGRAMME,461697,130248030,08-Aug-14,"1,854.72",THE BRANDON TRUST,SP0005337
WANDSWORTH COUNCIL,ASC,Revenue,SOCIAL SERVICES,VOL ASS,SUPPORTED HOUSING PROGRAMME,461698,130248030,08-Aug-14,"1,380.64",THE BRANDON TRUST,SP0005337
WANDSWORTH COUNCIL,ASC,Revenue,SOCIAL SERVICES,VOL ASS,SUPPORTED HOUSING PROGRAMME,461699,130248030,08-Aug-14,"1,466.16",THE BRANDON TRUST,SP0005337
WANDSWORTH COUNCIL,ASC,Revenue,SOCIAL SERVICES,VOL ASS,SUPPORTED HOUSING PROGRAMME,461700,130248030,08-Aug-14,"2,298.88",THE BRANDON TRUST,SP0005337
WANDSWORTH COUNCIL,ASC,Revenue,SOCIAL SERVICES,VOL ASS,SUPPORTED HOUSING PROGRAMME,461701,130248030,08-Aug-14,"1,513.68",THE BRANDON TRUST,SP0005337
WANDSWORTH COUNCIL,ASC,Revenue,SOCIAL SERVICES,VOL ASS,SUPPORTED HOUSING PROGRAMME,461702,130248030,08-Aug-14,"1,513.68",THE BRANDON TRUST,SP0005337
WANDSWORTH COUNCIL,ASC,Revenue,SOCIAL SERVICES,VOL ASS,SUPPORTED HOUSING PROGRAMME,461703,130248030,08-Aug-14,"2,856.96",THE BRANDON TRUST,SP0005337
WANDSWORTH COUNCIL,ASC,Revenue,SOCIAL SERVICES,VOL ASS,SUPPORTED HOUSING PROGRAMME,461704,130248030,08-Aug-14,"2,260.80",THE BRANDON TRUST,SP0005337
WANDSWORTH COUNCIL,ASC,Revenue,SOCIAL SERVICES,VOL ASS,SUPPORTED HOUSING PROGRAMME,461705,130248030,08-Aug-14,"3,453.12",THE BRANDON TRUST,SP0005337
WANDSWORTH COUNCIL,ASC,Revenue,SOCIAL SERVICES,VOL ASS,SUPPORTED HOUSING PROGRAMME,461706,130248030,08-Aug-14,"2,790.72",THE BRANDON TRUST,SP0005337
WANDSWORTH COUNCIL,ASC,Revenue,SOCIAL SERVICES,VOL ASS,SUPPORTED HOUSING PROGRAMME,461707,130248030,08-Aug-14,"1,258.56",THE BRANDON TRUST,SP0005337
WANDSWORTH COUNCIL,ASC,Revenue,SOCIAL SERVICES,VOL ASS,SUPPORTED HOUSING PROGRAMME,461708,130248030,08-Aug-14,"1,886.40",THE BRANDON TRUST,SP0005337
WANDSWORTH COUNCIL,ASC,Revenue,SOCIAL SERVICES,VOL ASS,SUPPORTED HOUSING PROGRAMME,461709,130248030,08-Aug-14,"1,797.12",THE BRANDON TRUST,SP0005337
WANDSWORTH COUNCIL,ASC,Revenue,SOCIAL SERVICES,VOL ASS,SUPPORTED HOUSING PROGRAMME,461710,130248030,08-Aug-14,"2,062.08",THE BRANDON TRUST,SP0005337
WANDSWORTH COUNCIL,ASC,Revenue,SOCIAL SERVICES,VOL ASS,SUPPORTED HOUSING PROGRAMME,461711,130248030,08-Aug-14,"3,520.16",THE BRANDON TRUST,SP0005337
WANDSWORTH COUNCIL,ASC,Revenue,SOCIAL SERVICES,VOL ASS,SUPPORTED HOUSING PROGRAMME,461712,130248030,08-Aug-14,"2,525.76",THE BRANDON TRUST,SP0005337
WANDSWORTH COUNCIL,ASC,Revenue,SOCIAL SERVICES,VOL ASS,SUPPORTED HOUSING PROGRAMME,461713,130248030,08-Aug-14,"3,453.92",THE BRANDON TRUST,SP0005337
WANDSWORTH COUNCIL,ASC,Revenue,SOCIAL SERVICES,VOL ASS,SUPPORTED HOUSING PROGRAMME,461714,130248030,08-Aug-14,"1,929.60",THE BRANDON TRUST,SP0005337
WANDSWORTH COUNCIL,ASC,Revenue,SOCIAL SERVICES,VOL ASS,SUPPORTED HOUSING PROGRAMME,461715,130248030,08-Aug-14,"2,923.88",THE BRANDON TRUST,SP0005337
WANDSWORTH COUNCIL,ASC,Revenue,SOCIAL SERVICES,VOL ASS,SUPPORTED HOUSING PROGRAMME,461716,130248030,08-Aug-14,"4,687.20",THE BRANDON TRUST,SP0005337
WANDSWORTH COUNCIL,ASC,Revenue,SOCIAL SERVICES,VOL ASS,SUPPORTED HOUSING PROGRAMME,461717,130248030,08-Aug-14,"4,688.56",THE BRANDON TRUST,SP0005337
WANDSWORTH COUNCIL,ASC,Revenue,SOCIAL SERVICES,VOL ASS,SUPPORTED HOUSING PROGRAMME,461718,130248030,08-Aug-14,"3,320.64",THE BRANDON TRUST,SP0005337
WANDSWORTH COUNCIL,ASC,Revenue,SOCIAL SERVICES,VOL ASS,SUPPORTED HOUSING PROGRAMME,461719,130248030,08-Aug-14,"3,702.20",THE BRANDON TRUST,SP0005337
WANDSWORTH COUNCIL,ASC,Revenue,SOCIAL SERVICES,VOL ASS,SUPPORTED HOUSING PROGRAMME,461720,130248030,08-Aug-14,"1,465.92",THE BRANDON TRUST,SP0005337
WANDSWORTH COUNCIL,ASC,Revenue,SOCIAL SERVICES,VOL ASS,SUPPORTED HOUSING PROGRAMME,467991,130248030,19-Aug-14,"2,893.04",THE BRANDON TRUST,SP0005337
WANDSWORTH COUNCIL,ASC,Revenue,SOCIAL SERVICES,VOL ASS,SUPPORTED HOUSING PROGRAMME,467995,130248030,19-Aug-14,"1,034.48",THE BRANDON TRUST,SP0005337
WANDSWORTH COUNCIL,ASC,Revenue,SOCIAL SERVICES,VOL ASS,SUPPORTED HOUSING PROGRAMME,468013,130248030,19-Aug-14,"1,477.60",THE BRANDON TRUST,SP0005337
WANDSWORTH COUNCIL,ASC,Revenue,SOCIAL SERVICES,VOL ASS,SUPPORTED HOUSING PROGRAMME,468014,130248030,19-Aug-14,"1,674.84",THE BRANDON TRUST,SP0005337
WANDSWORTH COUNCIL,ASC,Revenue,SOCIAL SERVICES,VOL ASS,SUPPORTED HOUSING PROGRAMME,468015,130248030,19-Aug-14,"2,658.24",THE BRANDON TRUST,SP0005337
WANDSWORTH COUNCIL,ASC,Revenue,SOCIAL SERVICES,VOL ASS,SUPPORTED HOUSING PROGRAMME,468016,130248030,19-Aug-14,"2,405.96",THE BRANDON TRUST,SP0005337
WANDSWORTH COUNCIL,ASC,Revenue,SOCIAL SERVICES,VOL ASS,SUPPORTED HOUSING PROGRAMME,468019,130248030,19-Aug-14,"2,459.52",THE BRANDON TRUST,SP0005337
WANDSWORTH COUNCIL,ASC,Revenue,SOCIAL SERVICES,VOL ASS,SUPPORTED HOUSING PROGRAMME,468020,130248030,19-Aug-14,"3,883.68",THE BRANDON TRUST,SP0005337
WANDSWORTH COUNCIL,ASC,Revenue,SOCIAL SERVICES,VOL ASS,SUPPORTED HOUSING PROGRAMME,468021,130248030,19-Aug-14,"2,618.48",THE BRANDON TRUST,SP0005337
WANDSWORTH COUNCIL,ASC,Revenue,SOCIAL SERVICES,VOL ASS,SUPPORTED HOUSING PROGRAMME,468022,130248030,19-Aug-14,"1,730.88",THE BRANDON TRUST,SP0005337
WANDSWORTH COUNCIL,ASC,Revenue,SOCIAL SERVICES,VOL ASS,SUPPORTED HOUSING PROGRAMME,468031,130248030,19-Aug-14,"1,230.43",THE BRANDON TRUST,SP0005337
WANDSWORTH COUNCIL,ASC,Revenue,SOCIAL SERVICES,VOL ASS,SUPPORTED HOUSING PROGRAMME,468032,130248030,19-Aug-14,"2,327.04",THE BRANDON TRUST,SP0005337
WANDSWORTH COUNCIL,ASC,Revenue,SOCIAL SERVICES,VOL ASS,SUPPORTED HOUSING PROGRAMME,468033,130248030,19-Aug-14,"2,856.96",THE BRANDON TRUST,SP0005337
WANDSWORTH COUNCIL,ASC,Revenue,SOCIAL SERVICES,VOL ASS,SUPPORTED HOUSING PROGRAMME,468034,130248030,19-Aug-14,"3,088.80",THE BRANDON TRUST,SP0005337
WANDSWORTH COUNCIL,ASC,Revenue,SOCIAL SERVICES,VOL ASS,SUPPORTED HOUSING PROGRAMME,468035,130248030,19-Aug-14,"2,758.28",THE BRANDON TRUST,SP0005337
WANDSWORTH COUNCIL,ASC,Revenue,SOCIAL SERVICES,VOL ASS,SUPPORTED HOUSING PROGRAMME,468036,130248030,19-Aug-14,"2,128.32",THE BRANDON TRUST,SP0005337
WANDSWORTH COUNCIL,ASC,Revenue,SOCIAL SERVICES,VOL ASS,SUPPORTED HOUSING PROGRAMME,468037,130248030,19-Aug-14,"6,198.76",THE BRANDON TRUST,SP0005337
WANDSWORTH COUNCIL,ASC,Revenue,SOCIAL SERVICES,VOL ASS,SUPPORTED HOUSING PROGRAMME,468038,130248030,19-Aug-14,"1,465.92",THE BRANDON TRUST,SP0005337
WANDSWORTH COUNCIL,ASC,Revenue,SOCIAL SERVICES,VOL ASS,SUPPORTED HOUSING PROGRAMME,468039,130248030,19-Aug-14,"1,548.72",THE BRANDON TRUST,SP0005337
WANDSWORTH COUNCIL,ASC,Revenue,SOCIAL SERVICES,VOL ASS,SUPPORTED HOUSING PROGRAMME,468040,130248030,19-Aug-14,"2,658.24",THE BRANDON TRUST,SP0005337
WANDSWORTH COUNCIL,ASC,Revenue,SOCIAL SERVICES,VOL ASS,SUPPORTED HOUSING PROGRAMME,468041,130248030,19-Aug-14,"2,592.60",THE BRANDON TRUST,SP0005337
WANDSWORTH COUNCIL,ASC,Revenue,SOCIAL SERVICES,VOL ASS,SUPPORTED HOUSING PROGRAMME,468042,130248030,19-Aug-14,"2,724.48",THE BRANDON TRUST,SP0005337
WANDSWORTH COUNCIL,ASC,Revenue,SOCIAL SERVICES,VOL ASS,SUPPORTED HOUSING PROGRAMME,468043,130248030,19-Aug-14,"3,564.56",THE BRANDON TRUST,SP0005337
WANDSWORTH COUNCIL,ASC,Revenue,SOCIAL SERVICES,VOL ASS,SUPPORTED HOUSING PROGRAMME,468044,130248030,19-Aug-14,"3,416.80",THE BRANDON TRUST,SP0005337
WANDSWORTH COUNCIL,ASC,Revenue,SOCIAL SERVICES,VOL ASS,SUPPORTED HOUSING PROGRAMME,468045,130248030,19-Aug-14,"4,007.84",THE BRANDON TRUST,SP0005337
WANDSWORTH COUNCIL,ASC,Revenue,SOCIAL SERVICES,VOL ASS,SUPPORTED HOUSING PROGRAMME,468046,130248030,19-Aug-14,"2,848.72",THE BRANDON TRUST,SP0005337
WANDSWORTH COUNCIL,ASC,Revenue,SOCIAL SERVICES,VOL ASS,SUPPORTED HOUSING PROGRAMME,468047,130248030,19-Aug-14,"2,327.24",THE BRANDON TRUST,SP0005337
WANDSWORTH COUNCIL,ASC,Revenue,SOCIAL SERVICES,VOL ASS,SUPPORTED HOUSING PROGRAMME,468048,130248030,19-Aug-14,"2,327.24",THE BRANDON TRUST,SP0005337
WANDSWORTH COUNCIL,ASC,Revenue,SOCIAL SERVICES,VOL ASS,SUPPORTED HOUSING PROGRAMME,468049,130248030,19-Aug-14,"2,819.52",THE BRANDON TRUST,SP0005337
WANDSWORTH COUNCIL,ASC,Revenue,SOCIAL SERVICES,VOL ASS,SUPPORTED HOUSING PROGRAMME,468065,130248030,19-Aug-14,"1,499.04",THE BRANDON TRUST,SP0005337
WANDSWORTH COUNCIL,ASC,Revenue,SOCIAL SERVICES,VOL ASS,SUPPORTED HOUSING PROGRAMME,469915,130248030,20-Aug-14,"1,551.32",THE BRANDON TRUST,SP0005337
WANDSWORTH COUNCIL,ASC,Revenue,SOCIAL SERVICES,VOL ASS,SUPPORTED HOUSING PROGRAMME,469916,130248030,20-Aug-14,"1,504.84",THE BRANDON TRUST,SP0005337
WANDSWORTH COUNCIL,ASC,Revenue,SOCIAL SERVICES,VOL ASS,SUPPORTED HOUSING PROGRAMME,469917,130248030,20-Aug-14,"1,504.84",THE BRANDON TRUST,SP0005337
WANDSWORTH COUNCIL,ASC,Revenue,SOCIAL SERVICES,VOL ASS,SUPPORTED HOUSING PROGRAMME,469918,130248030,20-Aug-14,"1,936.52",THE BRANDON TRUST,SP0005337
WANDSWORTH COUNCIL,ASC,Revenue,SOCIAL SERVICES,VOL ASS,SUPPORTED HOUSING PROGRAMME,469919,130248030,20-Aug-14,"7,764.16",THE BRANDON TRUST,SP0005337
WANDSWORTH COUNCIL,ASC,Revenue,SOCIAL SERVICES,VOL ASS,SUPPORTED HOUSING PROGRAMME,469920,130248030,20-Aug-14,"2,327.04",THE BRANDON TRUST,SP0005337
WANDSWORTH COUNCIL,ASC,Revenue,SOCIAL SERVICES,VOL ASS,SUPPORTED HOUSING PROGRAMME,469921,130248030,20-Aug-14,"2,980.32",THE BRANDON TRUST,SP0005337
WANDSWORTH COUNCIL,ASC,Revenue,SOCIAL SERVICES,VOL ASS,SUPPORTED HOUSING PROGRAMME,469922,130248030,20-Aug-14,"2,969.16",THE BRANDON TRUST,SP0005337
WANDSWORTH COUNCIL,ASC,Revenue,SOCIAL SERVICES,VOL ASS,SUPPORTED HOUSING PROGRAMME,469923,130248030,20-Aug-14,"2,979.92",THE BRANDON TRUST,SP0005337
WANDSWORTH COUNCIL,ASC,Revenue,SOCIAL SERVICES,VOL ASS,SUPPORTED HOUSING PROGRAMME,469924,130248030,20-Aug-14,"2,186.04",THE BRANDON TRUST,SP0005337
WANDSWORTH COUNCIL,ASC,Revenue,SOCIAL SERVICES,VOL ASS,SUPPORTED HOUSING PROGRAMME,469926,130248030,20-Aug-14,"1,125.08",THE BRANDON TRUST,SP0005337
WANDSWORTH COUNCIL,ASC,Revenue,SOCIAL SERVICES,VOL ASS,SUPPORTED HOUSING PROGRAMME,469927,130248030,20-Aug-14,"1,155.88",THE BRANDON TRUST,SP0005337
WANDSWORTH COUNCIL,ASC,Revenue,SOCIAL SERVICES,VOL ASS,SUPPORTED HOUSING PROGRAMME,469928,130248030,20-Aug-14,"1,854.72",THE BRANDON TRUST,SP0005337
WANDSWORTH COUNCIL,ASC,Revenue,SOCIAL SERVICES,VOL ASS,SUPPORTED HOUSING PROGRAMME,469929,130248030,20-Aug-14,"1,380.64",THE BRANDON TRUST,SP0005337
WANDSWORTH COUNCIL,ASC,Revenue,SOCIAL SERVICES,VOL ASS,SUPPORTED HOUSING PROGRAMME,469930,130248030,20-Aug-14,"1,466.16",THE BRANDON TRUST,SP0005337
WANDSWORTH COUNCIL,ASC,Revenue,SOCIAL SERVICES,VOL ASS,SUPPORTED HOUSING PROGRAMME,469931,130248030,20-Aug-14,"2,298.88",THE BRANDON TRUST,SP0005337
WANDSWORTH COUNCIL,ASC,Revenue,SOCIAL SERVICES,VOL ASS,SUPPORTED HOUSING PROGRAMME,469932,130248030,20-Aug-14,"1,513.68",THE BRANDON TRUST,SP0005337
WANDSWORTH COUNCIL,ASC,Revenue,SOCIAL SERVICES,VOL ASS,SUPPORTED HOUSING PROGRAMME,469933,130248030,20-Aug-14,"1,513.68",THE BRANDON TRUST,SP0005337
WANDSWORTH COUNCIL,ASC,Revenue,SOCIAL SERVICES,VOL ASS,SUPPORTED HOUSING PROGRAMME,469934,130248030,20-Aug-14,"2,856.96",THE BRANDON TRUST,SP0005337
WANDSWORTH COUNCIL,ASC,Revenue,SOCIAL SERVICES,VOL ASS,SUPPORTED HOUSING PROGRAMME,469935,130248030,20-Aug-14,"2,260.80",THE BRANDON TRUST,SP0005337
WANDSWORTH COUNCIL,ASC,Revenue,SOCIAL SERVICES,VOL ASS,SUPPORTED HOUSING PROGRAMME,469936,130248030,20-Aug-14,"3,453.12",THE BRANDON TRUST,SP0005337
WANDSWORTH COUNCIL,ASC,Revenue,SOCIAL SERVICES,VOL ASS,SUPPORTED HOUSING PROGRAMME,469937,130248030,20-Aug-14,"2,790.72",THE BRANDON TRUST,SP0005337
WANDSWORTH COUNCIL,ASC,Revenue,SOCIAL SERVICES,VOL ASS,SUPPORTED HOUSING PROGRAMME,469938,130248030,20-Aug-14,"1,258.56",THE BRANDON TRUST,SP0005337
WANDSWORTH COUNCIL,ASC,Revenue,SOCIAL SERVICES,VOL ASS,SUPPORTED HOUSING PROGRAMME,469939,130248030,20-Aug-14,"1,886.40",THE BRANDON TRUST,SP0005337
WANDSWORTH COUNCIL,ASC,Revenue,SOCIAL SERVICES,VOL ASS,SUPPORTED HOUSING PROGRAMME,469940,130248030,20-Aug-14,"1,797.12",THE BRANDON TRUST,SP0005337
WANDSWORTH COUNCIL,ASC,Revenue,SOCIAL SERVICES,VOL ASS,SUPPORTED HOUSING PROGRAMME,469941,130248030,20-Aug-14,"2,062.08",THE BRANDON TRUST,SP0005337
WANDSWORTH COUNCIL,ASC,Revenue,SOCIAL SERVICES,VOL ASS,SUPPORTED HOUSING PROGRAMME,469942,130248030,20-Aug-14,"3,520.16",THE BRANDON TRUST,SP0005337
WANDSWORTH COUNCIL,ASC,Revenue,SOCIAL SERVICES,VOL ASS,SUPPORTED HOUSING PROGRAMME,469943,130248030,20-Aug-14,"2,525.76",THE BRANDON TRUST,SP0005337
WANDSWORTH COUNCIL,ASC,Revenue,SOCIAL SERVICES,VOL ASS,SUPPORTED HOUSING PROGRAMME,469944,130248030,20-Aug-14,"3,453.92",THE BRANDON TRUST,SP0005337
WANDSWORTH COUNCIL,ASC,Revenue,SOCIAL SERVICES,VOL ASS,SUPPORTED HOUSING PROGRAMME,469945,130248030,20-Aug-14,"1,929.60",THE BRANDON TRUST,SP0005337
WANDSWORTH COUNCIL,ASC,Revenue,SOCIAL SERVICES,VOL ASS,SUPPORTED HOUSING PROGRAMME,469946,130248030,20-Aug-14,"2,923.88",THE BRANDON TRUST,SP0005337
WANDSWORTH COUNCIL,ASC,Revenue,SOCIAL SERVICES,VOL ASS,SUPPORTED HOUSING PROGRAMME,469947,130248030,20-Aug-14,"4,687.20",THE BRANDON TRUST,SP0005337
WANDSWORTH COUNCIL,ASC,Revenue,SOCIAL SERVICES,VOL ASS,SUPPORTED HOUSING PROGRAMME,469948,130248030,20-Aug-14,"4,688.56",THE BRANDON TRUST,SP0005337
WANDSWORTH COUNCIL,ASC,Revenue,SOCIAL SERVICES,VOL ASS,SUPPORTED HOUSING PROGRAMME,469949,130248030,20-Aug-14,"3,320.64",THE BRANDON TRUST,SP0005337
WANDSWORTH COUNCIL,ASC,Revenue,SOCIAL SERVICES,VOL ASS,SUPPORTED HOUSING PROGRAMME,469950,130248030,20-Aug-14,"3,702.20",THE BRANDON TRUST,SP0005337
WANDSWORTH COUNCIL,ASC,Revenue,SOCIAL SERVICES,VOL ASS,SUPPORTED HOUSING PROGRAMME,469951,130248030,20-Aug-14,"1,465.92",THE BRANDON TRUST,SP0005337
WANDSWORTH COUNCIL,ASC,Revenue,SOCIAL SERVICES,VOL ASS,SUPPORTED HOUSING PROGRAMME,469952,130248030,20-Aug-14,"3,718.08",THE BRANDON TRUST,SP0005337
WANDSWORTH COUNCIL,ASC,Revenue,SOCIAL SERVICES,VOL ASS,SUPPORTED HOUSING PROGRAMME,469953,130248030,20-Aug-14,"3,121.92",THE BRANDON TRUST,SP0005337
WANDSWORTH COUNCIL,ASC,Revenue,SOCIAL SERVICES,VOL ASS,SUPPORTED HOUSING PROGRAMME,469954,130248030,20-Aug-14,"5,688.08",THE BRANDON TRUST,SP0005337
WANDSWORTH COUNCIL,ASC,Revenue,SOCIAL SERVICES,VOL ASS,SUPPORTED HOUSING PROGRAMME,469955,130248030,20-Aug-14,"5,983.44",THE BRANDON TRUST,SP0005337
WANDSWORTH COUNCIL,ASC,Revenue,SOCIAL SERVICES,VOL ASS,SUPPORTED HOUSING PROGRAMME,469956,130248030,20-Aug-14,"4,827.60",THE BRANDON TRUST,SP0005337
WANDSWORTH COUNCIL,ASC,Revenue,SOCIAL SERVICES,VOL ASS,SUPPORTED HOUSING PROGRAMME,469957,130248030,20-Aug-14,"6,346.04",THE BRANDON TRUST,SP0005337
WANDSWORTH COUNCIL,ASC,Revenue,SOCIAL SERVICES,VOL ASS,SUPPORTED HOUSING PROGRAMME,469958,130248030,20-Aug-14,"3,324.96",THE BRANDON TRUST,SP0005337
WANDSWORTH COUNCIL,ASC,Revenue,SOCIAL SERVICES,VOL ASS,SUPPORTED HOUSING PROGRAMME,469959,130248030,20-Aug-14,"2,886.04",THE BRANDON TRUST,SP0005337
WANDSWORTH COUNCIL,ASC,Revenue,SOCIAL SERVICES,VOL ASS,SUPPORTED HOUSING PROGRAMME,457761,130248030,05-Aug-14,"3,152.76",THE CAMPHILL VILLAGE TRUST,SP0000145
WANDSWORTH COUNCIL,ASC,Revenue,SOCIAL SERVICES,VOL ASS,SUPPORTED HOUSING PROGRAMME,457849,130248030,05-Aug-14,"6,798.41",WELMEDE HOUSING ASSOCIATION LTD,SP0001717
WANDSWORTH COUNCIL,ASC,Revenue,SOCIAL SERVICES,DIRECT,DIRECT PAYMENTS,20291053,130250380,28-Aug-14,190.00,PENDERELS TRUST,2013806
WANDSWORTH COUNCIL,ASC,Revenue,SOCIAL SERVICES,DIRECT,DIRECT PAYMENTS,465282,130250380,14-Aug-14,"1,768.81",VIBRANCE,SP0005489
WANDSWORTH COUNCIL,ASC,Revenue,SOCIAL SERVICES,DIRECT,DIRECT PMTS INFO & SUPPORT SER,465282,130250580,14-Aug-14,50.00,VIBRANCE,SP0005489
WANDSWORTH COUNCIL,ASC,Revenue,SOCIAL SERVICES,CUSTOMER & CLIENT RECPTS - EXT,CL CONT EXT RESIDEN S28A 100%,461418,130280680,08-Aug-14,-495.80,ASHTON CARE,SP0000695
WANDSWORTH COUNCIL,ASC,Revenue,SOCIAL SERVICES,CUSTOMER & CLIENT RECPTS - EXT,CL CONT EXT RESIDEN S28A 100%,459219,130280680,07-Aug-14,-531.22,CARE UK LEARNING DISABILITIES SERVICES L,SP0001039
WANDSWORTH COUNCIL,ASC,Revenue,SOCIAL SERVICES,CUSTOMER & CLIENT RECPTS - EXT,CL CONT EXT RESIDEN S28A 100%,459279,130280680,07-Aug-14,-548.92,CARE UK LEARNING DISABILITIES SERVICES L,SP0001039
WANDSWORTH COUNCIL,ASC,Revenue,SOCIAL SERVICES,CUSTOMER & CLIENT RECPTS - EXT,CL CONT EXT RESIDEN S28A 100%,461423,130280680,08-Aug-14,-495.80,ELEANOR NURSING & SOCIAL CARE,SP0000110
WANDSWORTH COUNCIL,ASC,Revenue,SOCIAL SERVICES,CUSTOMER & CLIENT RECPTS - EXT,CL CONT EXT RESIDEN S28A 100%,463380,130280680,12-Aug-14,-495.80,ELEANOR NURSING & SOCIAL CARE,SP0000110
WANDSWORTH COUNCIL,ASC,Revenue,SOCIAL SERVICES,CUSTOMER & CLIENT RECPTS - EXT,CL CONT EXT RESIDEN S28A 100%,459362,130280680,07-Aug-14,-319.40,LOVING CARE LTD,SP0000670
WANDSWORTH COUNCIL,ASC,Revenue,SOCIAL SERVICES,CUSTOMER & CLIENT RECPTS - EXT,CL CONT EXT RESIDEN S28A 100%,459363,130280680,07-Aug-14,-319.40,LOVING CARE LTD,SP0000670
WANDSWORTH COUNCIL,ASC,Revenue,SOCIAL SERVICES,CUSTOMER & CLIENT RECPTS - EXT,CL CONT EXT RESIDEN S28A 100%,472217,130280680,22-Aug-14,-319.40,LOVING CARE LTD,SP0000670
WANDSWORTH COUNCIL,ASC,Revenue,SOCIAL SERVICES,CUSTOMER & CLIENT RECPTS - EXT,CL CONT EXT RESIDEN S28A 100%,472218,130280680,22-Aug-14,-319.40,LOVING CARE LTD,SP0000670
WANDSWORTH COUNCIL,ASC,Revenue,SOCIAL SERVICES,CUSTOMER & CLIENT RECPTS - EXT,CL CONT EXT RESIDEN S28A 100%,459243,130280680,07-Aug-14,-548.92,RALEIGH HOUSE LTD,SP0000760
WANDSWORTH COUNCIL,ASC,Revenue,SOCIAL SERVICES,CUSTOMER & CLIENT RECPTS - EXT,CL CONT EXT RESIDEN S28A 100%,467821,130280680,19-Aug-14,-548.92,ST MARYS RESIDENTIAL HOME,SP0000215
WANDSWORTH COUNCIL,ASC,Revenue,SOCIAL SERVICES,CUSTOMER & CLIENT RECPTS - EXT,CL CONT EXT RESIDEN S28A 100%,467823,130280680,19-Aug-14,-548.92,ST MARYS RESIDENTIAL HOME,SP0000215
WANDSWORTH COUNCIL,ASC,Revenue,SOCIAL SERVICES,CUSTOMER & CLIENT RECPTS - EXT,CL CONT EXT RESIDEN S28A 100%,467894,130280680,19-Aug-14,-548.92,ST MARYS RESIDENTIAL HOME,SP0000215
WANDSWORTH COUNCIL,ASC,Revenue,SOCIAL SERVICES,CUSTOMER & CLIENT RECPTS - EXT,CL CONT EXT RESIDEN S28A 100%,467896,130280680,19-Aug-14,-548.92,ST MARYS RESIDENTIAL HOME,SP0000215
WANDSWORTH COUNCIL,ASC,Revenue,SOCIAL SERVICES,CUSTOMER & CLIENT RECPTS - EXT,CL CONT EXT RESIDEN S28A 100%,459166,130280680,07-Aug-14,-548.92,VOYAGE CARE LTD,SP0000366
WANDSWORTH COUNCIL,ASC,Revenue,SOCIAL SERVICES,CUSTOMER & CLIENT RECPTS - EXT,CL CONT EXT RESIDEN S28A 100%,459167,130280680,07-Aug-14,-353.62,VOYAGE CARE LTD,SP0000366
WANDSWORTH COUNCIL,ASC,Revenue,SOCIAL SERVICES,CUSTOMER & CLIENT RECPTS - EXT,CL CONT EXT RESIDEN S28A 100%,459202,130280680,07-Aug-14,-353.62,VOYAGE CARE LTD,SP0000366
WANDSWORTH COUNCIL,ASC,Revenue,SOCIAL SERVICES,CUSTOMER & CLIENT RECPTS - EXT,CL CONT EXT RESIDEN S28A 100%,474649,130280680,28-Aug-14,-548.92,VOYAGE CARE LTD,SP0000366
WANDSWORTH COUNCIL,ASC,Revenue,SOCIAL SERVICES,CUSTOMER & CLIENT RECPTS - EXT,CL CONT EXT RESIDEN S28A 100%,474650,130280680,28-Aug-14,-353.62,VOYAGE CARE LTD,SP0000366
WANDSWORTH COUNCIL,ASC,Revenue,SOCIAL SERVICES,CUSTOMER & CLIENT RECPTS - EXT,CL CONT EXT RESIDEN S28A 100%,474680,130280680,28-Aug-14,-353.62,VOYAGE CARE LTD,SP0000366
WANDSWORTH COUNCIL,ASC,Revenue,SOCIAL SERVICES,CUSTOMER & CLIENT RECPTS - EXT,CL CONT EXTERNAL RESIDENT S28A,469745,130280710,20-Aug-14,-658.39,CMG HOMES LTD,SP0000075
WANDSWORTH COUNCIL,ASC,Revenue,SOCIAL SERVICES,CUSTOMER & CLIENT RECPTS - EXT,CL CONT EXTERNAL RESIDENT S28A,461361,130280710,08-Aug-14,-319.40,MACINTYRE CARE,SP0000473
WANDSWORTH COUNCIL,ASC,Revenue,SOCIAL SERVICES,CUSTOMER & CLIENT RECPTS - EXT,CL CONT EXTERNAL RESIDENT S28A,461370,130280710,08-Aug-14,-511.80,MACINTYRE CARE,SP0000473
WANDSWORTH COUNCIL,ASC,Revenue,SOCIAL SERVICES,CUSTOMER & CLIENT RECPTS - EXT,CL CONT EXTERNAL RESIDENT S28A,461373,130280710,08-Aug-14,-319.40,MACINTYRE CARE,SP0000473
WANDSWORTH COUNCIL,ASC,Revenue,SOCIAL SERVICES,CUSTOMER & CLIENT RECPTS - EXT,CL CONT EXTERNAL RESIDENT S28A,469810,130280710,20-Aug-14,-319.40,METROPOLITAN HOUSING TRUST,SP0000626
WANDSWORTH COUNCIL,ASC,Revenue,SOCIAL SERVICES,CUSTOMER & CLIENT RECPTS - EXT,CL CONT EXTERNAL RESIDENT S28A,469815,130280710,20-Aug-14,-517.16,METROPOLITAN HOUSING TRUST,SP0000626
WANDSWORTH COUNCIL,ASC,Revenue,SOCIAL SERVICES,CUSTOMER & CLIENT RECPTS - EXT,CL CONT EXTERNAL RESIDENT S28A,469831,130280710,20-Aug-14,-319.40,METROPOLITAN HOUSING TRUST,SP0000626
WANDSWORTH COUNCIL,ASC,Revenue,SOCIAL SERVICES,CUSTOMER & CLIENT RECPTS - EXT,CL CONT EXTERNAL RESIDENT S28A,469835,130280710,20-Aug-14,-319.40,METROPOLITAN HOUSING TRUST,SP0000626
WANDSWORTH COUNCIL,ASC,Revenue,SOCIAL SERVICES,CUSTOMER & CLIENT RECPTS - EXT,CL CONT EXTERNAL RESIDENT S28A,467853,130280710,19-Aug-14,-353.62,PARKGATE MANOR,SP0000521
WANDSWORTH COUNCIL,ASC,Revenue,SOCIAL SERVICES,CUSTOMER & CLIENT RECPTS - EXT,CL CONT EXTERNAL RESIDENT S28A,459338,130280710,07-Aug-14,-319.40,SURREY & BORDERS PARTNERSHIP NHS TRUST,SP0000501
WANDSWORTH COUNCIL,ASC,Revenue,SOCIAL SERVICES,CUSTOMER & CLIENT RECPTS - EXT,CL CONT EXTERNAL RESIDENT S28A,474666,130280710,28-Aug-14,-319.40,SURREY & BORDERS PARTNERSHIP NHS TRUST,SP0000501
WANDSWORTH COUNCIL,ASC,Revenue,SOCIAL SERVICES,CUSTOMER & CLIENT RECPTS - EXT,CL CONT EXTERNAL RESIDENT S28A,459209,130280710,07-Aug-14,-548.92,THE COMMUNITY CARE COMPANY UK LTD,SP0000576
WANDSWORTH COUNCIL,ASC,Revenue,SOCIAL SERVICES,CUSTOMER & CLIENT RECPTS - EXT,CL CONT EXTERNAL RESIDENT S28A,473935,130280710,27-Aug-14,-548.92,THE COMMUNITY CARE COMPANY UK LTD,SP0000576
WANDSWORTH COUNCIL,ASC,Revenue,SOCIAL SERVICES,CUSTOMER & CLIENT RECPTS - EXT,CL CONT EXTERNAL RESIDENTIAL,465683,130280720,14-Aug-14,-348.98,229 MITCHAM LANE LTD,SP0000884
WANDSWORTH COUNCIL,ASC,Revenue,SOCIAL SERVICES,CUSTOMER & CLIENT RECPTS - EXT,CL CONT EXTERNAL RESIDENTIAL,465684,130280720,14-Aug-14,-348.98,229 MITCHAM LANE LTD,SP0000884
WANDSWORTH COUNCIL,ASC,Revenue,SOCIAL SERVICES,CUSTOMER & CLIENT RECPTS - EXT,CL CONT EXTERNAL RESIDENTIAL,465685,130280720,14-Aug-14,-315.20,229 MITCHAM LANE LTD,SP0000884
WANDSWORTH COUNCIL,ASC,Revenue,SOCIAL SERVICES,CUSTOMER & CLIENT RECPTS - EXT,CL CONT EXTERNAL RESIDENTIAL,465686,130280720,14-Aug-14,-315.20,229 MITCHAM LANE LTD,SP0000884
WANDSWORTH COUNCIL,ASC,Revenue,SOCIAL SERVICES,CUSTOMER & CLIENT RECPTS - EXT,CL CONT EXTERNAL RESIDENTIAL,465687,130280720,14-Aug-14,-315.20,229 MITCHAM LANE LTD,SP0000884
WANDSWORTH COUNCIL,ASC,Revenue,SOCIAL SERVICES,CUSTOMER & CLIENT RECPTS - EXT,CL CONT EXTERNAL RESIDENTIAL,467866,130280720,19-Aug-14,-353.62,229 MITCHAM LANE LTD,SP0000884
WANDSWORTH COUNCIL,ASC,Revenue,SOCIAL SERVICES,CUSTOMER & CLIENT RECPTS - EXT,CL CONT EXTERNAL RESIDENTIAL,467867,130280720,19-Aug-14,-353.62,229 MITCHAM LANE LTD,SP0000884
WANDSWORTH COUNCIL,ASC,Revenue,SOCIAL SERVICES,CUSTOMER & CLIENT RECPTS - EXT,CL CONT EXTERNAL RESIDENTIAL,467868,130280720,19-Aug-14,-353.62,229 MITCHAM LANE LTD,SP0000884
WANDSWORTH COUNCIL,ASC,Revenue,SOCIAL SERVICES,CUSTOMER & CLIENT RECPTS - EXT,CL CONT EXTERNAL RESIDENTIAL,473161,130280720,26-Aug-14,-439.76,ACH OF LONDON LLP,SP0001688
WANDSWORTH COUNCIL,ASC,Revenue,SOCIAL SERVICES,CUSTOMER & CLIENT RECPTS - EXT,CL CONT EXTERNAL RESIDENTIAL,474639,130280720,28-Aug-14,-425.57,ACH OF LONDON LLP,SP0001688
WANDSWORTH COUNCIL,ASC,Revenue,SOCIAL SERVICES,CUSTOMER & CLIENT RECPTS - EXT,CL CONT EXTERNAL RESIDENTIAL,459259,130280720,07-Aug-14,-353.62,AIMS CARE PARTNERSHIP,SP0000561
WANDSWORTH COUNCIL,ASC,Revenue,SOCIAL SERVICES,CUSTOMER & CLIENT RECPTS - EXT,CL CONT EXTERNAL RESIDENTIAL,474668,130280720,28-Aug-14,-353.62,AIMS CARE PARTNERSHIP,SP0000561
WANDSWORTH COUNCIL,ASC,Revenue,SOCIAL SERVICES,CUSTOMER & CLIENT RECPTS - EXT,CL CONT EXTERNAL RESIDENTIAL,473167,130280720,26-Aug-14,-268.33,ALLIED CARE (MHS) LTD,SP0001069
WANDSWORTH COUNCIL,ASC,Revenue,SOCIAL SERVICES,CUSTOMER & CLIENT RECPTS - EXT,CL CONT EXTERNAL RESIDENTIAL,474632,130280720,28-Aug-14,-319.40,ALLIED CARE (MHS) LTD,SP0001069
WANDSWORTH COUNCIL,ASC,Revenue,SOCIAL SERVICES,CUSTOMER & CLIENT RECPTS - EXT,CL CONT EXTERNAL RESIDENTIAL,474633,130280720,28-Aug-14,-319.40,ALLIED CARE (MHS) LTD,SP0001069
WANDSWORTH COUNCIL,ASC,Revenue,SOCIAL SERVICES,CUSTOMER & CLIENT RECPTS - EXT,CL CONT EXTERNAL RESIDENTIAL,459210,130280720,07-Aug-14,-342.22,ASHCROFT CARE SERVICES,SP0000872
WANDSWORTH COUNCIL,ASC,Revenue,SOCIAL SERVICES,CUSTOMER & CLIENT RECPTS - EXT,CL CONT EXTERNAL RESIDENTIAL,459211,130280720,07-Aug-14,-353.62,ASHCROFT CARE SERVICES,SP0000872
WANDSWORTH COUNCIL,ASC,Revenue,SOCIAL SERVICES,CUSTOMER & CLIENT RECPTS - EXT,CL CONT EXTERNAL RESIDENTIAL,473166,130280720,26-Aug-14,-353.62,ASHCROFT CARE SERVICES,SP0000872
WANDSWORTH COUNCIL,ASC,Revenue,SOCIAL SERVICES,CUSTOMER & CLIENT RECPTS - EXT,CL CONT EXTERNAL RESIDENTIAL,459213,130280720,07-Aug-14,-342.22,BEECH LODGE,SP0000807
WANDSWORTH COUNCIL,ASC,Revenue,SOCIAL SERVICES,CUSTOMER & CLIENT RECPTS - EXT,CL CONT EXTERNAL RESIDENTIAL,459214,130280720,07-Aug-14,-342.22,BEECH LODGE,SP0000807
WANDSWORTH COUNCIL,ASC,Revenue,SOCIAL SERVICES,CUSTOMER & CLIENT RECPTS - EXT,CL CONT EXTERNAL RESIDENTIAL,459215,130280720,07-Aug-14,-342.22,BEECH LODGE,SP0000807
WANDSWORTH COUNCIL,ASC,Revenue,SOCIAL SERVICES,CUSTOMER & CLIENT RECPTS - EXT,CL CONT EXTERNAL RESIDENTIAL,469739,130280720,20-Aug-14,-353.62,BEECH LODGE,SP0000807
WANDSWORTH COUNCIL,ASC,Revenue,SOCIAL SERVICES,CUSTOMER & CLIENT RECPTS - EXT,CL CONT EXTERNAL RESIDENTIAL,469740,130280720,20-Aug-14,-353.62,BEECH LODGE,SP0000807
WANDSWORTH COUNCIL,ASC,Revenue,SOCIAL SERVICES,CUSTOMER & CLIENT RECPTS - EXT,CL CONT EXTERNAL RESIDENTIAL,469741,130280720,20-Aug-14,-353.62,BEECH LODGE,SP0000807
WANDSWORTH COUNCIL,ASC,Revenue,SOCIAL SERVICES,CUSTOMER & CLIENT RECPTS - EXT,CL CONT EXTERNAL RESIDENTIAL,469806,130280720,20-Aug-14,-353.62,BIRCC,SP0000584
WANDSWORTH COUNCIL,ASC,Revenue,SOCIAL SERVICES,CUSTOMER & CLIENT RECPTS - EXT,CL CONT EXTERNAL RESIDENTIAL,459278,130280720,07-Aug-14,-401.67,BROOKDALE CARE,SP0000282
WANDSWORTH COUNCIL,ASC,Revenue,SOCIAL SERVICES,CUSTOMER & CLIENT RECPTS - EXT,CL CONT EXTERNAL RESIDENTIAL,469786,130280720,20-Aug-14,-401.67,BROOKDALE CARE,SP0000282
WANDSWORTH COUNCIL,ASC,Revenue,SOCIAL SERVICES,CUSTOMER & CLIENT RECPTS - EXT,CL CONT EXTERNAL RESIDENTIAL,473171,130280720,26-Aug-14,-388.71,BROOKDALE CARE,SP0000282
WANDSWORTH COUNCIL,ASC,Revenue,SOCIAL SERVICES,CUSTOMER & CLIENT RECPTS - EXT,CL CONT EXTERNAL RESIDENTIAL,459287,130280720,07-Aug-14,-622.48,CAMERON LODGE LIMITED,SP0000271
WANDSWORTH COUNCIL,ASC,Revenue,SOCIAL SERVICES,CUSTOMER & CLIENT RECPTS - EXT,CL CONT EXTERNAL RESIDENTIAL,467902,130280720,19-Aug-14,-548.92,CARE UNLIMITED GROUP LTD,SP0001575
WANDSWORTH COUNCIL,ASC,Revenue,SOCIAL SERVICES,CUSTOMER & CLIENT RECPTS - EXT,CL CONT EXTERNAL RESIDENTIAL,467903,130280720,19-Aug-14,-548.92,CARE UNLIMITED GROUP LTD,SP0001575
WANDSWORTH COUNCIL,ASC,Revenue,SOCIAL SERVICES,CUSTOMER & CLIENT RECPTS - EXT,CL CONT EXTERNAL RESIDENTIAL,467904,130280720,19-Aug-14,-529.11,CARE UNLIMITED GROUP LTD,SP0001575
WANDSWORTH COUNCIL,ASC,Revenue,SOCIAL SERVICES,CUSTOMER & CLIENT RECPTS - EXT,CL CONT EXTERNAL RESIDENTIAL,467905,130280720,19-Aug-14,-548.92,CARE UNLIMITED GROUP LTD,SP0001575
WANDSWORTH COUNCIL,ASC,Revenue,SOCIAL SERVICES,CUSTOMER & CLIENT RECPTS - EXT,CL CONT EXTERNAL RESIDENTIAL,467906,130280720,19-Aug-14,-531.22,CARE UNLIMITED GROUP LTD,SP0001575
WANDSWORTH COUNCIL,ASC,Revenue,SOCIAL SERVICES,CUSTOMER & CLIENT RECPTS - EXT,CL CONT EXTERNAL RESIDENTIAL,461334,130280720,08-Aug-14,-353.62,CENTRUST CARE HOMES LTD,SP0000141
WANDSWORTH COUNCIL,ASC,Revenue,SOCIAL SERVICES,CUSTOMER & CLIENT RECPTS - EXT,CL CONT EXTERNAL RESIDENTIAL,469804,130280720,20-Aug-14,-353.62,CENTRUST CARE HOMES LTD,SP0000141
WANDSWORTH COUNCIL,ASC,Revenue,SOCIAL SERVICES,CUSTOMER & CLIENT RECPTS - EXT,CL CONT EXTERNAL RESIDENTIAL,459262,130280720,07-Aug-14,-401.67,CHATSWORTH CARE,SP0000831
WANDSWORTH COUNCIL,ASC,Revenue,SOCIAL SERVICES,CUSTOMER & CLIENT RECPTS - EXT,CL CONT EXTERNAL RESIDENTIAL,474675,130280720,28-Aug-14,-401.67,CHATSWORTH CARE,SP0000831
WANDSWORTH COUNCIL,ASC,Revenue,SOCIAL SERVICES,CUSTOMER & CLIENT RECPTS - EXT,CL CONT EXTERNAL RESIDENTIAL,459225,130280720,07-Aug-14,-342.22,CHERRY LODGE,SP0000965
WANDSWORTH COUNCIL,ASC,Revenue,SOCIAL SERVICES,CUSTOMER & CLIENT RECPTS - EXT,CL CONT EXTERNAL RESIDENTIAL,469748,130280720,20-Aug-14,-353.62,CHERRY LODGE,SP0000965
WANDSWORTH COUNCIL,ASC,Revenue,SOCIAL SERVICES,CUSTOMER & CLIENT RECPTS - EXT,CL CONT EXTERNAL RESIDENTIAL,463370,130280720,12-Aug-14,-319.40,CMG HOMES LTD,SP0000075
WANDSWORTH COUNCIL,ASC,Revenue,SOCIAL SERVICES,CUSTOMER & CLIENT RECPTS - EXT,CL CONT EXTERNAL RESIDENTIAL,463374,130280720,12-Aug-14,-319.40,CMG HOMES LTD,SP0000075
WANDSWORTH COUNCIL,ASC,Revenue,SOCIAL SERVICES,CUSTOMER & CLIENT RECPTS - EXT,CL CONT EXTERNAL RESIDENTIAL,463375,130280720,12-Aug-14,-259.20,CMG HOMES LTD,SP0000075
WANDSWORTH COUNCIL,ASC,Revenue,SOCIAL SERVICES,CUSTOMER & CLIENT RECPTS - EXT,CL CONT EXTERNAL RESIDENTIAL,463376,130280720,12-Aug-14,-319.40,CMG HOMES LTD,SP0000075
WANDSWORTH COUNCIL,ASC,Revenue,SOCIAL SERVICES,CUSTOMER & CLIENT RECPTS - EXT,CL CONT EXTERNAL RESIDENTIAL,463377,130280720,12-Aug-14,-319.40,CMG HOMES LTD,SP0000075
WANDSWORTH COUNCIL,ASC,Revenue,SOCIAL SERVICES,CUSTOMER & CLIENT RECPTS - EXT,CL CONT EXTERNAL RESIDENTIAL,463378,130280720,12-Aug-14,-495.80,CMG HOMES LTD,SP0000075
WANDSWORTH COUNCIL,ASC,Revenue,SOCIAL SERVICES,CUSTOMER & CLIENT RECPTS - EXT,CL CONT EXTERNAL RESIDENTIAL,463381,130280720,12-Aug-14,-362.80,CMG HOMES LTD,SP0000075
WANDSWORTH COUNCIL,ASC,Revenue,SOCIAL SERVICES,CUSTOMER & CLIENT RECPTS - EXT,CL CONT EXTERNAL RESIDENTIAL,463382,130280720,12-Aug-14,-319.40,CMG HOMES LTD,SP0000075
WANDSWORTH COUNCIL,ASC,Revenue,SOCIAL SERVICES,CUSTOMER & CLIENT RECPTS - EXT,CL CONT EXTERNAL RESIDENTIAL,461439,130280720,08-Aug-14,-353.62,COUNTRY CARE,SP0000090
WANDSWORTH COUNCIL,ASC,Revenue,SOCIAL SERVICES,CUSTOMER & CLIENT RECPTS - EXT,CL CONT EXTERNAL RESIDENTIAL,473173,130280720,26-Aug-14,-353.62,COUNTRY CARE,SP0000090
WANDSWORTH COUNCIL,ASC,Revenue,SOCIAL SERVICES,CUSTOMER & CLIENT RECPTS - EXT,CL CONT EXTERNAL RESIDENTIAL,461440,130280720,08-Aug-14,-319.40,CRAEGMOOR FACILITIES CO LTD,SP0000306
WANDSWORTH COUNCIL,ASC,Revenue,SOCIAL SERVICES,CUSTOMER & CLIENT RECPTS - EXT,CL CONT EXTERNAL RESIDENTIAL,461441,130280720,08-Aug-14,-353.62,CREDITON CARE & SUPPORT HOMES,SP0000998
WANDSWORTH COUNCIL,ASC,Revenue,SOCIAL SERVICES,CUSTOMER & CLIENT RECPTS - EXT,CL CONT EXTERNAL RESIDENTIAL,469749,130280720,20-Aug-14,-353.62,CREDITON CARE & SUPPORT HOMES,SP0000998
WANDSWORTH COUNCIL,ASC,Revenue,SOCIAL SERVICES,CUSTOMER & CLIENT RECPTS - EXT,CL CONT EXTERNAL RESIDENTIAL,467862,130280720,19-Aug-14,-353.62,DOLPHIN HOMES LTD,SP0000331
WANDSWORTH COUNCIL,ASC,Revenue,SOCIAL SERVICES,CUSTOMER & CLIENT RECPTS - EXT,CL CONT EXTERNAL RESIDENTIAL,467863,130280720,19-Aug-14,-353.62,DOLPHIN HOMES LTD,SP0000331
WANDSWORTH COUNCIL,ASC,Revenue,SOCIAL SERVICES,CUSTOMER & CLIENT RECPTS - EXT,CL CONT EXTERNAL RESIDENTIAL,459229,130280720,07-Aug-14,-353.62,DOWNING (CHERTSEY ROAD) LTD,SP0000959
WANDSWORTH COUNCIL,ASC,Revenue,SOCIAL SERVICES,CUSTOMER & CLIENT RECPTS - EXT,CL CONT EXTERNAL RESIDENTIAL,473175,130280720,26-Aug-14,-353.62,DOWNING (CHERTSEY ROAD) LTD,SP0000959
WANDSWORTH COUNCIL,ASC,Revenue,SOCIAL SERVICES,CUSTOMER & CLIENT RECPTS - EXT,CL CONT EXTERNAL RESIDENTIAL,473182,130280720,26-Aug-14,-135.72,ENHAM,SP0005845
WANDSWORTH COUNCIL,ASC,Revenue,SOCIAL SERVICES,CUSTOMER & CLIENT RECPTS - EXT,CL CONT EXTERNAL RESIDENTIAL,459281,130280720,07-Aug-14,-353.62,ESSEX CARE CONSORTIUM,SP0000387
WANDSWORTH COUNCIL,ASC,Revenue,SOCIAL SERVICES,CUSTOMER & CLIENT RECPTS - EXT,CL CONT EXTERNAL RESIDENTIAL,473192,130280720,26-Aug-14,-342.21,ESSEX CARE CONSORTIUM,SP0000387
WANDSWORTH COUNCIL,ASC,Revenue,SOCIAL SERVICES,CUSTOMER & CLIENT RECPTS - EXT,CL CONT EXTERNAL RESIDENTIAL,459226,130280720,07-Aug-14,-319.40,FREEWAYS TRUST LTD,SP0000793
WANDSWORTH COUNCIL,ASC,Revenue,SOCIAL SERVICES,CUSTOMER & CLIENT RECPTS - EXT,CL CONT EXTERNAL RESIDENTIAL,467908,130280720,19-Aug-14,-319.40,FREEWAYS TRUST LTD,SP0000793
WANDSWORTH COUNCIL,ASC,Revenue,SOCIAL SERVICES,CUSTOMER & CLIENT RECPTS - EXT,CL CONT EXTERNAL RESIDENTIAL,467909,130280720,19-Aug-14,-319.40,FREEWAYS TRUST LTD,SP0000793
WANDSWORTH COUNCIL,ASC,Revenue,SOCIAL SERVICES,CUSTOMER & CLIENT RECPTS - EXT,CL CONT EXTERNAL RESIDENTIAL,467869,130280720,19-Aug-14,-319.40,HAYDON PARK LODGE LTD,SP0000231
WANDSWORTH COUNCIL,ASC,Revenue,SOCIAL SERVICES,CUSTOMER & CLIENT RECPTS - EXT,CL CONT EXTERNAL RESIDENTIAL,459235,130280720,07-Aug-14,-548.92,HEYWOODS GRANGE LTD,SP0000361
WANDSWORTH COUNCIL,ASC,Revenue,SOCIAL SERVICES,CUSTOMER & CLIENT RECPTS - EXT,CL CONT EXTERNAL RESIDENTIAL,473186,130280720,26-Aug-14,-548.92,HEYWOODS GRANGE LTD,SP0000361
WANDSWORTH COUNCIL,ASC,Revenue,SOCIAL SERVICES,CUSTOMER & CLIENT RECPTS - EXT,CL CONT EXTERNAL RESIDENTIAL,473185,130280720,26-Aug-14,-353.62,HILL PARK AUTISTIC TRUST,SP0000926
WANDSWORTH COUNCIL,ASC,Revenue,SOCIAL SERVICES,CUSTOMER & CLIENT RECPTS - EXT,CL CONT EXTERNAL RESIDENTIAL,467870,130280720,19-Aug-14,-353.62,HOME FROM HOME CARE LIMITED,SP0001373
WANDSWORTH COUNCIL,ASC,Revenue,SOCIAL SERVICES,CUSTOMER & CLIENT RECPTS - EXT,CL CONT EXTERNAL RESIDENTIAL,472211,130280720,22-Aug-14,-344.23,HOME FROM HOME CARE LIMITED,SP0001373
WANDSWORTH COUNCIL,ASC,Revenue,SOCIAL SERVICES,CUSTOMER & CLIENT RECPTS - EXT,CL CONT EXTERNAL RESIDENTIAL,459171,130280720,07-Aug-14,-353.62,ILG LTD,SP0001103
WANDSWORTH COUNCIL,ASC,Revenue,SOCIAL SERVICES,CUSTOMER & CLIENT RECPTS - EXT,CL CONT EXTERNAL RESIDENTIAL,467871,130280720,19-Aug-14,-305.62,IN CHORUS LTD,SP0000129
WANDSWORTH COUNCIL,ASC,Revenue,SOCIAL SERVICES,CUSTOMER & CLIENT RECPTS - EXT,CL CONT EXTERNAL RESIDENTIAL,461336,130280720,08-Aug-14,-495.80,KENILWORTH RESIDENTIAL HOME,SP0000432
WANDSWORTH COUNCIL,ASC,Revenue,SOCIAL SERVICES,CUSTOMER & CLIENT RECPTS - EXT,CL CONT EXTERNAL RESIDENTIAL,461337,130280720,08-Aug-14,-319.40,KENILWORTH RESIDENTIAL HOME,SP0000432
WANDSWORTH COUNCIL,ASC,Revenue,SOCIAL SERVICES,CUSTOMER & CLIENT RECPTS - EXT,CL CONT EXTERNAL RESIDENTIAL,461474,130280720,08-Aug-14,-279.28,KISIMUL GROUP LTD,SP0002487
WANDSWORTH COUNCIL,ASC,Revenue,SOCIAL SERVICES,CUSTOMER & CLIENT RECPTS - EXT,CL CONT EXTERNAL RESIDENTIAL,461475,130280720,08-Aug-14,-391.00,KISIMUL GROUP LTD,SP0002487
WANDSWORTH COUNCIL,ASC,Revenue,SOCIAL SERVICES,CUSTOMER & CLIENT RECPTS - EXT,CL CONT EXTERNAL RESIDENTIAL,472197,130280720,22-Aug-14,-319.40,LAETUS LODGE,SP0000600
WANDSWORTH COUNCIL,ASC,Revenue,SOCIAL SERVICES,CUSTOMER & CLIENT RECPTS - EXT,CL CONT EXTERNAL RESIDENTIAL,472199,130280720,22-Aug-14,-397.20,LAETUS LODGE,SP0000600
WANDSWORTH COUNCIL,ASC,Revenue,SOCIAL SERVICES,CUSTOMER & CLIENT RECPTS - EXT,CL CONT EXTERNAL RESIDENTIAL,472201,130280720,22-Aug-14,-245.68,LAETUS LODGE,SP0000600
WANDSWORTH COUNCIL,ASC,Revenue,SOCIAL SERVICES,CUSTOMER & CLIENT RECPTS - EXT,CL CONT EXTERNAL RESIDENTIAL,472202,130280720,22-Aug-14,-362.80,LAETUS LODGE,SP0000600
WANDSWORTH COUNCIL,ASC,Revenue,SOCIAL SERVICES,CUSTOMER & CLIENT RECPTS - EXT,CL CONT EXTERNAL RESIDENTIAL,472203,130280720,22-Aug-14,-319.40,LAETUS LODGE,SP0000600
WANDSWORTH COUNCIL,ASC,Revenue,SOCIAL SERVICES,CUSTOMER & CLIENT RECPTS - EXT,CL CONT EXTERNAL RESIDENTIAL,472204,130280720,22-Aug-14,-319.40,LAETUS LODGE,SP0000600
WANDSWORTH COUNCIL,ASC,Revenue,SOCIAL SERVICES,CUSTOMER & CLIENT RECPTS - EXT,CL CONT EXTERNAL RESIDENTIAL,461343,130280720,08-Aug-14,-362.80,LARKFIELD HALL LTD T/A PEPENBURY,SP0001378
WANDSWORTH COUNCIL,ASC,Revenue,SOCIAL SERVICES,CUSTOMER & CLIENT RECPTS - EXT,CL CONT EXTERNAL RESIDENTIAL,467844,130280720,19-Aug-14,-362.80,LARKFIELD HALL LTD T/A PEPENBURY,SP0001378
WANDSWORTH COUNCIL,ASC,Revenue,SOCIAL SERVICES,CUSTOMER & CLIENT RECPTS - EXT,CL CONT EXTERNAL RESIDENTIAL,461421,130280720,08-Aug-14,-353.62,LEONARD CHESHIRE,SP0000976
WANDSWORTH COUNCIL,ASC,Revenue,SOCIAL SERVICES,CUSTOMER & CLIENT RECPTS - EXT,CL CONT EXTERNAL RESIDENTIAL,461378,130280720,08-Aug-14,-319.40,LIVABILITY,SP0000669
WANDSWORTH COUNCIL,ASC,Revenue,SOCIAL SERVICES,CUSTOMER & CLIENT RECPTS - EXT,CL CONT EXTERNAL RESIDENTIAL,467872,130280720,19-Aug-14,-401.67,LONDON CARE PARTNERSHIP LTD,SP0001138
WANDSWORTH COUNCIL,ASC,Revenue,SOCIAL SERVICES,CUSTOMER & CLIENT RECPTS - EXT,CL CONT EXTERNAL RESIDENTIAL,467873,130280720,19-Aug-14,-291.27,LONDON CARE PARTNERSHIP LTD,SP0001138
WANDSWORTH COUNCIL,ASC,Revenue,SOCIAL SERVICES,CUSTOMER & CLIENT RECPTS - EXT,CL CONT EXTERNAL RESIDENTIAL,467874,130280720,19-Aug-14,-353.62,LONDON CARE PARTNERSHIP LTD,SP0001138
WANDSWORTH COUNCIL,ASC,Revenue,SOCIAL SERVICES,CUSTOMER & CLIENT RECPTS - EXT,CL CONT EXTERNAL RESIDENTIAL,467875,130280720,19-Aug-14,-212.57,LONDON CARE PARTNERSHIP LTD,SP0001138
WANDSWORTH COUNCIL,ASC,Revenue,SOCIAL SERVICES,CUSTOMER & CLIENT RECPTS - EXT,CL CONT EXTERNAL RESIDENTIAL,467876,130280720,19-Aug-14,-401.67,LONDON CARE PARTNERSHIP LTD,SP0001138
WANDSWORTH COUNCIL,ASC,Revenue,SOCIAL SERVICES,CUSTOMER & CLIENT RECPTS - EXT,CL CONT EXTERNAL RESIDENTIAL,461366,130280720,08-Aug-14,-319.40,LOTUS CARE HOME LTD,SP0001006
WANDSWORTH COUNCIL,ASC,Revenue,SOCIAL SERVICES,CUSTOMER & CLIENT RECPTS - EXT,CL CONT EXTERNAL RESIDENTIAL,473193,130280720,26-Aug-14,-319.40,LOTUS CARE HOME LTD,SP0001006
WANDSWORTH COUNCIL,ASC,Revenue,SOCIAL SERVICES,CUSTOMER & CLIENT RECPTS - EXT,CL CONT EXTERNAL RESIDENTIAL,459355,130280720,07-Aug-14,-319.40,LOVING CARE LTD,SP0000670
WANDSWORTH COUNCIL,ASC,Revenue,SOCIAL SERVICES,CUSTOMER & CLIENT RECPTS - EXT,CL CONT EXTERNAL RESIDENTIAL,459356,130280720,07-Aug-14,-319.40,LOVING CARE LTD,SP0000670
WANDSWORTH COUNCIL,ASC,Revenue,SOCIAL SERVICES,CUSTOMER & CLIENT RECPTS - EXT,CL CONT EXTERNAL RESIDENTIAL,459357,130280720,07-Aug-14,-319.40,LOVING CARE LTD,SP0000670
WANDSWORTH COUNCIL,ASC,Revenue,SOCIAL SERVICES,CUSTOMER & CLIENT RECPTS - EXT,CL CONT EXTERNAL RESIDENTIAL,459358,130280720,07-Aug-14,-319.40,LOVING CARE LTD,SP0000670
WANDSWORTH COUNCIL,ASC,Revenue,SOCIAL SERVICES,CUSTOMER & CLIENT RECPTS - EXT,CL CONT EXTERNAL RESIDENTIAL,459361,130280720,07-Aug-14,-319.40,LOVING CARE LTD,SP0000670
WANDSWORTH COUNCIL,ASC,Revenue,SOCIAL SERVICES,CUSTOMER & CLIENT RECPTS - EXT,CL CONT EXTERNAL RESIDENTIAL,472212,130280720,22-Aug-14,-319.40,LOVING CARE LTD,SP0000670
WANDSWORTH COUNCIL,ASC,Revenue,SOCIAL SERVICES,CUSTOMER & CLIENT RECPTS - EXT,CL CONT EXTERNAL RESIDENTIAL,472213,130280720,22-Aug-14,-319.40,LOVING CARE LTD,SP0000670
WANDSWORTH COUNCIL,ASC,Revenue,SOCIAL SERVICES,CUSTOMER & CLIENT RECPTS - EXT,CL CONT EXTERNAL RESIDENTIAL,472214,130280720,22-Aug-14,-319.40,LOVING CARE LTD,SP0000670
WANDSWORTH COUNCIL,ASC,Revenue,SOCIAL SERVICES,CUSTOMER & CLIENT RECPTS - EXT,CL CONT EXTERNAL RESIDENTIAL,472215,130280720,22-Aug-14,-319.40,LOVING CARE LTD,SP0000670
WANDSWORTH COUNCIL,ASC,Revenue,SOCIAL SERVICES,CUSTOMER & CLIENT RECPTS - EXT,CL CONT EXTERNAL RESIDENTIAL,472216,130280720,22-Aug-14,-319.40,LOVING CARE LTD,SP0000670
WANDSWORTH COUNCIL,ASC,Revenue,SOCIAL SERVICES,CUSTOMER & CLIENT RECPTS - EXT,CL CONT EXTERNAL RESIDENTIAL,461356,130280720,08-Aug-14,-315.20,MACINTYRE CARE,SP0000473
WANDSWORTH COUNCIL,ASC,Revenue,SOCIAL SERVICES,CUSTOMER & CLIENT RECPTS - EXT,CL CONT EXTERNAL RESIDENTIAL,461357,130280720,08-Aug-14,-319.40,MACINTYRE CARE,SP0000473
WANDSWORTH COUNCIL,ASC,Revenue,SOCIAL SERVICES,CUSTOMER & CLIENT RECPTS - EXT,CL CONT EXTERNAL RESIDENTIAL,461358,130280720,08-Aug-14,-495.80,MACINTYRE CARE,SP0000473
